Workbook

Sheet SIMULADOR
A1: <
E2: SIMULADOR BANCA COMERCIAL MIFEL
N4: =IF(E4="","",IF(MOD(B4,2)=0,IF(#REF!="APOYO INFONAVIT",IF(#REF!<D$13-L25,0,MIN(#REF!*0.1,6627)),0),0)) -> 
C7: NOMBRE DEL SOLICITANTE:
C11: DATOS DEL CRÉDITO | G11: CONDICIONES FINANCIERAS
C13: CANAL CRÉDITO: | G13: COMISIÓN POR APERTURA: | I13: 0 | K13: CRÉDITO TOTAL: | M13: =IFERROR(IF(AND(OR(E15="MEJORA_DE_HIPOTECA_Y_LIQUIDEZ",E15="LIQUIDEZ"),E27="MONTO CRÉDITO",E29>6000000),"EL MONTO DEL CRÉDITO DEBE SER MÁXIMO DE 6 MDP",IF(AND(OR(E15="MEJORA_DE_HIPOTECA_Y_LIQUIDEZ",E15="LIQUIDEZ"),E27="VALOR VIVIENDA",(E29-E35)>=6000000),6000000,IF(AND(E15="LIQUIDEZ",E27="INGRESOS",MIN((E29-E37)*(1000000/IF(E15="HIPOTECA_DE_INVERSIÓN",20000,26000)),PV(M17/12,E19*12,IF(AND(E15="HIPOTECA_DE_INVERSIÓN",E21=30%),-(E29-E37)*0.4,-(E29-E37)*0.375)))<600000),"INGRESO INSUFICIENTE",IF(AND(E15="MEJORA_DE_HIPOTECA_Y_LIQUIDEZ",E27="INGRESOS",(MIN((E29-E37)*(1000000/26000),PV(M17/12,E19*12,-(E29-E37)*0.375))>=5500000)),5500000,IF(E27="MONTO CRÉDITO",E29,IF(AND(E15="FOVISSSTE",E27="INGRESOS"),MIN((E29-E37)*30,PV(M17/12,E19*12,-(E29-E37)*0.375)),IF(E27="INGRESOS",MIN((E29-E37)*(1000000/IF(E15="HIPOTECA_DE_INVERSIÓN",20000,26000)),PV(M17/12,E19*12,IF(AND(E15="HIPOTECA_DE_INVERSIÓN",E21=30%),-(E29-E37)*0.375,-(E29-E37)*0.375))),IF(E15="LIQUIDEZ",E29*E21,E29-E35))))))))-IF(E17="COFINAVIT",E41+DATOS!A65,0),"REVISAR LLENADO") -> 0
C15: OPCIÓN DE CRÉDITO: | G15: COMISIÓN POR ADMINISTRACIÓN: | I15: 399
C17: TIPO DE PROGRAMA: | G17: SEGURO DE VIDA (MILLAR): | I17: INDIVIDUAL | K17: TASA: | M17: =IFERROR(DATOS!C54,0) -> 0
C19: PLAZO DE CRÉDITO: | G19: SEGURO DE DAÑOS (MILLAR)+IVA: | I19: =IF(E15="FOVISSSTE",0,(0.098*1.16)) -> 0.11368 | K19: PAGO MENSUAL (sin seguros): | M19: =IFERROR(PMT(M17/12,E19*12,-M13),0) -> 0
C21: =IF(E15="MEJORA_DE_HIPOTECA","",IF(E15="LIQUIDEZ","% DE AFORO:","% DE ENGANCHE:")) -> % DE ENGANCHE: | G21: INGRESO MENSUAL REQUERIDO: | I21: =IF(E27="INGRESOS",E29,(M19*2.5)+E37) -> 0 | K21: CAT: | M21: =IFERROR(((1+IRR('TABLA DE AMORTIZACIÓN'!S12:S313))^(12))-1,0) -> 0
C23: =IF(OR(E13=DATOS!A4,E13=DATOS!A5,E13=DATOS!A7),"",IF(AND(E15=DATOS!A9,E17<>"TRADICIONAL"),"PROMOCIÓN:","")) ->  | G23: =IF(E27="INGRESOS","VALOR DE VIVIENDA ESTIMADO:","") ->  | I23: =IF(E43="",DATOS!A59,DATOS!A63) -> 0 | K23: PAGO MENSUAL TOTAL: | M23: =IFERROR(IF($E$15="LIQUIDEZ",((M19+I15+(IF(I17="INDIVIDUAL",DATOS!A41,DATOS!A42)*M13/1000)+(I19*M13/1000))+'TABLA DE AMORTIZACIÓN'!N14),(M19+I15+(IF(I17="INDIVIDUAL",DATOS!A41,DATOS!A42)*M13/1000)+(I19*M13/1000))),0) -> 399
C25: COTIZACIÓN | G25: GASTOS
C27: COTIZAR POR : | G27: GASTOS INICIALES | K27: GASTOS A LA FIRMA
C29: =IF(AND(E15="LIQUIDEZ",E27="VALOR VIVIENDA"),"AVALÚO:",IF(E27="VALOR VIVIENDA","VALOR VIVIENDA:",IF(E27="MONTO CRÉDITO","MONTO DEL CRÉDITO:",IF(E27="INGRESOS","INGRESO MENSUAL:","")))) ->  | K29: Enganche total: | M29: =IF(E15="MEJORA_DE_HIPOTECA",0,IF(E27="INGRESOS",I23*E21,E35))-IF(E27="INGRESOS",IF(E43>(I23*E21),I23*E21,E43),IF(E43>E35,E35,E43)) -> 0
C31: =IF(E15="MEJORA_DE_HIPOTECA","IMPORTE DE ADEUDO:","") ->  | G31: Avalúo Inmueble* | I31: =IF(E15="ADQUISICIÓN_SIN_COMISIONES",0,IF(E27="MONTO CRÉDITO","SOLICITAR COTIZACIÓN",DATOS!W29)) -> SOLICITAR COTIZACIÓN | K31: Comisión por apertura: | M31: =IFERROR(M13*I13,0) -> 0
C33: =IF(E15="MEJORA_DE_HIPOTECA","% DE AFORO:","") ->  | E33: =IFERROR((E31/E29),0) -> 0 | G33: SUBTOTAL | I33: =IF(I31="SOLICITAR COTIZACIÓN ",0,I31) -> 0 | K33: % de gastos notariales | M33: 0
C35: =IF(E27="INGRESOS","","ENGANCHE:") -> ENGANCHE: | E35: =IFERROR(IF(E15="MEJORA_DE_HIPOTECA",(1-E33)*E29,IF(E15="LIQUIDEZ",E29*(1-E21),E21*E29)),0) -> 0 | K35: Gastos notariales*: | M35: =I23*M33 -> 0
C37: PAGO DE OBLIGACIONES: | K37: TOTAL: | M37: =M31+M35+I33+M29 -> 0
C39: =IF(OR(E15="FOVISSSTE",E17="APOYO INFONAVIT"),"SALARIO DE COTIZACIÓN:","") -> 
C41: =IF(E17="COFINAVIT","CRÉDITO INFONAVIT:","") -> 
C43: =IF(E17="COFINAVIT","SALDO SUBCUENTA DE VIVIENDA:","") ->  | G43: =IF(AND(E15="FOVISSSTE",E27="VALOR VIVIENDA",E43>DATOS!A61),"*Tu saldo en la SUBCUENTA DE VIVIENDA es mayor al enganche mínimo requerido, por lo que podrás subir el % de enganche a ser aplicado al "&DATOS!A67*100&"%","") -> 
C45: =+IF(E15="MEJORA_DE_HIPOTECA_Y_LIQUIDEZ","MONTO LIQUIDEZ:","") -> 
C47: *Gastos definitivos cotizados directamente por notaria
C48: NOTA IMPORTANTE: Los costos referidos en este Simulador de Crédito, son aproximados y de carácter ilustrativo

Sheet TABLA DE AMORTIZACIÓN
F2: SIMULADOR BANCA COMERCIAL MIFEL
F5: MONTO DEL CRÉDITO: | G5: =SIMULADOR!M13 -> 0 | I5: PRODUCTO: | K5: =+SIMULADOR!E15 -> 0
F7: PLAZO: | G7: =+SIMULADOR!E19 -> 0 | I7: PROGRAMA: | K7: =+SIMULADOR!E17 -> 0
F9: TASA: | G9: =+SIMULADOR!M17 -> 0 | I9: PREPAGO: | K9: NO APLICA
B12: PERIODO | C12: SALDO INSOLUTO | D12: COMISIÓN | E12: PAGOS MENSUALES | F12: INTERESES GENERADOS | G12: AMORTIZACIÓN | H12: SALDO FINAL | I12: ABONO A CAPITAL | K12: COMISIÓN POR ADMINISTRACION | L12: PRIMA VIDA | M12: PRIMA DAÑOS | N12: IVA | O12: PAGO MENSUAL (AMORTIZACIÓN, INTERESES Y SEGUROS) | P12: APORTACIONES PATRONALES | Q12: INGRESOS MENSUALES | S12: =IF(C13="","",-C13+D13) -> 0 | U12: PLAZO | V12: CAPITAL | W12: FINAL | X12: PAGO | Y12: PLAZO
B13: 0 | C13: =IFERROR(SIMULADOR!M13-(IF(SIMULADOR!E17="TRADICIONAL",SIMULADOR!E41,0)),0) -> 0 | D13: =C13*SIMULADOR!I13 -> 0
B14: 1 | C14: =C13 -> 0 | D14: =+G7*12 -> 0 | E14: =IFERROR(IF(B14="","",(F14+G14)),0) -> 0 | F14: =IFERROR(C14*$G$9/12,"") -> 0 | G14: =IFERROR(IF(B14="","",SIMULADOR!$M$19-F14),0) -> 0 | H14: =IFERROR(C14-G14-P14,"") -> 0 | I14: 0 | J14: =$K$9 -> NO APLICA | K14: =IF(B15="","",SIMULADOR!$I$15) ->  | L14: =IF(C14="","",C14*IF(SIMULADOR!$I$17="INDIVIDUAL",DATOS!$A$41/1000,DATOS!$A$42/1000)) -> 0 | M14: =IFERROR(C14*SIMULADOR!$I$19/1000,"") -> 0 | N14: =IFERROR(IF(B14="","",IF(SIMULADOR!$E$15="LIQUIDEZ",F14*16%,IF(SIMULADOR!$E$15="MEJORA_DE_HIPOTECA_Y_LIQUIDEZ",(F14*DATOS!$C$22)*16%,0))),"") -> 0 | O14: =IFERROR(E14+K14+L14+M14+N14,"") ->  | P14: =IF(B14="","",IF(MOD(B14,2)=0,IF(OR(SIMULADOR!$E$15="FOVISSSTE",SIMULADOR!$E$17="APOYO INFONAVIT"),IF(H13<$E$14-G14,0,MIN(SIMULADOR!$E$39*0.1,(DATOS!$S$31))),""),0)) -> 0 | Q14: =IF(SIMULADOR!E17="APOYO INFONAVIT",SIMULADOR!E41,0) -> 0 | S14: =IFERROR(IF(B14="","",O14+P14),0) -> 0 | T14: =IFERROR(IF(C14="","",(O14-I14)),0) -> 0 | U14: =IF($K$9=DATOS!$A$23,1,0) -> 0 | V14: =IF($K$9=DATOS!$A$24,1,0) -> 0 | W14: =IF(SUM(U14:V14)=0,SIMULADOR!$M$19,X14*V14+Y14*U14) -> 0 | X14: =IFERROR(PMT($G$9/12,$D$14-B13,-C14),0) -> 0 | Y14: =X14 -> 0
B15: =IF(C15="","",IF(B14>=$D$14,"",B14+1)) ->  | C15: =IFERROR(IF(H14<=0,"",H14-IF(J14="NO APLICA",0,I14)),"") ->  | D15: =IF(C15="","",D14-1) ->  | E15: =IFERROR(IF(B15="","",(F15+G15)),0) ->  | F15: =IFERROR(C15*$G$9/12,"") ->  | G15: =IFERROR(IF(B15="","",IF(H14<W15-F15,H14,W15-F15)),0) ->  | J15: NO APLICA | K15: =IF(B15="","",IF(C15>0,$K$14,0)) ->  | L15: =IF(C15="","",C15*IF(SIMULADOR!$I$17="INDIVIDUAL",DATOS!$A$41/1000,DATOS!$A$42/1000)) ->  | M15: =IFERROR(C15*SIMULADOR!$I$19/1000,"") ->  | N15: =IFERROR(IF(B15="","",IF(SIMULADOR!$E$15="LIQUIDEZ",F15*16%,IF(SIMULADOR!$E$15="MEJORA_DE_HIPOTECA_Y_LIQUIDEZ",(F15*DATOS!$C$22)*16%,0))),"") ->  | P15: =IF(B15="","",IF(MOD(B15,2)=0,IF(OR(SIMULADOR!$E$15="FOVISSSTE",SIMULADOR!$E$17="APOYO INFONAVIT"),IF(H14<$E$14-G15,0,MIN(SIMULADOR!$E$39*0.1,(DATOS!$S$31))),0),"")) ->  | U15: =IF($K$9=DATOS!$A$23,1,0) -> 0 | V15: =IF($K$9=DATOS!$A$24,1,0) -> 0 | W15: =IF(SUM(U15:V15)=0,SIMULADOR!$M$19,X15*V15+Y15*U15) -> 0 | X15: 0 | Y15: =W14 -> 0
B16: =IF(C16="","",IF(B15>=$D$14,"",B15+1)) ->  | C16: =IFERROR(IF(H15<=0,"",H15-IF(J15="NO APLICA",0,I15)),"") ->  | D16: =IF(C16="","",D15-1) ->  | J16: NO APLICA | K16: =IF(B16="","",IF(C16>0,$K$14,0)) ->  | L16: =IF(C16="","",C16*IF(SIMULADOR!$I$17="INDIVIDUAL",DATOS!$A$41/1000,DATOS!$A$42/1000)) ->  | M16: =IFERROR(C16*SIMULADOR!$I$19/1000,"") ->  | N16: =IFERROR(IF(B16="","",IF(SIMULADOR!$E$15="LIQUIDEZ",F16*16%,IF(SIMULADOR!$E$15="MEJORA_DE_HIPOTECA_Y_LIQUIDEZ",(F16*DATOS!$C$22)*16%,0))),"") ->  | P16: =IF(B16="","",IF(MOD(B16,2)=0,IF(OR(SIMULADOR!$E$15="FOVISSSTE",SIMULADOR!$E$17="APOYO INFONAVIT"),IF(H15<$E$14-G16,0,MIN(SIMULADOR!$E$39*0.1,(DATOS!$S$31))),0),0)) ->  | U16: =IF($K$9=DATOS!$A$23,1,0) -> 0 | V16: =IF($K$9=DATOS!$A$24,1,0) -> 0 | W16: =IF(SUM(U16:V16)=0,SIMULADOR!$M$19,X16*V16+Y16*U16) -> 0 | X16: 0 | Y16: =W15 -> 0
B17: =IF(C17="","",IF(B16>=$D$14,"",B16+1)) ->  | J17: NO APLICA | K17: =IF(B17="","",IF(C17>0,$K$14,0)) ->  | L17: =IF(C17="","",C17*IF(SIMULADOR!$I$17="INDIVIDUAL",DATOS!$A$41/1000,DATOS!$A$42/1000)) ->  | M17: =IFERROR(C17*SIMULADOR!$I$19/1000,"") ->  | N17: =IFERROR(IF(B17="","",IF(SIMULADOR!$E$15="LIQUIDEZ",F17*16%,IF(SIMULADOR!$E$15="MEJORA_DE_HIPOTECA_Y_LIQUIDEZ",(F17*DATOS!$C$22)*16%,0))),"") ->  | P17: =IF(B17="","",IF(MOD(B17,2)=0,IF(OR(SIMULADOR!$E$15="FOVISSSTE",SIMULADOR!$E$17="APOYO INFONAVIT"),IF(H16<$E$14-G17,0,MIN(SIMULADOR!$E$39*0.1,(DATOS!$S$31))),0),0)) ->  | U17: =IF($K$9=DATOS!$A$23,1,0) -> 0 | V17: =IF($K$9=DATOS!$A$24,1,0) -> 0 | W17: =IF(SUM(U17:V17)=0,SIMULADOR!$M$19,X17*V17+Y17*U17) -> 0 | X17: 0 | Y17: 0
B18: =IF(C18="","",IF(B17>=$D$14,"",B17+1)) ->  | J18: NO APLICA | L18: =IF(C18="","",C18*IF(SIMULADOR!$I$17="INDIVIDUAL",DATOS!$A$41/1000,DATOS!$A$42/1000)) ->  | M18: =IFERROR(C18*SIMULADOR!$I$19/1000,"") ->  | N18: =IFERROR(IF(B18="","",IF(SIMULADOR!$E$15="LIQUIDEZ",F18*16%,IF(SIMULADOR!$E$15="MEJORA_DE_HIPOTECA_Y_LIQUIDEZ",(F18*DATOS!$C$22)*16%,0))),"") ->  | P18: =IF(B18="","",IF(MOD(B18,2)=0,IF(OR(SIMULADOR!$E$15="FOVISSSTE",SIMULADOR!$E$17="APOYO INFONAVIT"),IF(H17<$E$14-G18,0,MIN(SIMULADOR!$E$39*0.1,(DATOS!$S$31))),0),0)) ->  | U18: =IF($K$9=DATOS!$A$23,1,0) -> 0 | V18: =IF($K$9=DATOS!$A$24,1,0) -> 0 | W18: =IF(SUM(U18:V18)=0,SIMULADOR!$M$19,X18*V18+Y18*U18) -> 0 | X18: 0 | Y18: 0
B19: =IF(C19="","",IF(B18>=$D$14,"",B18+1)) ->  | F19: =IFERROR(C19*$G$9/12,"") ->  | J19: NO APLICA | L19: =IF(C19="","",C19*IF(SIMULADOR!$I$17="INDIVIDUAL",DATOS!$A$41/1000,DATOS!$A$42/1000)) ->  | M19: =IFERROR(C19*SIMULADOR!$I$19/1000,"") ->  | N19: =IFERROR(IF(B19="","",IF(SIMULADOR!$E$15="LIQUIDEZ",F19*16%,IF(SIMULADOR!$E$15="MEJORA_DE_HIPOTECA_Y_LIQUIDEZ",(F19*DATOS!$C$22)*16%,0))),"") ->  | P19: =IF(B19="","",IF(MOD(B19,2)=0,IF(OR(SIMULADOR!$E$15="FOVISSSTE",SIMULADOR!$E$17="APOYO INFONAVIT"),IF(H18<$E$14-G19,0,MIN(SIMULADOR!$E$39*0.1,(DATOS!$S$31))),0),0)) ->  | U19: =IF($K$9=DATOS!$A$23,1,0) -> 0 | V19: =IF($K$9=DATOS!$A$24,1,0) -> 0 | W19: =IF(SUM(U19:V19)=0,SIMULADOR!$M$19,X19*V19+Y19*U19) -> 0 | X19: 0 | Y19: 0
B20: =IF(C20="","",IF(B19>=$D$14,"",B19+1)) ->  | J20: NO APLICA | L20: =IF(C20="","",C20*IF(SIMULADOR!$I$17="INDIVIDUAL",DATOS!$A$41/1000,DATOS!$A$42/1000)) ->  | M20: =IFERROR(C20*SIMULADOR!$I$19/1000,"") ->  | N20: =IFERROR(IF(B20="","",IF(SIMULADOR!$E$15="LIQUIDEZ",F20*16%,IF(SIMULADOR!$E$15="MEJORA_DE_HIPOTECA_Y_LIQUIDEZ",(F20*DATOS!$C$22)*16%,0))),"") ->  | P20: =IF(B20="","",IF(MOD(B20,2)=0,IF(OR(SIMULADOR!$E$15="FOVISSSTE",SIMULADOR!$E$17="APOYO INFONAVIT"),IF(H19<$E$14-G20,0,MIN(SIMULADOR!$E$39*0.1,(DATOS!$S$31))),0),0)) ->  | U20: =IF($K$9=DATOS!$A$23,1,0) -> 0 | V20: =IF($K$9=DATOS!$A$24,1,0) -> 0 | W20: =IF(SUM(U20:V20)=0,SIMULADOR!$M$19,X20*V20+Y20*U20) -> 0 | X20: 0 | Y20: 0
G21: =IFERROR(IF(B21="","",IF(H20<W21-F21,H20,W21-F21)),0) ->  | J21: NO APLICA | L21: =IF(C21="","",C21*IF(SIMULADOR!$I$17="INDIVIDUAL",DATOS!$A$41/1000,DATOS!$A$42/1000)) ->  | M21: =IFERROR(C21*SIMULADOR!$I$19/1000,"") ->  | N21: =IFERROR(IF(B21="","",IF(SIMULADOR!$E$15="LIQUIDEZ",F21*16%,IF(SIMULADOR!$E$15="MEJORA_DE_HIPOTECA_Y_LIQUIDEZ",(F21*DATOS!$C$22)*16%,0))),"") ->  | P21: =IF(B21="","",IF(MOD(B21,2)=0,IF(OR(SIMULADOR!$E$15="FOVISSSTE",SIMULADOR!$E$17="APOYO INFONAVIT"),IF(H20<$E$14-G21,0,MIN(SIMULADOR!$E$39*0.1,(DATOS!$S$31))),0),0)) ->  | U21: =IF($K$9=DATOS!$A$23,1,0) -> 0 | V21: =IF($K$9=DATOS!$A$24,1,0) -> 0 | W21: =IF(SUM(U21:V21)=0,SIMULADOR!$M$19,X21*V21+Y21*U21) -> 0 | X21: 0 | Y21: 0
J22: NO APLICA | L22: =IF(C22="","",C22*IF(SIMULADOR!$I$17="INDIVIDUAL",DATOS!$A$41/1000,DATOS!$A$42/1000)) ->  | M22: =IFERROR(C22*SIMULADOR!$I$19/1000,"") ->  | N22: =IFERROR(IF(B22="","",IF(SIMULADOR!$E$15="LIQUIDEZ",F22*16%,IF(SIMULADOR!$E$15="MEJORA_DE_HIPOTECA_Y_LIQUIDEZ",(F22*DATOS!$C$22)*16%,0))),"") ->  | P22: =IF(B22="","",IF(MOD(B22,2)=0,IF(OR(SIMULADOR!$E$15="FOVISSSTE",SIMULADOR!$E$17="APOYO INFONAVIT"),IF(H21<$E$14-G22,0,MIN(SIMULADOR!$E$39*0.1,(DATOS!$S$31))),0),0)) ->  | U22: =IF($K$9=DATOS!$A$23,1,0) -> 0 | V22: =IF($K$9=DATOS!$A$24,1,0) -> 0 | W22: =IF(SUM(U22:V22)=0,SIMULADOR!$M$19,X22*V22+Y22*U22) -> 0 | X22: 0 | Y22: 0
J23: NO APLICA | L23: =IF(C23="","",C23*IF(SIMULADOR!$I$17="INDIVIDUAL",DATOS!$A$41/1000,DATOS!$A$42/1000)) ->  | M23: =IFERROR(C23*SIMULADOR!$I$19/1000,"") ->  | N23: =IFERROR(IF(B23="","",IF(SIMULADOR!$E$15="LIQUIDEZ",F23*16%,IF(SIMULADOR!$E$15="MEJORA_DE_HIPOTECA_Y_LIQUIDEZ",(F23*DATOS!$C$22)*16%,0))),"") ->  | P23: =IF(B23="","",IF(MOD(B23,2)=0,IF(OR(SIMULADOR!$E$15="FOVISSSTE",SIMULADOR!$E$17="APOYO INFONAVIT"),IF(H22<$E$14-G23,0,MIN(SIMULADOR!$E$39*0.1,(DATOS!$S$31))),0),0)) ->  | U23: =IF($K$9=DATOS!$A$23,1,0) -> 0 | V23: =IF($K$9=DATOS!$A$24,1,0) -> 0 | W23: =IF(SUM(U23:V23)=0,SIMULADOR!$M$19,X23*V23+Y23*U23) -> 0 | X23: 0 | Y23: 0
J24: NO APLICA | L24: =IF(C24="","",C24*IF(SIMULADOR!$I$17="INDIVIDUAL",DATOS!$A$41/1000,DATOS!$A$42/1000)) ->  | M24: =IFERROR(C24*SIMULADOR!$I$19/1000,"") ->  | N24: =IFERROR(IF(B24="","",IF(SIMULADOR!$E$15="LIQUIDEZ",F24*16%,IF(SIMULADOR!$E$15="MEJORA_DE_HIPOTECA_Y_LIQUIDEZ",(F24*DATOS!$C$22)*16%,0))),"") ->  | P24: =IF(B24="","",IF(MOD(B24,2)=0,IF(OR(SIMULADOR!$E$15="FOVISSSTE",SIMULADOR!$E$17="APOYO INFONAVIT"),IF(H23<$E$14-G24,0,MIN(SIMULADOR!$E$39*0.1,(DATOS!$S$31))),0),0)) ->  | U24: =IF($K$9=DATOS!$A$23,1,0) -> 0 | V24: =IF($K$9=DATOS!$A$24,1,0) -> 0 | W24: =IF(SUM(U24:V24)=0,SIMULADOR!$M$19,X24*V24+Y24*U24) -> 0 | X24: 0 | Y24: 0
J25: NO APLICA | L25: =IF(C25="","",C25*IF(SIMULADOR!$I$17="INDIVIDUAL",DATOS!$A$41/1000,DATOS!$A$42/1000)) ->  | M25: =IFERROR(C25*SIMULADOR!$I$19/1000,"") ->  | N25: =IFERROR(IF(B25="","",IF(SIMULADOR!$E$15="LIQUIDEZ",F25*16%,IF(SIMULADOR!$E$15="MEJORA_DE_HIPOTECA_Y_LIQUIDEZ",(F25*DATOS!$C$22)*16%,0))),"") ->  | P25: =IF(B25="","",IF(MOD(B25,2)=0,IF(OR(SIMULADOR!$E$15="FOVISSSTE",SIMULADOR!$E$17="APOYO INFONAVIT"),IF(H24<$E$14-G25,0,MIN(SIMULADOR!$E$39*0.1,(DATOS!$S$31))),0),0)) ->  | U25: =IF($K$9=DATOS!$A$23,1,0) -> 0 | V25: =IF($K$9=DATOS!$A$24,1,0) -> 0 | W25: =IF(SUM(U25:V25)=0,SIMULADOR!$M$19,X25*V25+Y25*U25) -> 0 | X25: 0 | Y25: 0
J26: NO APLICA | L26: =IF(C26="","",C26*IF(SIMULADOR!$I$17="INDIVIDUAL",DATOS!$A$41/1000,DATOS!$A$42/1000)) ->  | M26: =IFERROR(C26*SIMULADOR!$I$19/1000,"") ->  | N26: =IFERROR(IF(B26="","",IF(SIMULADOR!$E$15="LIQUIDEZ",F26*16%,IF(SIMULADOR!$E$15="MEJORA_DE_HIPOTECA_Y_LIQUIDEZ",(F26*DATOS!$C$22)*16%,0))),"") ->  | P26: =IF(B26="","",IF(MOD(B26,2)=0,IF(OR(SIMULADOR!$E$15="FOVISSSTE",SIMULADOR!$E$17="APOYO INFONAVIT"),IF(H25<$E$14-G26,0,MIN(SIMULADOR!$E$39*0.1,(DATOS!$S$31))),0),0)) ->  | U26: =IF($K$9=DATOS!$A$23,1,0) -> 0 | V26: =IF($K$9=DATOS!$A$24,1,0) -> 0 | W26: =IF(SUM(U26:V26)=0,SIMULADOR!$M$19,X26*V26+Y26*U26) -> 0 | X26: 0 | Y26: 0
J27: NO APLICA | L27: =IF(C27="","",C27*IF(SIMULADOR!$I$17="INDIVIDUAL",DATOS!$A$41/1000,DATOS!$A$42/1000)) ->  | M27: =IFERROR(C27*SIMULADOR!$I$19/1000,"") ->  | N27: =IFERROR(IF(B27="","",IF(SIMULADOR!$E$15="LIQUIDEZ",F27*16%,IF(SIMULADOR!$E$15="MEJORA_DE_HIPOTECA_Y_LIQUIDEZ",(F27*DATOS!$C$22)*16%,0))),"") ->  | P27: =IF(B27="","",IF(MOD(B27,2)=0,IF(OR(SIMULADOR!$E$15="FOVISSSTE",SIMULADOR!$E$17="APOYO INFONAVIT"),IF(H26<$E$14-G27,0,MIN(SIMULADOR!$E$39*0.1,(DATOS!$S$31))),0),0)) ->  | U27: =IF($K$9=DATOS!$A$23,1,0) -> 0 | V27: =IF($K$9=DATOS!$A$24,1,0) -> 0 | W27: =IF(SUM(U27:V27)=0,SIMULADOR!$M$19,X27*V27+Y27*U27) -> 0 | X27: 0 | Y27: 0
J28: NO APLICA | L28: =IF(C28="","",C28*IF(SIMULADOR!$I$17="INDIVIDUAL",DATOS!$A$41/1000,DATOS!$A$42/1000)) ->  | M28: =IFERROR(C28*SIMULADOR!$I$19/1000,"") ->  | N28: =IFERROR(IF(B28="","",IF(SIMULADOR!$E$15="LIQUIDEZ",F28*16%,IF(SIMULADOR!$E$15="MEJORA_DE_HIPOTECA_Y_LIQUIDEZ",(F28*DATOS!$C$22)*16%,0))),"") ->  | P28: =IF(B28="","",IF(MOD(B28,2)=0,IF(OR(SIMULADOR!$E$15="FOVISSSTE",SIMULADOR!$E$17="APOYO INFONAVIT"),IF(H27<$E$14-G28,0,MIN(SIMULADOR!$E$39*0.1,(DATOS!$S$31))),0),0)) ->  | U28: =IF($K$9=DATOS!$A$23,1,0) -> 0 | V28: =IF($K$9=DATOS!$A$24,1,0) -> 0 | W28: =IF(SUM(U28:V28)=0,SIMULADOR!$M$19,X28*V28+Y28*U28) -> 0 | X28: 0 | Y28: 0
J29: NO APLICA | L29: =IF(C29="","",C29*IF(SIMULADOR!$I$17="INDIVIDUAL",DATOS!$A$41/1000,DATOS!$A$42/1000)) ->  | M29: =IFERROR(C29*SIMULADOR!$I$19/1000,"") ->  | N29: =IFERROR(IF(B29="","",IF(SIMULADOR!$E$15="LIQUIDEZ",F29*16%,IF(SIMULADOR!$E$15="MEJORA_DE_HIPOTECA_Y_LIQUIDEZ",(F29*DATOS!$C$22)*16%,0))),"") ->  | P29: =IF(B29="","",IF(MOD(B29,2)=0,IF(OR(SIMULADOR!$E$15="FOVISSSTE",SIMULADOR!$E$17="APOYO INFONAVIT"),IF(H28<$E$14-G29,0,MIN(SIMULADOR!$E$39*0.1,(DATOS!$S$31))),0),0)) ->  | U29: =IF($K$9=DATOS!$A$23,1,0) -> 0 | V29: =IF($K$9=DATOS!$A$24,1,0) -> 0 | W29: =IF(SUM(U29:V29)=0,SIMULADOR!$M$19,X29*V29+Y29*U29) -> 0 | X29: 0 | Y29: 0
J30: NO APLICA | L30: =IF(C30="","",C30*IF(SIMULADOR!$I$17="INDIVIDUAL",DATOS!$A$41/1000,DATOS!$A$42/1000)) ->  | M30: =IFERROR(C30*SIMULADOR!$I$19/1000,"") ->  | N30: =IFERROR(IF(B30="","",IF(SIMULADOR!$E$15="LIQUIDEZ",F30*16%,IF(SIMULADOR!$E$15="MEJORA_DE_HIPOTECA_Y_LIQUIDEZ",(F30*DATOS!$C$22)*16%,0))),"") ->  | P30: =IF(B30="","",IF(MOD(B30,2)=0,IF(OR(SIMULADOR!$E$15="FOVISSSTE",SIMULADOR!$E$17="APOYO INFONAVIT"),IF(H29<$E$14-G30,0,MIN(SIMULADOR!$E$39*0.1,(DATOS!$S$31))),0),0)) ->  | U30: =IF($K$9=DATOS!$A$23,1,0) -> 0 | V30: =IF($K$9=DATOS!$A$24,1,0) -> 0 | W30: =IF(SUM(U30:V30)=0,SIMULADOR!$M$19,X30*V30+Y30*U30) -> 0 | X30: 0 | Y30: 0
J31: NO APLICA | L31: =IF(C31="","",C31*IF(SIMULADOR!$I$17="INDIVIDUAL",DATOS!$A$41/1000,DATOS!$A$42/1000)) ->  | M31: =IFERROR(C31*SIMULADOR!$I$19/1000,"") ->  | N31: =IFERROR(IF(B31="","",IF(SIMULADOR!$E$15="LIQUIDEZ",F31*16%,IF(SIMULADOR!$E$15="MEJORA_DE_HIPOTECA_Y_LIQUIDEZ",(F31*DATOS!$C$22)*16%,0))),"") ->  | P31: =IF(B31="","",IF(MOD(B31,2)=0,IF(OR(SIMULADOR!$E$15="FOVISSSTE",SIMULADOR!$E$17="APOYO INFONAVIT"),IF(H30<$E$14-G31,0,MIN(SIMULADOR!$E$39*0.1,(DATOS!$S$31))),0),0)) ->  | U31: =IF($K$9=DATOS!$A$23,1,0) -> 0 | V31: =IF($K$9=DATOS!$A$24,1,0) -> 0 | W31: =IF(SUM(U31:V31)=0,SIMULADOR!$M$19,X31*V31+Y31*U31) -> 0 | X31: 0 | Y31: 0
J32: NO APLICA | L32: =IF(C32="","",C32*IF(SIMULADOR!$I$17="INDIVIDUAL",DATOS!$A$41/1000,DATOS!$A$42/1000)) ->  | M32: =IFERROR(C32*SIMULADOR!$I$19/1000,"") ->  | N32: =IFERROR(IF(B32="","",IF(SIMULADOR!$E$15="LIQUIDEZ",F32*16%,IF(SIMULADOR!$E$15="MEJORA_DE_HIPOTECA_Y_LIQUIDEZ",(F32*DATOS!$C$22)*16%,0))),"") ->  | P32: =IF(B32="","",IF(MOD(B32,2)=0,IF(OR(SIMULADOR!$E$15="FOVISSSTE",SIMULADOR!$E$17="APOYO INFONAVIT"),IF(H31<$E$14-G32,0,MIN(SIMULADOR!$E$39*0.1,(DATOS!$S$31))),0),0)) ->  | U32: =IF($K$9=DATOS!$A$23,1,0) -> 0 | V32: =IF($K$9=DATOS!$A$24,1,0) -> 0 | W32: =IF(SUM(U32:V32)=0,SIMULADOR!$M$19,X32*V32+Y32*U32) -> 0 | X32: 0 | Y32: 0
J33: NO APLICA | L33: =IF(C33="","",C33*IF(SIMULADOR!$I$17="INDIVIDUAL",DATOS!$A$41/1000,DATOS!$A$42/1000)) ->  | M33: =IFERROR(C33*SIMULADOR!$I$19/1000,"") ->  | N33: =IFERROR(IF(B33="","",IF(SIMULADOR!$E$15="LIQUIDEZ",F33*16%,IF(SIMULADOR!$E$15="MEJORA_DE_HIPOTECA_Y_LIQUIDEZ",(F33*DATOS!$C$22)*16%,0))),"") ->  | P33: =IF(B33="","",IF(MOD(B33,2)=0,IF(OR(SIMULADOR!$E$15="FOVISSSTE",SIMULADOR!$E$17="APOYO INFONAVIT"),IF(H32<$E$14-G33,0,MIN(SIMULADOR!$E$39*0.1,(DATOS!$S$31))),0),0)) ->  | U33: =IF($K$9=DATOS!$A$23,1,0) -> 0 | V33: =IF($K$9=DATOS!$A$24,1,0) -> 0 | W33: =IF(SUM(U33:V33)=0,SIMULADOR!$M$19,X33*V33+Y33*U33) -> 0 | X33: 0 | Y33: 0
J34: NO APLICA | L34: =IF(C34="","",C34*IF(SIMULADOR!$I$17="INDIVIDUAL",DATOS!$A$41/1000,DATOS!$A$42/1000)) ->  | M34: =IFERROR(C34*SIMULADOR!$I$19/1000,"") ->  | N34: =IFERROR(IF(B34="","",IF(SIMULADOR!$E$15="LIQUIDEZ",F34*16%,IF(SIMULADOR!$E$15="MEJORA_DE_HIPOTECA_Y_LIQUIDEZ",(F34*DATOS!$C$22)*16%,0))),"") ->  | P34: =IF(B34="","",IF(MOD(B34,2)=0,IF(OR(SIMULADOR!$E$15="FOVISSSTE",SIMULADOR!$E$17="APOYO INFONAVIT"),IF(H33<$E$14-G34,0,MIN(SIMULADOR!$E$39*0.1,(DATOS!$S$31))),0),0)) ->  | U34: =IF($K$9=DATOS!$A$23,1,0) -> 0 | V34: =IF($K$9=DATOS!$A$24,1,0) -> 0 | W34: =IF(SUM(U34:V34)=0,SIMULADOR!$M$19,X34*V34+Y34*U34) -> 0 | X34: 0 | Y34: 0
J35: NO APLICA | L35: =IF(C35="","",C35*IF(SIMULADOR!$I$17="INDIVIDUAL",DATOS!$A$41/1000,DATOS!$A$42/1000)) ->  | M35: =IFERROR(C35*SIMULADOR!$I$19/1000,"") ->  | N35: =IFERROR(IF(B35="","",IF(SIMULADOR!$E$15="LIQUIDEZ",F35*16%,IF(SIMULADOR!$E$15="MEJORA_DE_HIPOTECA_Y_LIQUIDEZ",(F35*DATOS!$C$22)*16%,0))),"") ->  | P35: =IF(B35="","",IF(MOD(B35,2)=0,IF(OR(SIMULADOR!$E$15="FOVISSSTE",SIMULADOR!$E$17="APOYO INFONAVIT"),IF(H34<$E$14-G35,0,MIN(SIMULADOR!$E$39*0.1,(DATOS!$S$31))),0),0)) ->  | U35: =IF($K$9=DATOS!$A$23,1,0) -> 0 | V35: =IF($K$9=DATOS!$A$24,1,0) -> 0 | W35: =IF(SUM(U35:V35)=0,SIMULADOR!$M$19,X35*V35+Y35*U35) -> 0 | X35: 0 | Y35: 0
J36: NO APLICA | L36: =IF(C36="","",C36*IF(SIMULADOR!$I$17="INDIVIDUAL",DATOS!$A$41/1000,DATOS!$A$42/1000)) ->  | M36: =IFERROR(C36*SIMULADOR!$I$19/1000,"") ->  | N36: =IFERROR(IF(B36="","",IF(SIMULADOR!$E$15="LIQUIDEZ",F36*16%,IF(SIMULADOR!$E$15="MEJORA_DE_HIPOTECA_Y_LIQUIDEZ",(F36*DATOS!$C$22)*16%,0))),"") ->  | P36: =IF(B36="","",IF(MOD(B36,2)=0,IF(OR(SIMULADOR!$E$15="FOVISSSTE",SIMULADOR!$E$17="APOYO INFONAVIT"),IF(H35<$E$14-G36,0,MIN(SIMULADOR!$E$39*0.1,(DATOS!$S$31))),0),0)) ->  | U36: =IF($K$9=DATOS!$A$23,1,0) -> 0 | V36: =IF($K$9=DATOS!$A$24,1,0) -> 0 | W36: =IF(SUM(U36:V36)=0,SIMULADOR!$M$19,X36*V36+Y36*U36) -> 0 | X36: 0 | Y36: 0
J37: NO APLICA | L37: =IF(C37="","",C37*IF(SIMULADOR!$I$17="INDIVIDUAL",DATOS!$A$41/1000,DATOS!$A$42/1000)) ->  | M37: =IFERROR(C37*SIMULADOR!$I$19/1000,"") ->  | N37: =IFERROR(IF(B37="","",IF(SIMULADOR!$E$15="LIQUIDEZ",F37*16%,IF(SIMULADOR!$E$15="MEJORA_DE_HIPOTECA_Y_LIQUIDEZ",(F37*DATOS!$C$22)*16%,0))),"") ->  | P37: =IF(B37="","",IF(MOD(B37,2)=0,IF(OR(SIMULADOR!$E$15="FOVISSSTE",SIMULADOR!$E$17="APOYO INFONAVIT"),IF(H36<$E$14-G37,0,MIN(SIMULADOR!$E$39*0.1,(DATOS!$S$31))),0),0)) ->  | U37: =IF($K$9=DATOS!$A$23,1,0) -> 0 | V37: =IF($K$9=DATOS!$A$24,1,0) -> 0 | W37: =IF(SUM(U37:V37)=0,SIMULADOR!$M$19,X37*V37+Y37*U37) -> 0 | X37: 0 | Y37: 0
J38: NO APLICA | L38: =IF(C38="","",C38*IF(SIMULADOR!$I$17="INDIVIDUAL",DATOS!$A$41/1000,DATOS!$A$42/1000)) ->  | M38: =IFERROR(C38*SIMULADOR!$I$19/1000,"") ->  | N38: =IFERROR(IF(B38="","",IF(SIMULADOR!$E$15="LIQUIDEZ",F38*16%,IF(SIMULADOR!$E$15="MEJORA_DE_HIPOTECA_Y_LIQUIDEZ",(F38*DATOS!$C$22)*16%,0))),"") ->  | P38: =IF(B38="","",IF(MOD(B38,2)=0,IF(OR(SIMULADOR!$E$15="FOVISSSTE",SIMULADOR!$E$17="APOYO INFONAVIT"),IF(H37<$E$14-G38,0,MIN(SIMULADOR!$E$39*0.1,(DATOS!$S$31))),0),0)) ->  | U38: =IF($K$9=DATOS!$A$23,1,0) -> 0 | V38: =IF($K$9=DATOS!$A$24,1,0) -> 0 | W38: =IF(SUM(U38:V38)=0,SIMULADOR!$M$19,X38*V38+Y38*U38) -> 0 | X38: 0 | Y38: 0
J39: NO APLICA | L39: =IF(C39="","",C39*IF(SIMULADOR!$I$17="INDIVIDUAL",DATOS!$A$41/1000,DATOS!$A$42/1000)) ->  | M39: =IFERROR(C39*SIMULADOR!$I$19/1000,"") ->  | N39: =IFERROR(IF(B39="","",IF(SIMULADOR!$E$15="LIQUIDEZ",F39*16%,IF(SIMULADOR!$E$15="MEJORA_DE_HIPOTECA_Y_LIQUIDEZ",(F39*DATOS!$C$22)*16%,0))),"") ->  | P39: =IF(B39="","",IF(MOD(B39,2)=0,IF(OR(SIMULADOR!$E$15="FOVISSSTE",SIMULADOR!$E$17="APOYO INFONAVIT"),IF(H38<$E$14-G39,0,MIN(SIMULADOR!$E$39*0.1,(DATOS!$S$31))),0),0)) ->  | U39: =IF($K$9=DATOS!$A$23,1,0) -> 0 | V39: =IF($K$9=DATOS!$A$24,1,0) -> 0 | W39: =IF(SUM(U39:V39)=0,SIMULADOR!$M$19,X39*V39+Y39*U39) -> 0 | X39: 0 | Y39: 0
J40: NO APLICA | L40: =IF(C40="","",C40*IF(SIMULADOR!$I$17="INDIVIDUAL",DATOS!$A$41/1000,DATOS!$A$42/1000)) ->  | M40: =IFERROR(C40*SIMULADOR!$I$19/1000,"") ->  | N40: =IFERROR(IF(B40="","",IF(SIMULADOR!$E$15="LIQUIDEZ",F40*16%,IF(SIMULADOR!$E$15="MEJORA_DE_HIPOTECA_Y_LIQUIDEZ",(F40*DATOS!$C$22)*16%,0))),"") ->  | P40: =IF(B40="","",IF(MOD(B40,2)=0,IF(OR(SIMULADOR!$E$15="FOVISSSTE",SIMULADOR!$E$17="APOYO INFONAVIT"),IF(H39<$E$14-G40,0,MIN(SIMULADOR!$E$39*0.1,(DATOS!$S$31))),0),0)) ->  | U40: =IF($K$9=DATOS!$A$23,1,0) -> 0 | V40: =IF($K$9=DATOS!$A$24,1,0) -> 0 | W40: =IF(SUM(U40:V40)=0,SIMULADOR!$M$19,X40*V40+Y40*U40) -> 0 | X40: 0 | Y40: 0
J41: NO APLICA | L41: =IF(C41="","",C41*IF(SIMULADOR!$I$17="INDIVIDUAL",DATOS!$A$41/1000,DATOS!$A$42/1000)) ->  | M41: =IFERROR(C41*SIMULADOR!$I$19/1000,"") ->  | N41: =IFERROR(IF(B41="","",IF(SIMULADOR!$E$15="LIQUIDEZ",F41*16%,IF(SIMULADOR!$E$15="MEJORA_DE_HIPOTECA_Y_LIQUIDEZ",(F41*DATOS!$C$22)*16%,0))),"") ->  | P41: =IF(B41="","",IF(MOD(B41,2)=0,IF(OR(SIMULADOR!$E$15="FOVISSSTE",SIMULADOR!$E$17="APOYO INFONAVIT"),IF(H40<$E$14-G41,0,MIN(SIMULADOR!$E$39*0.1,(DATOS!$S$31))),0),0)) ->  | U41: =IF($K$9=DATOS!$A$23,1,0) -> 0 | V41: =IF($K$9=DATOS!$A$24,1,0) -> 0 | W41: =IF(SUM(U41:V41)=0,SIMULADOR!$M$19,X41*V41+Y41*U41) -> 0 | X41: 0 | Y41: 0
J42: NO APLICA | L42: =IF(C42="","",C42*IF(SIMULADOR!$I$17="INDIVIDUAL",DATOS!$A$41/1000,DATOS!$A$42/1000)) ->  | M42: =IFERROR(C42*SIMULADOR!$I$19/1000,"") ->  | N42: =IFERROR(IF(B42="","",IF(SIMULADOR!$E$15="LIQUIDEZ",F42*16%,IF(SIMULADOR!$E$15="MEJORA_DE_HIPOTECA_Y_LIQUIDEZ",(F42*DATOS!$C$22)*16%,0))),"") ->  | P42: =IF(B42="","",IF(MOD(B42,2)=0,IF(OR(SIMULADOR!$E$15="FOVISSSTE",SIMULADOR!$E$17="APOYO INFONAVIT"),IF(H41<$E$14-G42,0,MIN(SIMULADOR!$E$39*0.1,(DATOS!$S$31))),0),0)) ->  | U42: =IF($K$9=DATOS!$A$23,1,0) -> 0 | V42: =IF($K$9=DATOS!$A$24,1,0) -> 0 | W42: =IF(SUM(U42:V42)=0,SIMULADOR!$M$19,X42*V42+Y42*U42) -> 0 | X42: 0 | Y42: 0
J43: NO APLICA | L43: =IF(C43="","",C43*IF(SIMULADOR!$I$17="INDIVIDUAL",DATOS!$A$41/1000,DATOS!$A$42/1000)) ->  | M43: =IFERROR(C43*SIMULADOR!$I$19/1000,"") ->  | N43: =IFERROR(IF(B43="","",IF(SIMULADOR!$E$15="LIQUIDEZ",F43*16%,IF(SIMULADOR!$E$15="MEJORA_DE_HIPOTECA_Y_LIQUIDEZ",(F43*DATOS!$C$22)*16%,0))),"") ->  | P43: =IF(B43="","",IF(MOD(B43,2)=0,IF(OR(SIMULADOR!$E$15="FOVISSSTE",SIMULADOR!$E$17="APOYO INFONAVIT"),IF(H42<$E$14-G43,0,MIN(SIMULADOR!$E$39*0.1,(DATOS!$S$31))),0),0)) ->  | U43: =IF($K$9=DATOS!$A$23,1,0) -> 0 | V43: =IF($K$9=DATOS!$A$24,1,0) -> 0 | W43: =IF(SUM(U43:V43)=0,SIMULADOR!$M$19,X43*V43+Y43*U43) -> 0 | X43: 0 | Y43: 0
J44: NO APLICA | L44: =IF(C44="","",C44*IF(SIMULADOR!$I$17="INDIVIDUAL",DATOS!$A$41/1000,DATOS!$A$42/1000)) ->  | M44: =IFERROR(C44*SIMULADOR!$I$19/1000,"") ->  | N44: =IFERROR(IF(B44="","",IF(SIMULADOR!$E$15="LIQUIDEZ",F44*16%,IF(SIMULADOR!$E$15="MEJORA_DE_HIPOTECA_Y_LIQUIDEZ",(F44*DATOS!$C$22)*16%,0))),"") ->  | P44: =IF(B44="","",IF(MOD(B44,2)=0,IF(OR(SIMULADOR!$E$15="FOVISSSTE",SIMULADOR!$E$17="APOYO INFONAVIT"),IF(H43<$E$14-G44,0,MIN(SIMULADOR!$E$39*0.1,(DATOS!$S$31))),0),0)) ->  | U44: =IF($K$9=DATOS!$A$23,1,0) -> 0 | V44: =IF($K$9=DATOS!$A$24,1,0) -> 0 | W44: =IF(SUM(U44:V44)=0,SIMULADOR!$M$19,X44*V44+Y44*U44) -> 0 | X44: 0 | Y44: 0
J45: NO APLICA | L45: =IF(C45="","",C45*IF(SIMULADOR!$I$17="INDIVIDUAL",DATOS!$A$41/1000,DATOS!$A$42/1000)) ->  | M45: =IFERROR(C45*SIMULADOR!$I$19/1000,"") ->  | N45: =IFERROR(IF(B45="","",IF(SIMULADOR!$E$15="LIQUIDEZ",F45*16%,IF(SIMULADOR!$E$15="MEJORA_DE_HIPOTECA_Y_LIQUIDEZ",(F45*DATOS!$C$22)*16%,0))),"") ->  | P45: =IF(B45="","",IF(MOD(B45,2)=0,IF(OR(SIMULADOR!$E$15="FOVISSSTE",SIMULADOR!$E$17="APOYO INFONAVIT"),IF(H44<$E$14-G45,0,MIN(SIMULADOR!$E$39*0.1,(DATOS!$S$31))),0),0)) ->  | U45: =IF($K$9=DATOS!$A$23,1,0) -> 0 | V45: =IF($K$9=DATOS!$A$24,1,0) -> 0 | W45: =IF(SUM(U45:V45)=0,SIMULADOR!$M$19,X45*V45+Y45*U45) -> 0 | X45: 0 | Y45: 0
J46: NO APLICA | L46: =IF(C46="","",C46*IF(SIMULADOR!$I$17="INDIVIDUAL",DATOS!$A$41/1000,DATOS!$A$42/1000)) ->  | M46: =IFERROR(C46*SIMULADOR!$I$19/1000,"") ->  | N46: =IFERROR(IF(B46="","",IF(SIMULADOR!$E$15="LIQUIDEZ",F46*16%,IF(SIMULADOR!$E$15="MEJORA_DE_HIPOTECA_Y_LIQUIDEZ",(F46*DATOS!$C$22)*16%,0))),"") ->  | P46: =IF(B46="","",IF(MOD(B46,2)=0,IF(OR(SIMULADOR!$E$15="FOVISSSTE",SIMULADOR!$E$17="APOYO INFONAVIT"),IF(H45<$E$14-G46,0,MIN(SIMULADOR!$E$39*0.1,(DATOS!$S$31))),0),0)) ->  | U46: =IF($K$9=DATOS!$A$23,1,0) -> 0 | V46: =IF($K$9=DATOS!$A$24,1,0) -> 0 | W46: =IF(SUM(U46:V46)=0,SIMULADOR!$M$19,X46*V46+Y46*U46) -> 0 | X46: 0 | Y46: 0
J47: NO APLICA | L47: =IF(C47="","",C47*IF(SIMULADOR!$I$17="INDIVIDUAL",DATOS!$A$41/1000,DATOS!$A$42/1000)) ->  | M47: =IFERROR(C47*SIMULADOR!$I$19/1000,"") ->  | N47: =IFERROR(IF(B47="","",IF(SIMULADOR!$E$15="LIQUIDEZ",F47*16%,IF(SIMULADOR!$E$15="MEJORA_DE_HIPOTECA_Y_LIQUIDEZ",(F47*DATOS!$C$22)*16%,0))),"") ->  | P47: =IF(B47="","",IF(MOD(B47,2)=0,IF(OR(SIMULADOR!$E$15="FOVISSSTE",SIMULADOR!$E$17="APOYO INFONAVIT"),IF(H46<$E$14-G47,0,MIN(SIMULADOR!$E$39*0.1,(DATOS!$S$31))),0),0)) ->  | U47: =IF($K$9=DATOS!$A$23,1,0) -> 0 | V47: =IF($K$9=DATOS!$A$24,1,0) -> 0 | W47: =IF(SUM(U47:V47)=0,SIMULADOR!$M$19,X47*V47+Y47*U47) -> 0 | X47: 0 | Y47: 0
J48: NO APLICA | L48: =IF(C48="","",C48*IF(SIMULADOR!$I$17="INDIVIDUAL",DATOS!$A$41/1000,DATOS!$A$42/1000)) ->  | M48: =IFERROR(C48*SIMULADOR!$I$19/1000,"") ->  | N48: =IFERROR(IF(B48="","",IF(SIMULADOR!$E$15="LIQUIDEZ",F48*16%,IF(SIMULADOR!$E$15="MEJORA_DE_HIPOTECA_Y_LIQUIDEZ",(F48*DATOS!$C$22)*16%,0))),"") ->  | P48: =IF(B48="","",IF(MOD(B48,2)=0,IF(OR(SIMULADOR!$E$15="FOVISSSTE",SIMULADOR!$E$17="APOYO INFONAVIT"),IF(H47<$E$14-G48,0,MIN(SIMULADOR!$E$39*0.1,(DATOS!$S$31))),0),0)) ->  | U48: =IF($K$9=DATOS!$A$23,1,0) -> 0 | V48: =IF($K$9=DATOS!$A$24,1,0) -> 0 | W48: =IF(SUM(U48:V48)=0,SIMULADOR!$M$19,X48*V48+Y48*U48) -> 0 | X48: 0 | Y48: 0
J49: NO APLICA | L49: =IF(C49="","",C49*IF(SIMULADOR!$I$17="INDIVIDUAL",DATOS!$A$41/1000,DATOS!$A$42/1000)) ->  | M49: =IFERROR(C49*SIMULADOR!$I$19/1000,"") ->  | N49: =IFERROR(IF(B49="","",IF(SIMULADOR!$E$15="LIQUIDEZ",F49*16%,IF(SIMULADOR!$E$15="MEJORA_DE_HIPOTECA_Y_LIQUIDEZ",(F49*DATOS!$C$22)*16%,0))),"") ->  | P49: =IF(B49="","",IF(MOD(B49,2)=0,IF(OR(SIMULADOR!$E$15="FOVISSSTE",SIMULADOR!$E$17="APOYO INFONAVIT"),IF(H48<$E$14-G49,0,MIN(SIMULADOR!$E$39*0.1,(DATOS!$S$31))),0),0)) ->  | U49: =IF($K$9=DATOS!$A$23,1,0) -> 0 | V49: =IF($K$9=DATOS!$A$24,1,0) -> 0 | W49: =IF(SUM(U49:V49)=0,SIMULADOR!$M$19,X49*V49+Y49*U49) -> 0 | X49: 0 | Y49: 0
J50: NO APLICA | L50: =IF(C50="","",C50*IF(SIMULADOR!$I$17="INDIVIDUAL",DATOS!$A$41/1000,DATOS!$A$42/1000)) ->  | M50: =IFERROR(C50*SIMULADOR!$I$19/1000,"") ->  | N50: =IFERROR(IF(B50="","",IF(SIMULADOR!$E$15="LIQUIDEZ",F50*16%,IF(SIMULADOR!$E$15="MEJORA_DE_HIPOTECA_Y_LIQUIDEZ",(F50*DATOS!$C$22)*16%,0))),"") ->  | P50: =IF(B50="","",IF(MOD(B50,2)=0,IF(OR(SIMULADOR!$E$15="FOVISSSTE",SIMULADOR!$E$17="APOYO INFONAVIT"),IF(H49<$E$14-G50,0,MIN(SIMULADOR!$E$39*0.1,(DATOS!$S$31))),0),0)) ->  | U50: =IF($K$9=DATOS!$A$23,1,0) -> 0 | V50: =IF($K$9=DATOS!$A$24,1,0) -> 0 | W50: =IF(SUM(U50:V50)=0,SIMULADOR!$M$19,X50*V50+Y50*U50) -> 0 | X50: 0 | Y50: 0
J51: NO APLICA | L51: =IF(C51="","",C51*IF(SIMULADOR!$I$17="INDIVIDUAL",DATOS!$A$41/1000,DATOS!$A$42/1000)) ->  | M51: =IFERROR(C51*SIMULADOR!$I$19/1000,"") ->  | N51: =IFERROR(IF(B51="","",IF(SIMULADOR!$E$15="LIQUIDEZ",F51*16%,IF(SIMULADOR!$E$15="MEJORA_DE_HIPOTECA_Y_LIQUIDEZ",(F51*DATOS!$C$22)*16%,0))),"") ->  | P51: =IF(B51="","",IF(MOD(B51,2)=0,IF(OR(SIMULADOR!$E$15="FOVISSSTE",SIMULADOR!$E$17="APOYO INFONAVIT"),IF(H50<$E$14-G51,0,MIN(SIMULADOR!$E$39*0.1,(DATOS!$S$31))),0),0)) ->  | U51: =IF($K$9=DATOS!$A$23,1,0) -> 0 | V51: =IF($K$9=DATOS!$A$24,1,0) -> 0 | W51: =IF(SUM(U51:V51)=0,SIMULADOR!$M$19,X51*V51+Y51*U51) -> 0 | X51: 0 | Y51: 0
J52: NO APLICA | L52: =IF(C52="","",C52*IF(SIMULADOR!$I$17="INDIVIDUAL",DATOS!$A$41/1000,DATOS!$A$42/1000)) ->  | M52: =IFERROR(C52*SIMULADOR!$I$19/1000,"") ->  | N52: =IFERROR(IF(B52="","",IF(SIMULADOR!$E$15="LIQUIDEZ",F52*16%,IF(SIMULADOR!$E$15="MEJORA_DE_HIPOTECA_Y_LIQUIDEZ",(F52*DATOS!$C$22)*16%,0))),"") ->  | P52: =IF(B52="","",IF(MOD(B52,2)=0,IF(OR(SIMULADOR!$E$15="FOVISSSTE",SIMULADOR!$E$17="APOYO INFONAVIT"),IF(H51<$E$14-G52,0,MIN(SIMULADOR!$E$39*0.1,(DATOS!$S$31))),0),0)) ->  | U52: =IF($K$9=DATOS!$A$23,1,0) -> 0 | V52: =IF($K$9=DATOS!$A$24,1,0) -> 0 | W52: =IF(SUM(U52:V52)=0,SIMULADOR!$M$19,X52*V52+Y52*U52) -> 0 | X52: 0 | Y52: 0
J53: NO APLICA | L53: =IF(C53="","",C53*IF(SIMULADOR!$I$17="INDIVIDUAL",DATOS!$A$41/1000,DATOS!$A$42/1000)) ->  | M53: =IFERROR(C53*SIMULADOR!$I$19/1000,"") ->  | N53: =IFERROR(IF(B53="","",IF(SIMULADOR!$E$15="LIQUIDEZ",F53*16%,IF(SIMULADOR!$E$15="MEJORA_DE_HIPOTECA_Y_LIQUIDEZ",(F53*DATOS!$C$22)*16%,0))),"") ->  | P53: =IF(B53="","",IF(MOD(B53,2)=0,IF(OR(SIMULADOR!$E$15="FOVISSSTE",SIMULADOR!$E$17="APOYO INFONAVIT"),IF(H52<$E$14-G53,0,MIN(SIMULADOR!$E$39*0.1,(DATOS!$S$31))),0),0)) ->  | U53: =IF($K$9=DATOS!$A$23,1,0) -> 0 | V53: =IF($K$9=DATOS!$A$24,1,0) -> 0 | W53: =IF(SUM(U53:V53)=0,SIMULADOR!$M$19,X53*V53+Y53*U53) -> 0 | X53: 0 | Y53: 0
J54: NO APLICA | L54: =IF(C54="","",C54*IF(SIMULADOR!$I$17="INDIVIDUAL",DATOS!$A$41/1000,DATOS!$A$42/1000)) ->  | M54: =IFERROR(C54*SIMULADOR!$I$19/1000,"") ->  | N54: =IFERROR(IF(B54="","",IF(SIMULADOR!$E$15="LIQUIDEZ",F54*16%,IF(SIMULADOR!$E$15="MEJORA_DE_HIPOTECA_Y_LIQUIDEZ",(F54*DATOS!$C$22)*16%,0))),"") ->  | P54: =IF(B54="","",IF(MOD(B54,2)=0,IF(OR(SIMULADOR!$E$15="FOVISSSTE",SIMULADOR!$E$17="APOYO INFONAVIT"),IF(H53<$E$14-G54,0,MIN(SIMULADOR!$E$39*0.1,(DATOS!$S$31))),0),0)) ->  | U54: =IF($K$9=DATOS!$A$23,1,0) -> 0 | V54: =IF($K$9=DATOS!$A$24,1,0) -> 0 | W54: =IF(SUM(U54:V54)=0,SIMULADOR!$M$19,X54*V54+Y54*U54) -> 0 | X54: 0 | Y54: 0
J55: NO APLICA | L55: =IF(C55="","",C55*IF(SIMULADOR!$I$17="INDIVIDUAL",DATOS!$A$41/1000,DATOS!$A$42/1000)) ->  | M55: =IFERROR(C55*SIMULADOR!$I$19/1000,"") ->  | N55: =IFERROR(IF(B55="","",IF(SIMULADOR!$E$15="LIQUIDEZ",F55*16%,IF(SIMULADOR!$E$15="MEJORA_DE_HIPOTECA_Y_LIQUIDEZ",(F55*DATOS!$C$22)*16%,0))),"") ->  | P55: =IF(B55="","",IF(MOD(B55,2)=0,IF(OR(SIMULADOR!$E$15="FOVISSSTE",SIMULADOR!$E$17="APOYO INFONAVIT"),IF(H54<$E$14-G55,0,MIN(SIMULADOR!$E$39*0.1,(DATOS!$S$31))),0),0)) ->  | U55: =IF($K$9=DATOS!$A$23,1,0) -> 0 | V55: =IF($K$9=DATOS!$A$24,1,0) -> 0 | W55: =IF(SUM(U55:V55)=0,SIMULADOR!$M$19,X55*V55+Y55*U55) -> 0 | X55: 0 | Y55: 0
J56: NO APLICA | L56: =IF(C56="","",C56*IF(SIMULADOR!$I$17="INDIVIDUAL",DATOS!$A$41/1000,DATOS!$A$42/1000)) ->  | M56: =IFERROR(C56*SIMULADOR!$I$19/1000,"") ->  | N56: =IFERROR(IF(B56="","",IF(SIMULADOR!$E$15="LIQUIDEZ",F56*16%,IF(SIMULADOR!$E$15="MEJORA_DE_HIPOTECA_Y_LIQUIDEZ",(F56*DATOS!$C$22)*16%,0))),"") ->  | P56: =IF(B56="","",IF(MOD(B56,2)=0,IF(OR(SIMULADOR!$E$15="FOVISSSTE",SIMULADOR!$E$17="APOYO INFONAVIT"),IF(H55<$E$14-G56,0,MIN(SIMULADOR!$E$39*0.1,(DATOS!$S$31))),0),0)) ->  | U56: =IF($K$9=DATOS!$A$23,1,0) -> 0 | V56: =IF($K$9=DATOS!$A$24,1,0) -> 0 | W56: =IF(SUM(U56:V56)=0,SIMULADOR!$M$19,X56*V56+Y56*U56) -> 0 | X56: 0 | Y56: 0
J57: NO APLICA | L57: =IF(C57="","",C57*IF(SIMULADOR!$I$17="INDIVIDUAL",DATOS!$A$41/1000,DATOS!$A$42/1000)) ->  | M57: =IFERROR(C57*SIMULADOR!$I$19/1000,"") ->  | N57: =IFERROR(IF(B57="","",IF(SIMULADOR!$E$15="LIQUIDEZ",F57*16%,IF(SIMULADOR!$E$15="MEJORA_DE_HIPOTECA_Y_LIQUIDEZ",(F57*DATOS!$C$22)*16%,0))),"") ->  | P57: =IF(B57="","",IF(MOD(B57,2)=0,IF(OR(SIMULADOR!$E$15="FOVISSSTE",SIMULADOR!$E$17="APOYO INFONAVIT"),IF(H56<$E$14-G57,0,MIN(SIMULADOR!$E$39*0.1,(DATOS!$S$31))),0),0)) ->  | U57: =IF($K$9=DATOS!$A$23,1,0) -> 0 | V57: =IF($K$9=DATOS!$A$24,1,0) -> 0 | W57: =IF(SUM(U57:V57)=0,SIMULADOR!$M$19,X57*V57+Y57*U57) -> 0 | X57: 0 | Y57: 0
J58: NO APLICA | L58: =IF(C58="","",C58*IF(SIMULADOR!$I$17="INDIVIDUAL",DATOS!$A$41/1000,DATOS!$A$42/1000)) ->  | M58: =IFERROR(C58*SIMULADOR!$I$19/1000,"") ->  | N58: =IFERROR(IF(B58="","",IF(SIMULADOR!$E$15="LIQUIDEZ",F58*16%,IF(SIMULADOR!$E$15="MEJORA_DE_HIPOTECA_Y_LIQUIDEZ",(F58*DATOS!$C$22)*16%,0))),"") ->  | P58: =IF(B58="","",IF(MOD(B58,2)=0,IF(OR(SIMULADOR!$E$15="FOVISSSTE",SIMULADOR!$E$17="APOYO INFONAVIT"),IF(H57<$E$14-G58,0,MIN(SIMULADOR!$E$39*0.1,(DATOS!$S$31))),0),0)) ->  | U58: =IF($K$9=DATOS!$A$23,1,0) -> 0 | V58: =IF($K$9=DATOS!$A$24,1,0) -> 0 | W58: =IF(SUM(U58:V58)=0,SIMULADOR!$M$19,X58*V58+Y58*U58) -> 0 | X58: 0 | Y58: 0
J59: NO APLICA | L59: =IF(C59="","",C59*IF(SIMULADOR!$I$17="INDIVIDUAL",DATOS!$A$41/1000,DATOS!$A$42/1000)) ->  | M59: =IFERROR(C59*SIMULADOR!$I$19/1000,"") ->  | N59: =IFERROR(IF(B59="","",IF(SIMULADOR!$E$15="LIQUIDEZ",F59*16%,IF(SIMULADOR!$E$15="MEJORA_DE_HIPOTECA_Y_LIQUIDEZ",(F59*DATOS!$C$22)*16%,0))),"") ->  | P59: =IF(B59="","",IF(MOD(B59,2)=0,IF(OR(SIMULADOR!$E$15="FOVISSSTE",SIMULADOR!$E$17="APOYO INFONAVIT"),IF(H58<$E$14-G59,0,MIN(SIMULADOR!$E$39*0.1,(DATOS!$S$31))),0),0)) ->  | U59: =IF($K$9=DATOS!$A$23,1,0) -> 0 | V59: =IF($K$9=DATOS!$A$24,1,0) -> 0 | W59: =IF(SUM(U59:V59)=0,SIMULADOR!$M$19,X59*V59+Y59*U59) -> 0 | X59: 0 | Y59: 0
J60: NO APLICA | L60: =IF(C60="","",C60*IF(SIMULADOR!$I$17="INDIVIDUAL",DATOS!$A$41/1000,DATOS!$A$42/1000)) ->  | M60: =IFERROR(C60*SIMULADOR!$I$19/1000,"") ->  | N60: =IFERROR(IF(B60="","",IF(SIMULADOR!$E$15="LIQUIDEZ",F60*16%,IF(SIMULADOR!$E$15="MEJORA_DE_HIPOTECA_Y_LIQUIDEZ",(F60*DATOS!$C$22)*16%,0))),"") ->  | P60: =IF(B60="","",IF(MOD(B60,2)=0,IF(OR(SIMULADOR!$E$15="FOVISSSTE",SIMULADOR!$E$17="APOYO INFONAVIT"),IF(H59<$E$14-G60,0,MIN(SIMULADOR!$E$39*0.1,(DATOS!$S$31))),0),0)) ->  | U60: =IF($K$9=DATOS!$A$23,1,0) -> 0 | V60: =IF($K$9=DATOS!$A$24,1,0) -> 0 | W60: =IF(SUM(U60:V60)=0,SIMULADOR!$M$19,X60*V60+Y60*U60) -> 0 | X60: 0 | Y60: 0
J61: NO APLICA | L61: =IF(C61="","",C61*IF(SIMULADOR!$I$17="INDIVIDUAL",DATOS!$A$41/1000,DATOS!$A$42/1000)) ->  | M61: =IFERROR(C61*SIMULADOR!$I$19/1000,"") ->  | N61: =IFERROR(IF(B61="","",IF(SIMULADOR!$E$15="LIQUIDEZ",F61*16%,IF(SIMULADOR!$E$15="MEJORA_DE_HIPOTECA_Y_LIQUIDEZ",(F61*DATOS!$C$22)*16%,0))),"") ->  | P61: =IF(B61="","",IF(MOD(B61,2)=0,IF(OR(SIMULADOR!$E$15="FOVISSSTE",SIMULADOR!$E$17="APOYO INFONAVIT"),IF(H60<$E$14-G61,0,MIN(SIMULADOR!$E$39*0.1,(DATOS!$S$31))),0),0)) ->  | U61: =IF($K$9=DATOS!$A$23,1,0) -> 0 | V61: =IF($K$9=DATOS!$A$24,1,0) -> 0 | W61: =IF(SUM(U61:V61)=0,SIMULADOR!$M$19,X61*V61+Y61*U61) -> 0 | X61: 0 | Y61: 0
J62: NO APLICA | L62: =IF(C62="","",C62*IF(SIMULADOR!$I$17="INDIVIDUAL",DATOS!$A$41/1000,DATOS!$A$42/1000)) ->  | M62: =IFERROR(C62*SIMULADOR!$I$19/1000,"") ->  | N62: =IFERROR(IF(B62="","",IF(SIMULADOR!$E$15="LIQUIDEZ",F62*16%,IF(SIMULADOR!$E$15="MEJORA_DE_HIPOTECA_Y_LIQUIDEZ",(F62*DATOS!$C$22)*16%,0))),"") ->  | P62: =IF(B62="","",IF(MOD(B62,2)=0,IF(OR(SIMULADOR!$E$15="FOVISSSTE",SIMULADOR!$E$17="APOYO INFONAVIT"),IF(H61<$E$14-G62,0,MIN(SIMULADOR!$E$39*0.1,(DATOS!$S$31))),0),0)) ->  | U62: =IF($K$9=DATOS!$A$23,1,0) -> 0 | V62: =IF($K$9=DATOS!$A$24,1,0) -> 0 | W62: =IF(SUM(U62:V62)=0,SIMULADOR!$M$19,X62*V62+Y62*U62) -> 0 | X62: 0 | Y62: 0
J63: NO APLICA | L63: =IF(C63="","",C63*IF(SIMULADOR!$I$17="INDIVIDUAL",DATOS!$A$41/1000,DATOS!$A$42/1000)) ->  | M63: =IFERROR(C63*SIMULADOR!$I$19/1000,"") ->  | N63: =IFERROR(IF(B63="","",IF(SIMULADOR!$E$15="LIQUIDEZ",F63*16%,IF(SIMULADOR!$E$15="MEJORA_DE_HIPOTECA_Y_LIQUIDEZ",(F63*DATOS!$C$22)*16%,0))),"") ->  | P63: =IF(B63="","",IF(MOD(B63,2)=0,IF(OR(SIMULADOR!$E$15="FOVISSSTE",SIMULADOR!$E$17="APOYO INFONAVIT"),IF(H62<$E$14-G63,0,MIN(SIMULADOR!$E$39*0.1,(DATOS!$S$31))),0),0)) ->  | U63: =IF($K$9=DATOS!$A$23,1,0) -> 0 | V63: =IF($K$9=DATOS!$A$24,1,0) -> 0 | W63: =IF(SUM(U63:V63)=0,SIMULADOR!$M$19,X63*V63+Y63*U63) -> 0 | X63: 0 | Y63: 0
J64: NO APLICA | L64: =IF(C64="","",C64*IF(SIMULADOR!$I$17="INDIVIDUAL",DATOS!$A$41/1000,DATOS!$A$42/1000)) ->  | M64: =IFERROR(C64*SIMULADOR!$I$19/1000,"") ->  | N64: =IFERROR(IF(B64="","",IF(SIMULADOR!$E$15="LIQUIDEZ",F64*16%,IF(SIMULADOR!$E$15="MEJORA_DE_HIPOTECA_Y_LIQUIDEZ",(F64*DATOS!$C$22)*16%,0))),"") ->  | P64: =IF(B64="","",IF(MOD(B64,2)=0,IF(OR(SIMULADOR!$E$15="FOVISSSTE",SIMULADOR!$E$17="APOYO INFONAVIT"),IF(H63<$E$14-G64,0,MIN(SIMULADOR!$E$39*0.1,(DATOS!$S$31))),0),0)) ->  | U64: =IF($K$9=DATOS!$A$23,1,0) -> 0 | V64: =IF($K$9=DATOS!$A$24,1,0) -> 0 | W64: =IF(SUM(U64:V64)=0,SIMULADOR!$M$19,X64*V64+Y64*U64) -> 0 | X64: 0 | Y64: 0
J65: NO APLICA | L65: =IF(C65="","",C65*IF(SIMULADOR!$I$17="INDIVIDUAL",DATOS!$A$41/1000,DATOS!$A$42/1000)) ->  | M65: =IFERROR(C65*SIMULADOR!$I$19/1000,"") ->  | N65: =IFERROR(IF(B65="","",IF(SIMULADOR!$E$15="LIQUIDEZ",F65*16%,IF(SIMULADOR!$E$15="MEJORA_DE_HIPOTECA_Y_LIQUIDEZ",(F65*DATOS!$C$22)*16%,0))),"") ->  | P65: =IF(B65="","",IF(MOD(B65,2)=0,IF(OR(SIMULADOR!$E$15="FOVISSSTE",SIMULADOR!$E$17="APOYO INFONAVIT"),IF(H64<$E$14-G65,0,MIN(SIMULADOR!$E$39*0.1,(DATOS!$S$31))),0),0)) ->  | U65: =IF($K$9=DATOS!$A$23,1,0) -> 0 | V65: =IF($K$9=DATOS!$A$24,1,0) -> 0 | W65: =IF(SUM(U65:V65)=0,SIMULADOR!$M$19,X65*V65+Y65*U65) -> 0 | X65: 0 | Y65: 0
J66: NO APLICA | L66: =IF(C66="","",C66*IF(SIMULADOR!$I$17="INDIVIDUAL",DATOS!$A$41/1000,DATOS!$A$42/1000)) ->  | M66: =IFERROR(C66*SIMULADOR!$I$19/1000,"") ->  | N66: =IFERROR(IF(B66="","",IF(SIMULADOR!$E$15="LIQUIDEZ",F66*16%,IF(SIMULADOR!$E$15="MEJORA_DE_HIPOTECA_Y_LIQUIDEZ",(F66*DATOS!$C$22)*16%,0))),"") ->  | P66: =IF(B66="","",IF(MOD(B66,2)=0,IF(OR(SIMULADOR!$E$15="FOVISSSTE",SIMULADOR!$E$17="APOYO INFONAVIT"),IF(H65<$E$14-G66,0,MIN(SIMULADOR!$E$39*0.1,(DATOS!$S$31))),0),0)) ->  | U66: =IF($K$9=DATOS!$A$23,1,0) -> 0 | V66: =IF($K$9=DATOS!$A$24,1,0) -> 0 | W66: =IF(SUM(U66:V66)=0,SIMULADOR!$M$19,X66*V66+Y66*U66) -> 0 | X66: 0 | Y66: 0
J67: NO APLICA | L67: =IF(C67="","",C67*IF(SIMULADOR!$I$17="INDIVIDUAL",DATOS!$A$41/1000,DATOS!$A$42/1000)) ->  | M67: =IFERROR(C67*SIMULADOR!$I$19/1000,"") ->  | N67: =IFERROR(IF(B67="","",IF(SIMULADOR!$E$15="LIQUIDEZ",F67*16%,IF(SIMULADOR!$E$15="MEJORA_DE_HIPOTECA_Y_LIQUIDEZ",(F67*DATOS!$C$22)*16%,0))),"") ->  | P67: =IF(B67="","",IF(MOD(B67,2)=0,IF(OR(SIMULADOR!$E$15="FOVISSSTE",SIMULADOR!$E$17="APOYO INFONAVIT"),IF(H66<$E$14-G67,0,MIN(SIMULADOR!$E$39*0.1,(DATOS!$S$31))),0),0)) ->  | U67: =IF($K$9=DATOS!$A$23,1,0) -> 0 | V67: =IF($K$9=DATOS!$A$24,1,0) -> 0 | W67: =IF(SUM(U67:V67)=0,SIMULADOR!$M$19,X67*V67+Y67*U67) -> 0 | X67: 0 | Y67: 0
J68: NO APLICA | L68: =IF(C68="","",C68*IF(SIMULADOR!$I$17="INDIVIDUAL",DATOS!$A$41/1000,DATOS!$A$42/1000)) ->  | M68: =IFERROR(C68*SIMULADOR!$I$19/1000,"") ->  | N68: =IFERROR(IF(B68="","",IF(SIMULADOR!$E$15="LIQUIDEZ",F68*16%,IF(SIMULADOR!$E$15="MEJORA_DE_HIPOTECA_Y_LIQUIDEZ",(F68*DATOS!$C$22)*16%,0))),"") ->  | P68: =IF(B68="","",IF(MOD(B68,2)=0,IF(OR(SIMULADOR!$E$15="FOVISSSTE",SIMULADOR!$E$17="APOYO INFONAVIT"),IF(H67<$E$14-G68,0,MIN(SIMULADOR!$E$39*0.1,(DATOS!$S$31))),0),0)) ->  | U68: =IF($K$9=DATOS!$A$23,1,0) -> 0 | V68: =IF($K$9=DATOS!$A$24,1,0) -> 0 | W68: =IF(SUM(U68:V68)=0,SIMULADOR!$M$19,X68*V68+Y68*U68) -> 0 | X68: 0 | Y68: 0
J69: NO APLICA | L69: =IF(C69="","",C69*IF(SIMULADOR!$I$17="INDIVIDUAL",DATOS!$A$41/1000,DATOS!$A$42/1000)) ->  | M69: =IFERROR(C69*SIMULADOR!$I$19/1000,"") ->  | N69: =IFERROR(IF(B69="","",IF(SIMULADOR!$E$15="LIQUIDEZ",F69*16%,IF(SIMULADOR!$E$15="MEJORA_DE_HIPOTECA_Y_LIQUIDEZ",(F69*DATOS!$C$22)*16%,0))),"") ->  | P69: =IF(B69="","",IF(MOD(B69,2)=0,IF(OR(SIMULADOR!$E$15="FOVISSSTE",SIMULADOR!$E$17="APOYO INFONAVIT"),IF(H68<$E$14-G69,0,MIN(SIMULADOR!$E$39*0.1,(DATOS!$S$31))),0),0)) ->  | U69: =IF($K$9=DATOS!$A$23,1,0) -> 0 | V69: =IF($K$9=DATOS!$A$24,1,0) -> 0 | W69: =IF(SUM(U69:V69)=0,SIMULADOR!$M$19,X69*V69+Y69*U69) -> 0 | X69: 0 | Y69: 0
J70: NO APLICA | L70: =IF(C70="","",C70*IF(SIMULADOR!$I$17="INDIVIDUAL",DATOS!$A$41/1000,DATOS!$A$42/1000)) ->  | M70: =IFERROR(C70*SIMULADOR!$I$19/1000,"") ->  | N70: =IFERROR(IF(B70="","",IF(SIMULADOR!$E$15="LIQUIDEZ",F70*16%,IF(SIMULADOR!$E$15="MEJORA_DE_HIPOTECA_Y_LIQUIDEZ",(F70*DATOS!$C$22)*16%,0))),"") ->  | P70: =IF(B70="","",IF(MOD(B70,2)=0,IF(OR(SIMULADOR!$E$15="FOVISSSTE",SIMULADOR!$E$17="APOYO INFONAVIT"),IF(H69<$E$14-G70,0,MIN(SIMULADOR!$E$39*0.1,(DATOS!$S$31))),0),0)) ->  | U70: =IF($K$9=DATOS!$A$23,1,0) -> 0 | V70: =IF($K$9=DATOS!$A$24,1,0) -> 0 | W70: =IF(SUM(U70:V70)=0,SIMULADOR!$M$19,X70*V70+Y70*U70) -> 0 | X70: 0 | Y70: 0
J71: NO APLICA | L71: =IF(C71="","",C71*IF(SIMULADOR!$I$17="INDIVIDUAL",DATOS!$A$41/1000,DATOS!$A$42/1000)) ->  | M71: =IFERROR(C71*SIMULADOR!$I$19/1000,"") ->  | N71: =IFERROR(IF(B71="","",IF(SIMULADOR!$E$15="LIQUIDEZ",F71*16%,IF(SIMULADOR!$E$15="MEJORA_DE_HIPOTECA_Y_LIQUIDEZ",(F71*DATOS!$C$22)*16%,0))),"") ->  | P71: =IF(B71="","",IF(MOD(B71,2)=0,IF(OR(SIMULADOR!$E$15="FOVISSSTE",SIMULADOR!$E$17="APOYO INFONAVIT"),IF(H70<$E$14-G71,0,MIN(SIMULADOR!$E$39*0.1,(DATOS!$S$31))),0),0)) ->  | U71: =IF($K$9=DATOS!$A$23,1,0) -> 0 | V71: =IF($K$9=DATOS!$A$24,1,0) -> 0 | W71: =IF(SUM(U71:V71)=0,SIMULADOR!$M$19,X71*V71+Y71*U71) -> 0 | X71: 0 | Y71: 0
J72: NO APLICA | L72: =IF(C72="","",C72*IF(SIMULADOR!$I$17="INDIVIDUAL",DATOS!$A$41/1000,DATOS!$A$42/1000)) ->  | M72: =IFERROR(C72*SIMULADOR!$I$19/1000,"") ->  | N72: =IFERROR(IF(B72="","",IF(SIMULADOR!$E$15="LIQUIDEZ",F72*16%,IF(SIMULADOR!$E$15="MEJORA_DE_HIPOTECA_Y_LIQUIDEZ",(F72*DATOS!$C$22)*16%,0))),"") ->  | P72: =IF(B72="","",IF(MOD(B72,2)=0,IF(OR(SIMULADOR!$E$15="FOVISSSTE",SIMULADOR!$E$17="APOYO INFONAVIT"),IF(H71<$E$14-G72,0,MIN(SIMULADOR!$E$39*0.1,(DATOS!$S$31))),0),0)) ->  | U72: =IF($K$9=DATOS!$A$23,1,0) -> 0 | V72: =IF($K$9=DATOS!$A$24,1,0) -> 0 | W72: =IF(SUM(U72:V72)=0,SIMULADOR!$M$19,X72*V72+Y72*U72) -> 0 | X72: 0 | Y72: 0
J73: NO APLICA | L73: =IF(C73="","",C73*IF(SIMULADOR!$I$17="INDIVIDUAL",DATOS!$A$41/1000,DATOS!$A$42/1000)) ->  | M73: =IFERROR(C73*SIMULADOR!$I$19/1000,"") ->  | N73: =IFERROR(IF(B73="","",IF(SIMULADOR!$E$15="LIQUIDEZ",F73*16%,IF(SIMULADOR!$E$15="MEJORA_DE_HIPOTECA_Y_LIQUIDEZ",(F73*DATOS!$C$22)*16%,0))),"") ->  | P73: =IF(B73="","",IF(MOD(B73,2)=0,IF(OR(SIMULADOR!$E$15="FOVISSSTE",SIMULADOR!$E$17="APOYO INFONAVIT"),IF(H72<$E$14-G73,0,MIN(SIMULADOR!$E$39*0.1,(DATOS!$S$31))),0),0)) ->  | U73: =IF($K$9=DATOS!$A$23,1,0) -> 0 | V73: =IF($K$9=DATOS!$A$24,1,0) -> 0 | W73: =IF(SUM(U73:V73)=0,SIMULADOR!$M$19,X73*V73+Y73*U73) -> 0 | X73: 0 | Y73: 0
J74: NO APLICA | L74: =IF(C74="","",C74*IF(SIMULADOR!$I$17="INDIVIDUAL",DATOS!$A$41/1000,DATOS!$A$42/1000)) ->  | M74: =IFERROR(C74*SIMULADOR!$I$19/1000,"") ->  | N74: =IFERROR(IF(B74="","",IF(SIMULADOR!$E$15="LIQUIDEZ",F74*16%,IF(SIMULADOR!$E$15="MEJORA_DE_HIPOTECA_Y_LIQUIDEZ",(F74*DATOS!$C$22)*16%,0))),"") ->  | P74: =IF(B74="","",IF(MOD(B74,2)=0,IF(OR(SIMULADOR!$E$15="FOVISSSTE",SIMULADOR!$E$17="APOYO INFONAVIT"),IF(H73<$E$14-G74,0,MIN(SIMULADOR!$E$39*0.1,(DATOS!$S$31))),0),0)) ->  | U74: =IF($K$9=DATOS!$A$23,1,0) -> 0 | V74: =IF($K$9=DATOS!$A$24,1,0) -> 0 | W74: =IF(SUM(U74:V74)=0,SIMULADOR!$M$19,X74*V74+Y74*U74) -> 0 | X74: 0 | Y74: 0
J75: NO APLICA | L75: =IF(C75="","",C75*IF(SIMULADOR!$I$17="INDIVIDUAL",DATOS!$A$41/1000,DATOS!$A$42/1000)) ->  | M75: =IFERROR(C75*SIMULADOR!$I$19/1000,"") ->  | N75: =IFERROR(IF(B75="","",IF(SIMULADOR!$E$15="LIQUIDEZ",F75*16%,IF(SIMULADOR!$E$15="MEJORA_DE_HIPOTECA_Y_LIQUIDEZ",(F75*DATOS!$C$22)*16%,0))),"") ->  | P75: =IF(B75="","",IF(MOD(B75,2)=0,IF(OR(SIMULADOR!$E$15="FOVISSSTE",SIMULADOR!$E$17="APOYO INFONAVIT"),IF(H74<$E$14-G75,0,MIN(SIMULADOR!$E$39*0.1,(DATOS!$S$31))),0),0)) ->  | U75: =IF($K$9=DATOS!$A$23,1,0) -> 0 | V75: =IF($K$9=DATOS!$A$24,1,0) -> 0 | W75: =IF(SUM(U75:V75)=0,SIMULADOR!$M$19,X75*V75+Y75*U75) -> 0 | X75: 0 | Y75: 0
J76: NO APLICA | L76: =IF(C76="","",C76*IF(SIMULADOR!$I$17="INDIVIDUAL",DATOS!$A$41/1000,DATOS!$A$42/1000)) ->  | M76: =IFERROR(C76*SIMULADOR!$I$19/1000,"") ->  | N76: =IFERROR(IF(B76="","",IF(SIMULADOR!$E$15="LIQUIDEZ",F76*16%,IF(SIMULADOR!$E$15="MEJORA_DE_HIPOTECA_Y_LIQUIDEZ",(F76*DATOS!$C$22)*16%,0))),"") ->  | P76: =IF(B76="","",IF(MOD(B76,2)=0,IF(OR(SIMULADOR!$E$15="FOVISSSTE",SIMULADOR!$E$17="APOYO INFONAVIT"),IF(H75<$E$14-G76,0,MIN(SIMULADOR!$E$39*0.1,(DATOS!$S$31))),0),0)) ->  | U76: =IF($K$9=DATOS!$A$23,1,0) -> 0 | V76: =IF($K$9=DATOS!$A$24,1,0) -> 0 | W76: =IF(SUM(U76:V76)=0,SIMULADOR!$M$19,X76*V76+Y76*U76) -> 0 | X76: 0 | Y76: 0
J77: NO APLICA | L77: =IF(C77="","",C77*IF(SIMULADOR!$I$17="INDIVIDUAL",DATOS!$A$41/1000,DATOS!$A$42/1000)) ->  | M77: =IFERROR(C77*SIMULADOR!$I$19/1000,"") ->  | N77: =IFERROR(IF(B77="","",IF(SIMULADOR!$E$15="LIQUIDEZ",F77*16%,IF(SIMULADOR!$E$15="MEJORA_DE_HIPOTECA_Y_LIQUIDEZ",(F77*DATOS!$C$22)*16%,0))),"") ->  | P77: =IF(B77="","",IF(MOD(B77,2)=0,IF(OR(SIMULADOR!$E$15="FOVISSSTE",SIMULADOR!$E$17="APOYO INFONAVIT"),IF(H76<$E$14-G77,0,MIN(SIMULADOR!$E$39*0.1,(DATOS!$S$31))),0),0)) ->  | U77: =IF($K$9=DATOS!$A$23,1,0) -> 0 | V77: =IF($K$9=DATOS!$A$24,1,0) -> 0 | W77: =IF(SUM(U77:V77)=0,SIMULADOR!$M$19,X77*V77+Y77*U77) -> 0 | X77: 0 | Y77: 0
H78: =IFERROR(C78-G78-P78,"") ->  | J78: =$K$9 -> NO APLICA | L78: =IF(C78="","",C78*IF(SIMULADOR!$I$17="INDIVIDUAL",DATOS!$A$41/1000,DATOS!$A$42/1000)) ->  | M78: =IFERROR(C78*SIMULADOR!$I$19/1000,"") ->  | N78: =IFERROR(IF(B78="","",IF(SIMULADOR!$E$15="LIQUIDEZ",F78*16%,IF(SIMULADOR!$E$15="MEJORA_DE_HIPOTECA_Y_LIQUIDEZ",(F78*DATOS!$C$22)*16%,0))),"") ->  | O78: =IFERROR(E78+K78+L78+M78+N78,"") ->  | P78: =IF(B78="","",IF(MOD(B78,2)=0,IF(OR(SIMULADOR!$E$15="FOVISSSTE",SIMULADOR!$E$17="APOYO INFONAVIT"),IF(H77<$E$14-G78,0,MIN(SIMULADOR!$E$39*0.1,(DATOS!$S$31))),0),0)) ->  | S78: =IFERROR(IF(B78="","",O78+P78),0) ->  | T78: =IFERROR(IF(C78="","",(O78-I78)),0) ->  | U78: =IF($K$9=DATOS!$A$23,1,0) -> 0 | V78: =IF($K$9=DATOS!$A$24,1,0) -> 0 | W78: =IF(SUM(U78:V78)=0,SIMULADOR!$M$19,X78*V78+Y78*U78) -> 0 | X78: =IFERROR(PMT($G$9/12,$D$14-B77,-C78),0) -> 0 | Y78: 0
B79: =IF(C79="","",IF(B78>=$D$14,"",B78+1)) ->  | E79: =IFERROR(IF(B79="","",(F79+G79)),0) ->  | F79: =IFERROR(C79*$G$9/12,"") ->  | G79: =IFERROR(IF(B79="","",IF(H78<W79-F79,H78,W79-F79)),0) ->  | J79: NO APLICA | L79: =IF(C79="","",C79*IF(SIMULADOR!$I$17="INDIVIDUAL",DATOS!$A$41/1000,DATOS!$A$42/1000)) ->  | M79: =IFERROR(C79*SIMULADOR!$I$19/1000,"") ->  | N79: =IFERROR(IF(B79="","",IF(SIMULADOR!$E$15="LIQUIDEZ",F79*16%,IF(SIMULADOR!$E$15="MEJORA_DE_HIPOTECA_Y_LIQUIDEZ",(F79*DATOS!$C$22)*16%,0))),"") ->  | P79: =IF(B79="","",IF(MOD(B79,2)=0,IF(OR(SIMULADOR!$E$15="FOVISSSTE",SIMULADOR!$E$17="APOYO INFONAVIT"),IF(H78<$E$14-G79,0,MIN(SIMULADOR!$E$39*0.1,(DATOS!$S$31))),0),0)) ->  | U79: =IF($K$9=DATOS!$A$23,1,0) -> 0 | V79: =IF($K$9=DATOS!$A$24,1,0) -> 0 | W79: =IF(SUM(U79:V79)=0,SIMULADOR!$M$19,X79*V79+Y79*U79) -> 0 | X79: 0 | Y79: 0
C80: =IFERROR(IF(H79<=0,"",H79-IF(J79="NO APLICA",0,I79)),"") ->  | D80: =IF(C80="","",D79-1) ->  | J80: NO APLICA | K80: =IF(B80="","",IF(C80>0,$K$14,0)) ->  | L80: =IF(C80="","",C80*IF(SIMULADOR!$I$17="INDIVIDUAL",DATOS!$A$41/1000,DATOS!$A$42/1000)) ->  | M80: =IFERROR(C80*SIMULADOR!$I$19/1000,"") ->  | N80: =IFERROR(IF(B80="","",IF(SIMULADOR!$E$15="LIQUIDEZ",F80*16%,IF(SIMULADOR!$E$15="MEJORA_DE_HIPOTECA_Y_LIQUIDEZ",(F80*DATOS!$C$22)*16%,0))),"") ->  | P80: =IF(B80="","",IF(MOD(B80,2)=0,IF(OR(SIMULADOR!$E$15="FOVISSSTE",SIMULADOR!$E$17="APOYO INFONAVIT"),IF(H79<$E$14-G80,0,MIN(SIMULADOR!$E$39*0.1,(DATOS!$S$31))),0),0)) ->  | U80: =IF($K$9=DATOS!$A$23,1,0) -> 0 | V80: =IF($K$9=DATOS!$A$24,1,0) -> 0 | W80: =IF(SUM(U80:V80)=0,SIMULADOR!$M$19,X80*V80+Y80*U80) -> 0 | X80: 0 | Y80: =W79 -> 0
J81: NO APLICA | L81: =IF(C81="","",C81*IF(SIMULADOR!$I$17="INDIVIDUAL",DATOS!$A$41/1000,DATOS!$A$42/1000)) ->  | M81: =IFERROR(C81*SIMULADOR!$I$19/1000,"") ->  | N81: =IFERROR(IF(B81="","",IF(SIMULADOR!$E$15="LIQUIDEZ",F81*16%,IF(SIMULADOR!$E$15="MEJORA_DE_HIPOTECA_Y_LIQUIDEZ",(F81*DATOS!$C$22)*16%,0))),"") ->  | P81: =IF(B81="","",IF(MOD(B81,2)=0,IF(OR(SIMULADOR!$E$15="FOVISSSTE",SIMULADOR!$E$17="APOYO INFONAVIT"),IF(H80<$E$14-G81,0,MIN(SIMULADOR!$E$39*0.1,(DATOS!$S$31))),0),0)) ->  | U81: =IF($K$9=DATOS!$A$23,1,0) -> 0 | V81: =IF($K$9=DATOS!$A$24,1,0) -> 0 | W81: =IF(SUM(U81:V81)=0,SIMULADOR!$M$19,X81*V81+Y81*U81) -> 0 | X81: 0 | Y81: 0
J82: NO APLICA | L82: =IF(C82="","",C82*IF(SIMULADOR!$I$17="INDIVIDUAL",DATOS!$A$41/1000,DATOS!$A$42/1000)) ->  | M82: =IFERROR(C82*SIMULADOR!$I$19/1000,"") ->  | N82: =IFERROR(IF(B82="","",IF(SIMULADOR!$E$15="LIQUIDEZ",F82*16%,IF(SIMULADOR!$E$15="MEJORA_DE_HIPOTECA_Y_LIQUIDEZ",(F82*DATOS!$C$22)*16%,0))),"") ->  | P82: =IF(B82="","",IF(MOD(B82,2)=0,IF(OR(SIMULADOR!$E$15="FOVISSSTE",SIMULADOR!$E$17="APOYO INFONAVIT"),IF(H81<$E$14-G82,0,MIN(SIMULADOR!$E$39*0.1,(DATOS!$S$31))),0),0)) ->  | U82: =IF($K$9=DATOS!$A$23,1,0) -> 0 | V82: =IF($K$9=DATOS!$A$24,1,0) -> 0 | W82: =IF(SUM(U82:V82)=0,SIMULADOR!$M$19,X82*V82+Y82*U82) -> 0 | X82: 0 | Y82: 0
J83: NO APLICA | L83: =IF(C83="","",C83*IF(SIMULADOR!$I$17="INDIVIDUAL",DATOS!$A$41/1000,DATOS!$A$42/1000)) ->  | M83: =IFERROR(C83*SIMULADOR!$I$19/1000,"") ->  | N83: =IFERROR(IF(B83="","",IF(SIMULADOR!$E$15="LIQUIDEZ",F83*16%,IF(SIMULADOR!$E$15="MEJORA_DE_HIPOTECA_Y_LIQUIDEZ",(F83*DATOS!$C$22)*16%,0))),"") ->  | P83: =IF(B83="","",IF(MOD(B83,2)=0,IF(OR(SIMULADOR!$E$15="FOVISSSTE",SIMULADOR!$E$17="APOYO INFONAVIT"),IF(H82<$E$14-G83,0,MIN(SIMULADOR!$E$39*0.1,(DATOS!$S$31))),0),0)) ->  | U83: =IF($K$9=DATOS!$A$23,1,0) -> 0 | V83: =IF($K$9=DATOS!$A$24,1,0) -> 0 | W83: =IF(SUM(U83:V83)=0,SIMULADOR!$M$19,X83*V83+Y83*U83) -> 0 | X83: 0 | Y83: 0
J84: NO APLICA | L84: =IF(C84="","",C84*IF(SIMULADOR!$I$17="INDIVIDUAL",DATOS!$A$41/1000,DATOS!$A$42/1000)) ->  | M84: =IFERROR(C84*SIMULADOR!$I$19/1000,"") ->  | N84: =IFERROR(IF(B84="","",IF(SIMULADOR!$E$15="LIQUIDEZ",F84*16%,IF(SIMULADOR!$E$15="MEJORA_DE_HIPOTECA_Y_LIQUIDEZ",(F84*DATOS!$C$22)*16%,0))),"") ->  | P84: =IF(B84="","",IF(MOD(B84,2)=0,IF(OR(SIMULADOR!$E$15="FOVISSSTE",SIMULADOR!$E$17="APOYO INFONAVIT"),IF(H83<$E$14-G84,0,MIN(SIMULADOR!$E$39*0.1,(DATOS!$S$31))),0),0)) ->  | U84: =IF($K$9=DATOS!$A$23,1,0) -> 0 | V84: =IF($K$9=DATOS!$A$24,1,0) -> 0 | W84: =IF(SUM(U84:V84)=0,SIMULADOR!$M$19,X84*V84+Y84*U84) -> 0 | X84: 0 | Y84: 0
J85: NO APLICA | L85: =IF(C85="","",C85*IF(SIMULADOR!$I$17="INDIVIDUAL",DATOS!$A$41/1000,DATOS!$A$42/1000)) ->  | M85: =IFERROR(C85*SIMULADOR!$I$19/1000,"") ->  | N85: =IFERROR(IF(B85="","",IF(SIMULADOR!$E$15="LIQUIDEZ",F85*16%,IF(SIMULADOR!$E$15="MEJORA_DE_HIPOTECA_Y_LIQUIDEZ",(F85*DATOS!$C$22)*16%,0))),"") ->  | P85: =IF(B85="","",IF(MOD(B85,2)=0,IF(OR(SIMULADOR!$E$15="FOVISSSTE",SIMULADOR!$E$17="APOYO INFONAVIT"),IF(H84<$E$14-G85,0,MIN(SIMULADOR!$E$39*0.1,(DATOS!$S$31))),0),0)) ->  | U85: =IF($K$9=DATOS!$A$23,1,0) -> 0 | V85: =IF($K$9=DATOS!$A$24,1,0) -> 0 | W85: =IF(SUM(U85:V85)=0,SIMULADOR!$M$19,X85*V85+Y85*U85) -> 0 | X85: 0 | Y85: 0
J86: NO APLICA | L86: =IF(C86="","",C86*IF(SIMULADOR!$I$17="INDIVIDUAL",DATOS!$A$41/1000,DATOS!$A$42/1000)) ->  | M86: =IFERROR(C86*SIMULADOR!$I$19/1000,"") ->  | N86: =IFERROR(IF(B86="","",IF(SIMULADOR!$E$15="LIQUIDEZ",F86*16%,IF(SIMULADOR!$E$15="MEJORA_DE_HIPOTECA_Y_LIQUIDEZ",(F86*DATOS!$C$22)*16%,0))),"") ->  | P86: =IF(B86="","",IF(MOD(B86,2)=0,IF(OR(SIMULADOR!$E$15="FOVISSSTE",SIMULADOR!$E$17="APOYO INFONAVIT"),IF(H85<$E$14-G86,0,MIN(SIMULADOR!$E$39*0.1,(DATOS!$S$31))),0),0)) ->  | U86: =IF($K$9=DATOS!$A$23,1,0) -> 0 | V86: =IF($K$9=DATOS!$A$24,1,0) -> 0 | W86: =IF(SUM(U86:V86)=0,SIMULADOR!$M$19,X86*V86+Y86*U86) -> 0 | X86: 0 | Y86: 0
J87: NO APLICA | L87: =IF(C87="","",C87*IF(SIMULADOR!$I$17="INDIVIDUAL",DATOS!$A$41/1000,DATOS!$A$42/1000)) ->  | M87: =IFERROR(C87*SIMULADOR!$I$19/1000,"") ->  | N87: =IFERROR(IF(B87="","",IF(SIMULADOR!$E$15="LIQUIDEZ",F87*16%,IF(SIMULADOR!$E$15="MEJORA_DE_HIPOTECA_Y_LIQUIDEZ",(F87*DATOS!$C$22)*16%,0))),"") ->  | P87: =IF(B87="","",IF(MOD(B87,2)=0,IF(OR(SIMULADOR!$E$15="FOVISSSTE",SIMULADOR!$E$17="APOYO INFONAVIT"),IF(H86<$E$14-G87,0,MIN(SIMULADOR!$E$39*0.1,(DATOS!$S$31))),0),0)) ->  | U87: =IF($K$9=DATOS!$A$23,1,0) -> 0 | V87: =IF($K$9=DATOS!$A$24,1,0) -> 0 | W87: =IF(SUM(U87:V87)=0,SIMULADOR!$M$19,X87*V87+Y87*U87) -> 0 | X87: 0 | Y87: 0
J88: NO APLICA | L88: =IF(C88="","",C88*IF(SIMULADOR!$I$17="INDIVIDUAL",DATOS!$A$41/1000,DATOS!$A$42/1000)) ->  | M88: =IFERROR(C88*SIMULADOR!$I$19/1000,"") ->  | N88: =IFERROR(IF(B88="","",IF(SIMULADOR!$E$15="LIQUIDEZ",F88*16%,IF(SIMULADOR!$E$15="MEJORA_DE_HIPOTECA_Y_LIQUIDEZ",(F88*DATOS!$C$22)*16%,0))),"") ->  | P88: =IF(B88="","",IF(MOD(B88,2)=0,IF(OR(SIMULADOR!$E$15="FOVISSSTE",SIMULADOR!$E$17="APOYO INFONAVIT"),IF(H87<$E$14-G88,0,MIN(SIMULADOR!$E$39*0.1,(DATOS!$S$31))),0),0)) ->  | U88: =IF($K$9=DATOS!$A$23,1,0) -> 0 | V88: =IF($K$9=DATOS!$A$24,1,0) -> 0 | W88: =IF(SUM(U88:V88)=0,SIMULADOR!$M$19,X88*V88+Y88*U88) -> 0 | X88: 0 | Y88: 0
J89: NO APLICA | L89: =IF(C89="","",C89*IF(SIMULADOR!$I$17="INDIVIDUAL",DATOS!$A$41/1000,DATOS!$A$42/1000)) ->  | M89: =IFERROR(C89*SIMULADOR!$I$19/1000,"") ->  | N89: =IFERROR(IF(B89="","",IF(SIMULADOR!$E$15="LIQUIDEZ",F89*16%,IF(SIMULADOR!$E$15="MEJORA_DE_HIPOTECA_Y_LIQUIDEZ",(F89*DATOS!$C$22)*16%,0))),"") ->  | P89: =IF(B89="","",IF(MOD(B89,2)=0,IF(OR(SIMULADOR!$E$15="FOVISSSTE",SIMULADOR!$E$17="APOYO INFONAVIT"),IF(H88<$E$14-G89,0,MIN(SIMULADOR!$E$39*0.1,(DATOS!$S$31))),0),0)) ->  | U89: =IF($K$9=DATOS!$A$23,1,0) -> 0 | V89: =IF($K$9=DATOS!$A$24,1,0) -> 0 | W89: =IF(SUM(U89:V89)=0,SIMULADOR!$M$19,X89*V89+Y89*U89) -> 0 | X89: 0 | Y89: 0
J90: NO APLICA | L90: =IF(C90="","",C90*IF(SIMULADOR!$I$17="INDIVIDUAL",DATOS!$A$41/1000,DATOS!$A$42/1000)) ->  | M90: =IFERROR(C90*SIMULADOR!$I$19/1000,"") ->  | N90: =IFERROR(IF(B90="","",IF(SIMULADOR!$E$15="LIQUIDEZ",F90*16%,IF(SIMULADOR!$E$15="MEJORA_DE_HIPOTECA_Y_LIQUIDEZ",(F90*DATOS!$C$22)*16%,0))),"") ->  | P90: =IF(B90="","",IF(MOD(B90,2)=0,IF(OR(SIMULADOR!$E$15="FOVISSSTE",SIMULADOR!$E$17="APOYO INFONAVIT"),IF(H89<$E$14-G90,0,MIN(SIMULADOR!$E$39*0.1,(DATOS!$S$31))),0),0)) ->  | U90: =IF($K$9=DATOS!$A$23,1,0) -> 0 | V90: =IF($K$9=DATOS!$A$24,1,0) -> 0 | W90: =IF(SUM(U90:V90)=0,SIMULADOR!$M$19,X90*V90+Y90*U90) -> 0 | X90: 0 | Y90: 0
J91: NO APLICA | L91: =IF(C91="","",C91*IF(SIMULADOR!$I$17="INDIVIDUAL",DATOS!$A$41/1000,DATOS!$A$42/1000)) ->  | M91: =IFERROR(C91*SIMULADOR!$I$19/1000,"") ->  | N91: =IFERROR(IF(B91="","",IF(SIMULADOR!$E$15="LIQUIDEZ",F91*16%,IF(SIMULADOR!$E$15="MEJORA_DE_HIPOTECA_Y_LIQUIDEZ",(F91*DATOS!$C$22)*16%,0))),"") ->  | P91: =IF(B91="","",IF(MOD(B91,2)=0,IF(OR(SIMULADOR!$E$15="FOVISSSTE",SIMULADOR!$E$17="APOYO INFONAVIT"),IF(H90<$E$14-G91,0,MIN(SIMULADOR!$E$39*0.1,(DATOS!$S$31))),0),0)) ->  | U91: =IF($K$9=DATOS!$A$23,1,0) -> 0 | V91: =IF($K$9=DATOS!$A$24,1,0) -> 0 | W91: =IF(SUM(U91:V91)=0,SIMULADOR!$M$19,X91*V91+Y91*U91) -> 0 | X91: 0 | Y91: 0
J92: NO APLICA | L92: =IF(C92="","",C92*IF(SIMULADOR!$I$17="INDIVIDUAL",DATOS!$A$41/1000,DATOS!$A$42/1000)) ->  | M92: =IFERROR(C92*SIMULADOR!$I$19/1000,"") ->  | N92: =IFERROR(IF(B92="","",IF(SIMULADOR!$E$15="LIQUIDEZ",F92*16%,IF(SIMULADOR!$E$15="MEJORA_DE_HIPOTECA_Y_LIQUIDEZ",(F92*DATOS!$C$22)*16%,0))),"") ->  | P92: =IF(B92="","",IF(MOD(B92,2)=0,IF(OR(SIMULADOR!$E$15="FOVISSSTE",SIMULADOR!$E$17="APOYO INFONAVIT"),IF(H91<$E$14-G92,0,MIN(SIMULADOR!$E$39*0.1,(DATOS!$S$31))),0),0)) ->  | U92: =IF($K$9=DATOS!$A$23,1,0) -> 0 | V92: =IF($K$9=DATOS!$A$24,1,0) -> 0 | W92: =IF(SUM(U92:V92)=0,SIMULADOR!$M$19,X92*V92+Y92*U92) -> 0 | X92: 0 | Y92: 0
J93: NO APLICA | L93: =IF(C93="","",C93*IF(SIMULADOR!$I$17="INDIVIDUAL",DATOS!$A$41/1000,DATOS!$A$42/1000)) ->  | M93: =IFERROR(C93*SIMULADOR!$I$19/1000,"") ->  | N93: =IFERROR(IF(B93="","",IF(SIMULADOR!$E$15="LIQUIDEZ",F93*16%,IF(SIMULADOR!$E$15="MEJORA_DE_HIPOTECA_Y_LIQUIDEZ",(F93*DATOS!$C$22)*16%,0))),"") ->  | P93: =IF(B93="","",IF(MOD(B93,2)=0,IF(OR(SIMULADOR!$E$15="FOVISSSTE",SIMULADOR!$E$17="APOYO INFONAVIT"),IF(H92<$E$14-G93,0,MIN(SIMULADOR!$E$39*0.1,(DATOS!$S$31))),0),0)) ->  | U93: =IF($K$9=DATOS!$A$23,1,0) -> 0 | V93: =IF($K$9=DATOS!$A$24,1,0) -> 0 | W93: =IF(SUM(U93:V93)=0,SIMULADOR!$M$19,X93*V93+Y93*U93) -> 0 | X93: 0 | Y93: 0
J94: NO APLICA | L94: =IF(C94="","",C94*IF(SIMULADOR!$I$17="INDIVIDUAL",DATOS!$A$41/1000,DATOS!$A$42/1000)) ->  | M94: =IFERROR(C94*SIMULADOR!$I$19/1000,"") ->  | N94: =IFERROR(IF(B94="","",IF(SIMULADOR!$E$15="LIQUIDEZ",F94*16%,IF(SIMULADOR!$E$15="MEJORA_DE_HIPOTECA_Y_LIQUIDEZ",(F94*DATOS!$C$22)*16%,0))),"") ->  | P94: =IF(B94="","",IF(MOD(B94,2)=0,IF(OR(SIMULADOR!$E$15="FOVISSSTE",SIMULADOR!$E$17="APOYO INFONAVIT"),IF(H93<$E$14-G94,0,MIN(SIMULADOR!$E$39*0.1,(DATOS!$S$31))),0),0)) ->  | U94: =IF($K$9=DATOS!$A$23,1,0) -> 0 | V94: =IF($K$9=DATOS!$A$24,1,0) -> 0 | W94: =IF(SUM(U94:V94)=0,SIMULADOR!$M$19,X94*V94+Y94*U94) -> 0 | X94: 0 | Y94: 0
J95: NO APLICA | L95: =IF(C95="","",C95*IF(SIMULADOR!$I$17="INDIVIDUAL",DATOS!$A$41/1000,DATOS!$A$42/1000)) ->  | M95: =IFERROR(C95*SIMULADOR!$I$19/1000,"") ->  | N95: =IFERROR(IF(B95="","",IF(SIMULADOR!$E$15="LIQUIDEZ",F95*16%,IF(SIMULADOR!$E$15="MEJORA_DE_HIPOTECA_Y_LIQUIDEZ",(F95*DATOS!$C$22)*16%,0))),"") ->  | P95: =IF(B95="","",IF(MOD(B95,2)=0,IF(OR(SIMULADOR!$E$15="FOVISSSTE",SIMULADOR!$E$17="APOYO INFONAVIT"),IF(H94<$E$14-G95,0,MIN(SIMULADOR!$E$39*0.1,(DATOS!$S$31))),0),0)) ->  | U95: =IF($K$9=DATOS!$A$23,1,0) -> 0 | V95: =IF($K$9=DATOS!$A$24,1,0) -> 0 | W95: =IF(SUM(U95:V95)=0,SIMULADOR!$M$19,X95*V95+Y95*U95) -> 0 | X95: 0 | Y95: 0
J96: NO APLICA | L96: =IF(C96="","",C96*IF(SIMULADOR!$I$17="INDIVIDUAL",DATOS!$A$41/1000,DATOS!$A$42/1000)) ->  | M96: =IFERROR(C96*SIMULADOR!$I$19/1000,"") ->  | N96: =IFERROR(IF(B96="","",IF(SIMULADOR!$E$15="LIQUIDEZ",F96*16%,IF(SIMULADOR!$E$15="MEJORA_DE_HIPOTECA_Y_LIQUIDEZ",(F96*DATOS!$C$22)*16%,0))),"") ->  | P96: =IF(B96="","",IF(MOD(B96,2)=0,IF(OR(SIMULADOR!$E$15="FOVISSSTE",SIMULADOR!$E$17="APOYO INFONAVIT"),IF(H95<$E$14-G96,0,MIN(SIMULADOR!$E$39*0.1,(DATOS!$S$31))),0),0)) ->  | U96: =IF($K$9=DATOS!$A$23,1,0) -> 0 | V96: =IF($K$9=DATOS!$A$24,1,0) -> 0 | W96: =IF(SUM(U96:V96)=0,SIMULADOR!$M$19,X96*V96+Y96*U96) -> 0 | X96: 0 | Y96: 0
J97: NO APLICA | L97: =IF(C97="","",C97*IF(SIMULADOR!$I$17="INDIVIDUAL",DATOS!$A$41/1000,DATOS!$A$42/1000)) ->  | M97: =IFERROR(C97*SIMULADOR!$I$19/1000,"") ->  | N97: =IFERROR(IF(B97="","",IF(SIMULADOR!$E$15="LIQUIDEZ",F97*16%,IF(SIMULADOR!$E$15="MEJORA_DE_HIPOTECA_Y_LIQUIDEZ",(F97*DATOS!$C$22)*16%,0))),"") ->  | P97: =IF(B97="","",IF(MOD(B97,2)=0,IF(OR(SIMULADOR!$E$15="FOVISSSTE",SIMULADOR!$E$17="APOYO INFONAVIT"),IF(H96<$E$14-G97,0,MIN(SIMULADOR!$E$39*0.1,(DATOS!$S$31))),0),0)) ->  | U97: =IF($K$9=DATOS!$A$23,1,0) -> 0 | V97: =IF($K$9=DATOS!$A$24,1,0) -> 0 | W97: =IF(SUM(U97:V97)=0,SIMULADOR!$M$19,X97*V97+Y97*U97) -> 0 | X97: 0 | Y97: 0
J98: NO APLICA | L98: =IF(C98="","",C98*IF(SIMULADOR!$I$17="INDIVIDUAL",DATOS!$A$41/1000,DATOS!$A$42/1000)) ->  | M98: =IFERROR(C98*SIMULADOR!$I$19/1000,"") ->  | N98: =IFERROR(IF(B98="","",IF(SIMULADOR!$E$15="LIQUIDEZ",F98*16%,IF(SIMULADOR!$E$15="MEJORA_DE_HIPOTECA_Y_LIQUIDEZ",(F98*DATOS!$C$22)*16%,0))),"") ->  | P98: =IF(B98="","",IF(MOD(B98,2)=0,IF(OR(SIMULADOR!$E$15="FOVISSSTE",SIMULADOR!$E$17="APOYO INFONAVIT"),IF(H97<$E$14-G98,0,MIN(SIMULADOR!$E$39*0.1,(DATOS!$S$31))),0),0)) ->  | U98: =IF($K$9=DATOS!$A$23,1,0) -> 0 | V98: =IF($K$9=DATOS!$A$24,1,0) -> 0 | W98: =IF(SUM(U98:V98)=0,SIMULADOR!$M$19,X98*V98+Y98*U98) -> 0 | X98: 0 | Y98: 0
J99: NO APLICA | L99: =IF(C99="","",C99*IF(SIMULADOR!$I$17="INDIVIDUAL",DATOS!$A$41/1000,DATOS!$A$42/1000)) ->  | M99: =IFERROR(C99*SIMULADOR!$I$19/1000,"") ->  | N99: =IFERROR(IF(B99="","",IF(SIMULADOR!$E$15="LIQUIDEZ",F99*16%,IF(SIMULADOR!$E$15="MEJORA_DE_HIPOTECA_Y_LIQUIDEZ",(F99*DATOS!$C$22)*16%,0))),"") ->  | P99: =IF(B99="","",IF(MOD(B99,2)=0,IF(OR(SIMULADOR!$E$15="FOVISSSTE",SIMULADOR!$E$17="APOYO INFONAVIT"),IF(H98<$E$14-G99,0,MIN(SIMULADOR!$E$39*0.1,(DATOS!$S$31))),0),0)) ->  | U99: =IF($K$9=DATOS!$A$23,1,0) -> 0 | V99: =IF($K$9=DATOS!$A$24,1,0) -> 0 | W99: =IF(SUM(U99:V99)=0,SIMULADOR!$M$19,X99*V99+Y99*U99) -> 0 | X99: 0 | Y99: 0
J100: NO APLICA | L100: =IF(C100="","",C100*IF(SIMULADOR!$I$17="INDIVIDUAL",DATOS!$A$41/1000,DATOS!$A$42/1000)) ->  | M100: =IFERROR(C100*SIMULADOR!$I$19/1000,"") ->  | N100: =IFERROR(IF(B100="","",IF(SIMULADOR!$E$15="LIQUIDEZ",F100*16%,IF(SIMULADOR!$E$15="MEJORA_DE_HIPOTECA_Y_LIQUIDEZ",(F100*DATOS!$C$22)*16%,0))),"") ->  | P100: =IF(B100="","",IF(MOD(B100,2)=0,IF(OR(SIMULADOR!$E$15="FOVISSSTE",SIMULADOR!$E$17="APOYO INFONAVIT"),IF(H99<$E$14-G100,0,MIN(SIMULADOR!$E$39*0.1,(DATOS!$S$31))),0),0)) ->  | U100: =IF($K$9=DATOS!$A$23,1,0) -> 0 | V100: =IF($K$9=DATOS!$A$24,1,0) -> 0 | W100: =IF(SUM(U100:V100)=0,SIMULADOR!$M$19,X100*V100+Y100*U100) -> 0 | X100: 0 | Y100: 0
J101: NO APLICA | L101: =IF(C101="","",C101*IF(SIMULADOR!$I$17="INDIVIDUAL",DATOS!$A$41/1000,DATOS!$A$42/1000)) ->  | M101: =IFERROR(C101*SIMULADOR!$I$19/1000,"") ->  | N101: =IFERROR(IF(B101="","",IF(SIMULADOR!$E$15="LIQUIDEZ",F101*16%,IF(SIMULADOR!$E$15="MEJORA_DE_HIPOTECA_Y_LIQUIDEZ",(F101*DATOS!$C$22)*16%,0))),"") ->  | P101: =IF(B101="","",IF(MOD(B101,2)=0,IF(OR(SIMULADOR!$E$15="FOVISSSTE",SIMULADOR!$E$17="APOYO INFONAVIT"),IF(H100<$E$14-G101,0,MIN(SIMULADOR!$E$39*0.1,(DATOS!$S$31))),0),0)) ->  | U101: =IF($K$9=DATOS!$A$23,1,0) -> 0 | V101: =IF($K$9=DATOS!$A$24,1,0) -> 0 | W101: =IF(SUM(U101:V101)=0,SIMULADOR!$M$19,X101*V101+Y101*U101) -> 0 | X101: 0 | Y101: 0
J102: NO APLICA | L102: =IF(C102="","",C102*IF(SIMULADOR!$I$17="INDIVIDUAL",DATOS!$A$41/1000,DATOS!$A$42/1000)) ->  | M102: =IFERROR(C102*SIMULADOR!$I$19/1000,"") ->  | N102: =IFERROR(IF(B102="","",IF(SIMULADOR!$E$15="LIQUIDEZ",F102*16%,IF(SIMULADOR!$E$15="MEJORA_DE_HIPOTECA_Y_LIQUIDEZ",(F102*DATOS!$C$22)*16%,0))),"") ->  | P102: =IF(B102="","",IF(MOD(B102,2)=0,IF(OR(SIMULADOR!$E$15="FOVISSSTE",SIMULADOR!$E$17="APOYO INFONAVIT"),IF(H101<$E$14-G102,0,MIN(SIMULADOR!$E$39*0.1,(DATOS!$S$31))),0),0)) ->  | U102: =IF($K$9=DATOS!$A$23,1,0) -> 0 | V102: =IF($K$9=DATOS!$A$24,1,0) -> 0 | W102: =IF(SUM(U102:V102)=0,SIMULADOR!$M$19,X102*V102+Y102*U102) -> 0 | X102: 0 | Y102: 0
J103: NO APLICA | L103: =IF(C103="","",C103*IF(SIMULADOR!$I$17="INDIVIDUAL",DATOS!$A$41/1000,DATOS!$A$42/1000)) ->  | M103: =IFERROR(C103*SIMULADOR!$I$19/1000,"") ->  | N103: =IFERROR(IF(B103="","",IF(SIMULADOR!$E$15="LIQUIDEZ",F103*16%,IF(SIMULADOR!$E$15="MEJORA_DE_HIPOTECA_Y_LIQUIDEZ",(F103*DATOS!$C$22)*16%,0))),"") ->  | P103: =IF(B103="","",IF(MOD(B103,2)=0,IF(OR(SIMULADOR!$E$15="FOVISSSTE",SIMULADOR!$E$17="APOYO INFONAVIT"),IF(H102<$E$14-G103,0,MIN(SIMULADOR!$E$39*0.1,(DATOS!$S$31))),0),0)) ->  | U103: =IF($K$9=DATOS!$A$23,1,0) -> 0 | V103: =IF($K$9=DATOS!$A$24,1,0) -> 0 | W103: =IF(SUM(U103:V103)=0,SIMULADOR!$M$19,X103*V103+Y103*U103) -> 0 | X103: 0 | Y103: 0
J104: NO APLICA | L104: =IF(C104="","",C104*IF(SIMULADOR!$I$17="INDIVIDUAL",DATOS!$A$41/1000,DATOS!$A$42/1000)) ->  | M104: =IFERROR(C104*SIMULADOR!$I$19/1000,"") ->  | N104: =IFERROR(IF(B104="","",IF(SIMULADOR!$E$15="LIQUIDEZ",F104*16%,IF(SIMULADOR!$E$15="MEJORA_DE_HIPOTECA_Y_LIQUIDEZ",(F104*DATOS!$C$22)*16%,0))),"") ->  | P104: =IF(B104="","",IF(MOD(B104,2)=0,IF(OR(SIMULADOR!$E$15="FOVISSSTE",SIMULADOR!$E$17="APOYO INFONAVIT"),IF(H103<$E$14-G104,0,MIN(SIMULADOR!$E$39*0.1,(DATOS!$S$31))),0),0)) ->  | U104: =IF($K$9=DATOS!$A$23,1,0) -> 0 | V104: =IF($K$9=DATOS!$A$24,1,0) -> 0 | W104: =IF(SUM(U104:V104)=0,SIMULADOR!$M$19,X104*V104+Y104*U104) -> 0 | X104: 0 | Y104: 0
J105: NO APLICA | L105: =IF(C105="","",C105*IF(SIMULADOR!$I$17="INDIVIDUAL",DATOS!$A$41/1000,DATOS!$A$42/1000)) ->  | M105: =IFERROR(C105*SIMULADOR!$I$19/1000,"") ->  | N105: =IFERROR(IF(B105="","",IF(SIMULADOR!$E$15="LIQUIDEZ",F105*16%,IF(SIMULADOR!$E$15="MEJORA_DE_HIPOTECA_Y_LIQUIDEZ",(F105*DATOS!$C$22)*16%,0))),"") ->  | P105: =IF(B105="","",IF(MOD(B105,2)=0,IF(OR(SIMULADOR!$E$15="FOVISSSTE",SIMULADOR!$E$17="APOYO INFONAVIT"),IF(H104<$E$14-G105,0,MIN(SIMULADOR!$E$39*0.1,(DATOS!$S$31))),0),0)) ->  | U105: =IF($K$9=DATOS!$A$23,1,0) -> 0 | V105: =IF($K$9=DATOS!$A$24,1,0) -> 0 | W105: =IF(SUM(U105:V105)=0,SIMULADOR!$M$19,X105*V105+Y105*U105) -> 0 | X105: 0 | Y105: 0
J106: NO APLICA | L106: =IF(C106="","",C106*IF(SIMULADOR!$I$17="INDIVIDUAL",DATOS!$A$41/1000,DATOS!$A$42/1000)) ->  | M106: =IFERROR(C106*SIMULADOR!$I$19/1000,"") ->  | N106: =IFERROR(IF(B106="","",IF(SIMULADOR!$E$15="LIQUIDEZ",F106*16%,IF(SIMULADOR!$E$15="MEJORA_DE_HIPOTECA_Y_LIQUIDEZ",(F106*DATOS!$C$22)*16%,0))),"") ->  | P106: =IF(B106="","",IF(MOD(B106,2)=0,IF(OR(SIMULADOR!$E$15="FOVISSSTE",SIMULADOR!$E$17="APOYO INFONAVIT"),IF(H105<$E$14-G106,0,MIN(SIMULADOR!$E$39*0.1,(DATOS!$S$31))),0),0)) ->  | U106: =IF($K$9=DATOS!$A$23,1,0) -> 0 | V106: =IF($K$9=DATOS!$A$24,1,0) -> 0 | W106: =IF(SUM(U106:V106)=0,SIMULADOR!$M$19,X106*V106+Y106*U106) -> 0 | X106: 0 | Y106: 0
J107: NO APLICA | L107: =IF(C107="","",C107*IF(SIMULADOR!$I$17="INDIVIDUAL",DATOS!$A$41/1000,DATOS!$A$42/1000)) ->  | M107: =IFERROR(C107*SIMULADOR!$I$19/1000,"") ->  | N107: =IFERROR(IF(B107="","",IF(SIMULADOR!$E$15="LIQUIDEZ",F107*16%,IF(SIMULADOR!$E$15="MEJORA_DE_HIPOTECA_Y_LIQUIDEZ",(F107*DATOS!$C$22)*16%,0))),"") ->  | P107: =IF(B107="","",IF(MOD(B107,2)=0,IF(OR(SIMULADOR!$E$15="FOVISSSTE",SIMULADOR!$E$17="APOYO INFONAVIT"),IF(H106<$E$14-G107,0,MIN(SIMULADOR!$E$39*0.1,(DATOS!$S$31))),0),0)) ->  | U107: =IF($K$9=DATOS!$A$23,1,0) -> 0 | V107: =IF($K$9=DATOS!$A$24,1,0) -> 0 | W107: =IF(SUM(U107:V107)=0,SIMULADOR!$M$19,X107*V107+Y107*U107) -> 0 | X107: 0 | Y107: 0
J108: NO APLICA | L108: =IF(C108="","",C108*IF(SIMULADOR!$I$17="INDIVIDUAL",DATOS!$A$41/1000,DATOS!$A$42/1000)) ->  | M108: =IFERROR(C108*SIMULADOR!$I$19/1000,"") ->  | N108: =IFERROR(IF(B108="","",IF(SIMULADOR!$E$15="LIQUIDEZ",F108*16%,IF(SIMULADOR!$E$15="MEJORA_DE_HIPOTECA_Y_LIQUIDEZ",(F108*DATOS!$C$22)*16%,0))),"") ->  | P108: =IF(B108="","",IF(MOD(B108,2)=0,IF(OR(SIMULADOR!$E$15="FOVISSSTE",SIMULADOR!$E$17="APOYO INFONAVIT"),IF(H107<$E$14-G108,0,MIN(SIMULADOR!$E$39*0.1,(DATOS!$S$31))),0),0)) ->  | U108: =IF($K$9=DATOS!$A$23,1,0) -> 0 | V108: =IF($K$9=DATOS!$A$24,1,0) -> 0 | W108: =IF(SUM(U108:V108)=0,SIMULADOR!$M$19,X108*V108+Y108*U108) -> 0 | X108: 0 | Y108: 0
J109: NO APLICA | L109: =IF(C109="","",C109*IF(SIMULADOR!$I$17="INDIVIDUAL",DATOS!$A$41/1000,DATOS!$A$42/1000)) ->  | M109: =IFERROR(C109*SIMULADOR!$I$19/1000,"") ->  | N109: =IFERROR(IF(B109="","",IF(SIMULADOR!$E$15="LIQUIDEZ",F109*16%,IF(SIMULADOR!$E$15="MEJORA_DE_HIPOTECA_Y_LIQUIDEZ",(F109*DATOS!$C$22)*16%,0))),"") ->  | P109: =IF(B109="","",IF(MOD(B109,2)=0,IF(OR(SIMULADOR!$E$15="FOVISSSTE",SIMULADOR!$E$17="APOYO INFONAVIT"),IF(H108<$E$14-G109,0,MIN(SIMULADOR!$E$39*0.1,(DATOS!$S$31))),0),0)) ->  | U109: =IF($K$9=DATOS!$A$23,1,0) -> 0 | V109: =IF($K$9=DATOS!$A$24,1,0) -> 0 | W109: =IF(SUM(U109:V109)=0,SIMULADOR!$M$19,X109*V109+Y109*U109) -> 0 | X109: 0 | Y109: 0
J110: NO APLICA | L110: =IF(C110="","",C110*IF(SIMULADOR!$I$17="INDIVIDUAL",DATOS!$A$41/1000,DATOS!$A$42/1000)) ->  | M110: =IFERROR(C110*SIMULADOR!$I$19/1000,"") ->  | N110: =IFERROR(IF(B110="","",IF(SIMULADOR!$E$15="LIQUIDEZ",F110*16%,IF(SIMULADOR!$E$15="MEJORA_DE_HIPOTECA_Y_LIQUIDEZ",(F110*DATOS!$C$22)*16%,0))),"") ->  | P110: =IF(B110="","",IF(MOD(B110,2)=0,IF(OR(SIMULADOR!$E$15="FOVISSSTE",SIMULADOR!$E$17="APOYO INFONAVIT"),IF(H109<$E$14-G110,0,MIN(SIMULADOR!$E$39*0.1,(DATOS!$S$31))),0),0)) ->  | U110: =IF($K$9=DATOS!$A$23,1,0) -> 0 | V110: =IF($K$9=DATOS!$A$24,1,0) -> 0 | W110: =IF(SUM(U110:V110)=0,SIMULADOR!$M$19,X110*V110+Y110*U110) -> 0 | X110: 0 | Y110: 0
J111: NO APLICA | L111: =IF(C111="","",C111*IF(SIMULADOR!$I$17="INDIVIDUAL",DATOS!$A$41/1000,DATOS!$A$42/1000)) ->  | M111: =IFERROR(C111*SIMULADOR!$I$19/1000,"") ->  | N111: =IFERROR(IF(B111="","",IF(SIMULADOR!$E$15="LIQUIDEZ",F111*16%,IF(SIMULADOR!$E$15="MEJORA_DE_HIPOTECA_Y_LIQUIDEZ",(F111*DATOS!$C$22)*16%,0))),"") ->  | P111: =IF(B111="","",IF(MOD(B111,2)=0,IF(OR(SIMULADOR!$E$15="FOVISSSTE",SIMULADOR!$E$17="APOYO INFONAVIT"),IF(H110<$E$14-G111,0,MIN(SIMULADOR!$E$39*0.1,(DATOS!$S$31))),0),0)) ->  | U111: =IF($K$9=DATOS!$A$23,1,0) -> 0 | V111: =IF($K$9=DATOS!$A$24,1,0) -> 0 | W111: =IF(SUM(U111:V111)=0,SIMULADOR!$M$19,X111*V111+Y111*U111) -> 0 | X111: 0 | Y111: 0
J112: NO APLICA | L112: =IF(C112="","",C112*IF(SIMULADOR!$I$17="INDIVIDUAL",DATOS!$A$41/1000,DATOS!$A$42/1000)) ->  | M112: =IFERROR(C112*SIMULADOR!$I$19/1000,"") ->  | N112: =IFERROR(IF(B112="","",IF(SIMULADOR!$E$15="LIQUIDEZ",F112*16%,IF(SIMULADOR!$E$15="MEJORA_DE_HIPOTECA_Y_LIQUIDEZ",(F112*DATOS!$C$22)*16%,0))),"") ->  | P112: =IF(B112="","",IF(MOD(B112,2)=0,IF(OR(SIMULADOR!$E$15="FOVISSSTE",SIMULADOR!$E$17="APOYO INFONAVIT"),IF(H111<$E$14-G112,0,MIN(SIMULADOR!$E$39*0.1,(DATOS!$S$31))),0),0)) ->  | U112: =IF($K$9=DATOS!$A$23,1,0) -> 0 | V112: =IF($K$9=DATOS!$A$24,1,0) -> 0 | W112: =IF(SUM(U112:V112)=0,SIMULADOR!$M$19,X112*V112+Y112*U112) -> 0 | X112: 0 | Y112: 0
J113: NO APLICA | L113: =IF(C113="","",C113*IF(SIMULADOR!$I$17="INDIVIDUAL",DATOS!$A$41/1000,DATOS!$A$42/1000)) ->  | M113: =IFERROR(C113*SIMULADOR!$I$19/1000,"") ->  | N113: =IFERROR(IF(B113="","",IF(SIMULADOR!$E$15="LIQUIDEZ",F113*16%,IF(SIMULADOR!$E$15="MEJORA_DE_HIPOTECA_Y_LIQUIDEZ",(F113*DATOS!$C$22)*16%,0))),"") ->  | P113: =IF(B113="","",IF(MOD(B113,2)=0,IF(OR(SIMULADOR!$E$15="FOVISSSTE",SIMULADOR!$E$17="APOYO INFONAVIT"),IF(H112<$E$14-G113,0,MIN(SIMULADOR!$E$39*0.1,(DATOS!$S$31))),0),0)) ->  | U113: =IF($K$9=DATOS!$A$23,1,0) -> 0 | V113: =IF($K$9=DATOS!$A$24,1,0) -> 0 | W113: =IF(SUM(U113:V113)=0,SIMULADOR!$M$19,X113*V113+Y113*U113) -> 0 | X113: 0 | Y113: 0
J114: NO APLICA | L114: =IF(C114="","",C114*IF(SIMULADOR!$I$17="INDIVIDUAL",DATOS!$A$41/1000,DATOS!$A$42/1000)) ->  | M114: =IFERROR(C114*SIMULADOR!$I$19/1000,"") ->  | N114: =IFERROR(IF(B114="","",IF(SIMULADOR!$E$15="LIQUIDEZ",F114*16%,IF(SIMULADOR!$E$15="MEJORA_DE_HIPOTECA_Y_LIQUIDEZ",(F114*DATOS!$C$22)*16%,0))),"") ->  | P114: =IF(B114="","",IF(MOD(B114,2)=0,IF(OR(SIMULADOR!$E$15="FOVISSSTE",SIMULADOR!$E$17="APOYO INFONAVIT"),IF(H113<$E$14-G114,0,MIN(SIMULADOR!$E$39*0.1,(DATOS!$S$31))),0),0)) ->  | U114: =IF($K$9=DATOS!$A$23,1,0) -> 0 | V114: =IF($K$9=DATOS!$A$24,1,0) -> 0 | W114: =IF(SUM(U114:V114)=0,SIMULADOR!$M$19,X114*V114+Y114*U114) -> 0 | X114: 0 | Y114: 0
J115: NO APLICA | L115: =IF(C115="","",C115*IF(SIMULADOR!$I$17="INDIVIDUAL",DATOS!$A$41/1000,DATOS!$A$42/1000)) ->  | M115: =IFERROR(C115*SIMULADOR!$I$19/1000,"") ->  | N115: =IFERROR(IF(B115="","",IF(SIMULADOR!$E$15="LIQUIDEZ",F115*16%,IF(SIMULADOR!$E$15="MEJORA_DE_HIPOTECA_Y_LIQUIDEZ",(F115*DATOS!$C$22)*16%,0))),"") ->  | P115: =IF(B115="","",IF(MOD(B115,2)=0,IF(OR(SIMULADOR!$E$15="FOVISSSTE",SIMULADOR!$E$17="APOYO INFONAVIT"),IF(H114<$E$14-G115,0,MIN(SIMULADOR!$E$39*0.1,(DATOS!$S$31))),0),0)) ->  | U115: =IF($K$9=DATOS!$A$23,1,0) -> 0 | V115: =IF($K$9=DATOS!$A$24,1,0) -> 0 | W115: =IF(SUM(U115:V115)=0,SIMULADOR!$M$19,X115*V115+Y115*U115) -> 0 | X115: 0 | Y115: 0
J116: NO APLICA | L116: =IF(C116="","",C116*IF(SIMULADOR!$I$17="INDIVIDUAL",DATOS!$A$41/1000,DATOS!$A$42/1000)) ->  | M116: =IFERROR(C116*SIMULADOR!$I$19/1000,"") ->  | N116: =IFERROR(IF(B116="","",IF(SIMULADOR!$E$15="LIQUIDEZ",F116*16%,IF(SIMULADOR!$E$15="MEJORA_DE_HIPOTECA_Y_LIQUIDEZ",(F116*DATOS!$C$22)*16%,0))),"") ->  | P116: =IF(B116="","",IF(MOD(B116,2)=0,IF(OR(SIMULADOR!$E$15="FOVISSSTE",SIMULADOR!$E$17="APOYO INFONAVIT"),IF(H115<$E$14-G116,0,MIN(SIMULADOR!$E$39*0.1,(DATOS!$S$31))),0),0)) ->  | U116: =IF($K$9=DATOS!$A$23,1,0) -> 0 | V116: =IF($K$9=DATOS!$A$24,1,0) -> 0 | W116: =IF(SUM(U116:V116)=0,SIMULADOR!$M$19,X116*V116+Y116*U116) -> 0 | X116: 0 | Y116: 0
J117: NO APLICA | L117: =IF(C117="","",C117*IF(SIMULADOR!$I$17="INDIVIDUAL",DATOS!$A$41/1000,DATOS!$A$42/1000)) ->  | M117: =IFERROR(C117*SIMULADOR!$I$19/1000,"") ->  | N117: =IFERROR(IF(B117="","",IF(SIMULADOR!$E$15="LIQUIDEZ",F117*16%,IF(SIMULADOR!$E$15="MEJORA_DE_HIPOTECA_Y_LIQUIDEZ",(F117*DATOS!$C$22)*16%,0))),"") ->  | P117: =IF(B117="","",IF(MOD(B117,2)=0,IF(OR(SIMULADOR!$E$15="FOVISSSTE",SIMULADOR!$E$17="APOYO INFONAVIT"),IF(H116<$E$14-G117,0,MIN(SIMULADOR!$E$39*0.1,(DATOS!$S$31))),0),0)) ->  | U117: =IF($K$9=DATOS!$A$23,1,0) -> 0 | V117: =IF($K$9=DATOS!$A$24,1,0) -> 0 | W117: =IF(SUM(U117:V117)=0,SIMULADOR!$M$19,X117*V117+Y117*U117) -> 0 | X117: 0 | Y117: 0
J118: NO APLICA | L118: =IF(C118="","",C118*IF(SIMULADOR!$I$17="INDIVIDUAL",DATOS!$A$41/1000,DATOS!$A$42/1000)) ->  | M118: =IFERROR(C118*SIMULADOR!$I$19/1000,"") ->  | N118: =IFERROR(IF(B118="","",IF(SIMULADOR!$E$15="LIQUIDEZ",F118*16%,IF(SIMULADOR!$E$15="MEJORA_DE_HIPOTECA_Y_LIQUIDEZ",(F118*DATOS!$C$22)*16%,0))),"") ->  | P118: =IF(B118="","",IF(MOD(B118,2)=0,IF(OR(SIMULADOR!$E$15="FOVISSSTE",SIMULADOR!$E$17="APOYO INFONAVIT"),IF(H117<$E$14-G118,0,MIN(SIMULADOR!$E$39*0.1,(DATOS!$S$31))),0),0)) ->  | U118: =IF($K$9=DATOS!$A$23,1,0) -> 0 | V118: =IF($K$9=DATOS!$A$24,1,0) -> 0 | W118: =IF(SUM(U118:V118)=0,SIMULADOR!$M$19,X118*V118+Y118*U118) -> 0 | X118: 0 | Y118: 0
J119: NO APLICA | L119: =IF(C119="","",C119*IF(SIMULADOR!$I$17="INDIVIDUAL",DATOS!$A$41/1000,DATOS!$A$42/1000)) ->  | M119: =IFERROR(C119*SIMULADOR!$I$19/1000,"") ->  | N119: =IFERROR(IF(B119="","",IF(SIMULADOR!$E$15="LIQUIDEZ",F119*16%,IF(SIMULADOR!$E$15="MEJORA_DE_HIPOTECA_Y_LIQUIDEZ",(F119*DATOS!$C$22)*16%,0))),"") ->  | P119: =IF(B119="","",IF(MOD(B119,2)=0,IF(OR(SIMULADOR!$E$15="FOVISSSTE",SIMULADOR!$E$17="APOYO INFONAVIT"),IF(H118<$E$14-G119,0,MIN(SIMULADOR!$E$39*0.1,(DATOS!$S$31))),0),0)) ->  | U119: =IF($K$9=DATOS!$A$23,1,0) -> 0 | V119: =IF($K$9=DATOS!$A$24,1,0) -> 0 | W119: =IF(SUM(U119:V119)=0,SIMULADOR!$M$19,X119*V119+Y119*U119) -> 0 | X119: 0 | Y119: 0
J120: NO APLICA | L120: =IF(C120="","",C120*IF(SIMULADOR!$I$17="INDIVIDUAL",DATOS!$A$41/1000,DATOS!$A$42/1000)) ->  | M120: =IFERROR(C120*SIMULADOR!$I$19/1000,"") ->  | N120: =IFERROR(IF(B120="","",IF(SIMULADOR!$E$15="LIQUIDEZ",F120*16%,IF(SIMULADOR!$E$15="MEJORA_DE_HIPOTECA_Y_LIQUIDEZ",(F120*DATOS!$C$22)*16%,0))),"") ->  | P120: =IF(B120="","",IF(MOD(B120,2)=0,IF(OR(SIMULADOR!$E$15="FOVISSSTE",SIMULADOR!$E$17="APOYO INFONAVIT"),IF(H119<$E$14-G120,0,MIN(SIMULADOR!$E$39*0.1,(DATOS!$S$31))),0),0)) ->  | U120: =IF($K$9=DATOS!$A$23,1,0) -> 0 | V120: =IF($K$9=DATOS!$A$24,1,0) -> 0 | W120: =IF(SUM(U120:V120)=0,SIMULADOR!$M$19,X120*V120+Y120*U120) -> 0 | X120: 0 | Y120: 0
J121: NO APLICA | L121: =IF(C121="","",C121*IF(SIMULADOR!$I$17="INDIVIDUAL",DATOS!$A$41/1000,DATOS!$A$42/1000)) ->  | M121: =IFERROR(C121*SIMULADOR!$I$19/1000,"") ->  | N121: =IFERROR(IF(B121="","",IF(SIMULADOR!$E$15="LIQUIDEZ",F121*16%,IF(SIMULADOR!$E$15="MEJORA_DE_HIPOTECA_Y_LIQUIDEZ",(F121*DATOS!$C$22)*16%,0))),"") ->  | P121: =IF(B121="","",IF(MOD(B121,2)=0,IF(OR(SIMULADOR!$E$15="FOVISSSTE",SIMULADOR!$E$17="APOYO INFONAVIT"),IF(H120<$E$14-G121,0,MIN(SIMULADOR!$E$39*0.1,(DATOS!$S$31))),0),0)) ->  | U121: =IF($K$9=DATOS!$A$23,1,0) -> 0 | V121: =IF($K$9=DATOS!$A$24,1,0) -> 0 | W121: =IF(SUM(U121:V121)=0,SIMULADOR!$M$19,X121*V121+Y121*U121) -> 0 | X121: 0 | Y121: 0
J122: NO APLICA | L122: =IF(C122="","",C122*IF(SIMULADOR!$I$17="INDIVIDUAL",DATOS!$A$41/1000,DATOS!$A$42/1000)) ->  | M122: =IFERROR(C122*SIMULADOR!$I$19/1000,"") ->  | N122: =IFERROR(IF(B122="","",IF(SIMULADOR!$E$15="LIQUIDEZ",F122*16%,IF(SIMULADOR!$E$15="MEJORA_DE_HIPOTECA_Y_LIQUIDEZ",(F122*DATOS!$C$22)*16%,0))),"") ->  | P122: =IF(B122="","",IF(MOD(B122,2)=0,IF(OR(SIMULADOR!$E$15="FOVISSSTE",SIMULADOR!$E$17="APOYO INFONAVIT"),IF(H121<$E$14-G122,0,MIN(SIMULADOR!$E$39*0.1,(DATOS!$S$31))),0),0)) ->  | U122: =IF($K$9=DATOS!$A$23,1,0) -> 0 | V122: =IF($K$9=DATOS!$A$24,1,0) -> 0 | W122: =IF(SUM(U122:V122)=0,SIMULADOR!$M$19,X122*V122+Y122*U122) -> 0 | X122: 0 | Y122: 0
J123: NO APLICA | L123: =IF(C123="","",C123*IF(SIMULADOR!$I$17="INDIVIDUAL",DATOS!$A$41/1000,DATOS!$A$42/1000)) ->  | M123: =IFERROR(C123*SIMULADOR!$I$19/1000,"") ->  | N123: =IFERROR(IF(B123="","",IF(SIMULADOR!$E$15="LIQUIDEZ",F123*16%,IF(SIMULADOR!$E$15="MEJORA_DE_HIPOTECA_Y_LIQUIDEZ",(F123*DATOS!$C$22)*16%,0))),"") ->  | P123: =IF(B123="","",IF(MOD(B123,2)=0,IF(OR(SIMULADOR!$E$15="FOVISSSTE",SIMULADOR!$E$17="APOYO INFONAVIT"),IF(H122<$E$14-G123,0,MIN(SIMULADOR!$E$39*0.1,(DATOS!$S$31))),0),0)) ->  | U123: =IF($K$9=DATOS!$A$23,1,0) -> 0 | V123: =IF($K$9=DATOS!$A$24,1,0) -> 0 | W123: =IF(SUM(U123:V123)=0,SIMULADOR!$M$19,X123*V123+Y123*U123) -> 0 | X123: 0 | Y123: 0
J124: NO APLICA | L124: =IF(C124="","",C124*IF(SIMULADOR!$I$17="INDIVIDUAL",DATOS!$A$41/1000,DATOS!$A$42/1000)) ->  | M124: =IFERROR(C124*SIMULADOR!$I$19/1000,"") ->  | N124: =IFERROR(IF(B124="","",IF(SIMULADOR!$E$15="LIQUIDEZ",F124*16%,IF(SIMULADOR!$E$15="MEJORA_DE_HIPOTECA_Y_LIQUIDEZ",(F124*DATOS!$C$22)*16%,0))),"") ->  | P124: =IF(B124="","",IF(MOD(B124,2)=0,IF(OR(SIMULADOR!$E$15="FOVISSSTE",SIMULADOR!$E$17="APOYO INFONAVIT"),IF(H123<$E$14-G124,0,MIN(SIMULADOR!$E$39*0.1,(DATOS!$S$31))),0),0)) ->  | U124: =IF($K$9=DATOS!$A$23,1,0) -> 0 | V124: =IF($K$9=DATOS!$A$24,1,0) -> 0 | W124: =IF(SUM(U124:V124)=0,SIMULADOR!$M$19,X124*V124+Y124*U124) -> 0 | X124: 0 | Y124: 0
J125: NO APLICA | L125: =IF(C125="","",C125*IF(SIMULADOR!$I$17="INDIVIDUAL",DATOS!$A$41/1000,DATOS!$A$42/1000)) ->  | M125: =IFERROR(C125*SIMULADOR!$I$19/1000,"") ->  | N125: =IFERROR(IF(B125="","",IF(SIMULADOR!$E$15="LIQUIDEZ",F125*16%,IF(SIMULADOR!$E$15="MEJORA_DE_HIPOTECA_Y_LIQUIDEZ",(F125*DATOS!$C$22)*16%,0))),"") ->  | P125: =IF(B125="","",IF(MOD(B125,2)=0,IF(OR(SIMULADOR!$E$15="FOVISSSTE",SIMULADOR!$E$17="APOYO INFONAVIT"),IF(H124<$E$14-G125,0,MIN(SIMULADOR!$E$39*0.1,(DATOS!$S$31))),0),0)) ->  | U125: =IF($K$9=DATOS!$A$23,1,0) -> 0 | V125: =IF($K$9=DATOS!$A$24,1,0) -> 0 | W125: =IF(SUM(U125:V125)=0,SIMULADOR!$M$19,X125*V125+Y125*U125) -> 0 | X125: 0 | Y125: 0
J126: NO APLICA | L126: =IF(C126="","",C126*IF(SIMULADOR!$I$17="INDIVIDUAL",DATOS!$A$41/1000,DATOS!$A$42/1000)) ->  | M126: =IFERROR(C126*SIMULADOR!$I$19/1000,"") ->  | N126: =IFERROR(IF(B126="","",IF(SIMULADOR!$E$15="LIQUIDEZ",F126*16%,IF(SIMULADOR!$E$15="MEJORA_DE_HIPOTECA_Y_LIQUIDEZ",(F126*DATOS!$C$22)*16%,0))),"") ->  | P126: =IF(B126="","",IF(MOD(B126,2)=0,IF(OR(SIMULADOR!$E$15="FOVISSSTE",SIMULADOR!$E$17="APOYO INFONAVIT"),IF(H125<$E$14-G126,0,MIN(SIMULADOR!$E$39*0.1,(DATOS!$S$31))),0),0)) ->  | U126: =IF($K$9=DATOS!$A$23,1,0) -> 0 | V126: =IF($K$9=DATOS!$A$24,1,0) -> 0 | W126: =IF(SUM(U126:V126)=0,SIMULADOR!$M$19,X126*V126+Y126*U126) -> 0 | X126: 0 | Y126: 0
J127: NO APLICA | L127: =IF(C127="","",C127*IF(SIMULADOR!$I$17="INDIVIDUAL",DATOS!$A$41/1000,DATOS!$A$42/1000)) ->  | M127: =IFERROR(C127*SIMULADOR!$I$19/1000,"") ->  | N127: =IFERROR(IF(B127="","",IF(SIMULADOR!$E$15="LIQUIDEZ",F127*16%,IF(SIMULADOR!$E$15="MEJORA_DE_HIPOTECA_Y_LIQUIDEZ",(F127*DATOS!$C$22)*16%,0))),"") ->  | P127: =IF(B127="","",IF(MOD(B127,2)=0,IF(OR(SIMULADOR!$E$15="FOVISSSTE",SIMULADOR!$E$17="APOYO INFONAVIT"),IF(H126<$E$14-G127,0,MIN(SIMULADOR!$E$39*0.1,(DATOS!$S$31))),0),0)) ->  | U127: =IF($K$9=DATOS!$A$23,1,0) -> 0 | V127: =IF($K$9=DATOS!$A$24,1,0) -> 0 | W127: =IF(SUM(U127:V127)=0,SIMULADOR!$M$19,X127*V127+Y127*U127) -> 0 | X127: 0 | Y127: 0
J128: NO APLICA | L128: =IF(C128="","",C128*IF(SIMULADOR!$I$17="INDIVIDUAL",DATOS!$A$41/1000,DATOS!$A$42/1000)) ->  | M128: =IFERROR(C128*SIMULADOR!$I$19/1000,"") ->  | N128: =IFERROR(IF(B128="","",IF(SIMULADOR!$E$15="LIQUIDEZ",F128*16%,IF(SIMULADOR!$E$15="MEJORA_DE_HIPOTECA_Y_LIQUIDEZ",(F128*DATOS!$C$22)*16%,0))),"") ->  | P128: =IF(B128="","",IF(MOD(B128,2)=0,IF(OR(SIMULADOR!$E$15="FOVISSSTE",SIMULADOR!$E$17="APOYO INFONAVIT"),IF(H127<$E$14-G128,0,MIN(SIMULADOR!$E$39*0.1,(DATOS!$S$31))),0),0)) ->  | U128: =IF($K$9=DATOS!$A$23,1,0) -> 0 | V128: =IF($K$9=DATOS!$A$24,1,0) -> 0 | W128: =IF(SUM(U128:V128)=0,SIMULADOR!$M$19,X128*V128+Y128*U128) -> 0 | X128: 0 | Y128: 0
J129: NO APLICA | L129: =IF(C129="","",C129*IF(SIMULADOR!$I$17="INDIVIDUAL",DATOS!$A$41/1000,DATOS!$A$42/1000)) ->  | M129: =IFERROR(C129*SIMULADOR!$I$19/1000,"") ->  | N129: =IFERROR(IF(B129="","",IF(SIMULADOR!$E$15="LIQUIDEZ",F129*16%,IF(SIMULADOR!$E$15="MEJORA_DE_HIPOTECA_Y_LIQUIDEZ",(F129*DATOS!$C$22)*16%,0))),"") ->  | P129: =IF(B129="","",IF(MOD(B129,2)=0,IF(OR(SIMULADOR!$E$15="FOVISSSTE",SIMULADOR!$E$17="APOYO INFONAVIT"),IF(H128<$E$14-G129,0,MIN(SIMULADOR!$E$39*0.1,(DATOS!$S$31))),0),0)) ->  | U129: =IF($K$9=DATOS!$A$23,1,0) -> 0 | V129: =IF($K$9=DATOS!$A$24,1,0) -> 0 | W129: =IF(SUM(U129:V129)=0,SIMULADOR!$M$19,X129*V129+Y129*U129) -> 0 | X129: 0 | Y129: 0
J130: NO APLICA | L130: =IF(C130="","",C130*IF(SIMULADOR!$I$17="INDIVIDUAL",DATOS!$A$41/1000,DATOS!$A$42/1000)) ->  | M130: =IFERROR(C130*SIMULADOR!$I$19/1000,"") ->  | N130: =IFERROR(IF(B130="","",IF(SIMULADOR!$E$15="LIQUIDEZ",F130*16%,IF(SIMULADOR!$E$15="MEJORA_DE_HIPOTECA_Y_LIQUIDEZ",(F130*DATOS!$C$22)*16%,0))),"") ->  | P130: =IF(B130="","",IF(MOD(B130,2)=0,IF(OR(SIMULADOR!$E$15="FOVISSSTE",SIMULADOR!$E$17="APOYO INFONAVIT"),IF(H129<$E$14-G130,0,MIN(SIMULADOR!$E$39*0.1,(DATOS!$S$31))),0),0)) ->  | U130: =IF($K$9=DATOS!$A$23,1,0) -> 0 | V130: =IF($K$9=DATOS!$A$24,1,0) -> 0 | W130: =IF(SUM(U130:V130)=0,SIMULADOR!$M$19,X130*V130+Y130*U130) -> 0 | X130: 0 | Y130: 0
J131: NO APLICA | L131: =IF(C131="","",C131*IF(SIMULADOR!$I$17="INDIVIDUAL",DATOS!$A$41/1000,DATOS!$A$42/1000)) ->  | M131: =IFERROR(C131*SIMULADOR!$I$19/1000,"") ->  | N131: =IFERROR(IF(B131="","",IF(SIMULADOR!$E$15="LIQUIDEZ",F131*16%,IF(SIMULADOR!$E$15="MEJORA_DE_HIPOTECA_Y_LIQUIDEZ",(F131*DATOS!$C$22)*16%,0))),"") ->  | P131: =IF(B131="","",IF(MOD(B131,2)=0,IF(OR(SIMULADOR!$E$15="FOVISSSTE",SIMULADOR!$E$17="APOYO INFONAVIT"),IF(H130<$E$14-G131,0,MIN(SIMULADOR!$E$39*0.1,(DATOS!$S$31))),0),0)) ->  | U131: =IF($K$9=DATOS!$A$23,1,0) -> 0 | V131: =IF($K$9=DATOS!$A$24,1,0) -> 0 | W131: =IF(SUM(U131:V131)=0,SIMULADOR!$M$19,X131*V131+Y131*U131) -> 0 | X131: 0 | Y131: 0
J132: NO APLICA | L132: =IF(C132="","",C132*IF(SIMULADOR!$I$17="INDIVIDUAL",DATOS!$A$41/1000,DATOS!$A$42/1000)) ->  | M132: =IFERROR(C132*SIMULADOR!$I$19/1000,"") ->  | N132: =IFERROR(IF(B132="","",IF(SIMULADOR!$E$15="LIQUIDEZ",F132*16%,IF(SIMULADOR!$E$15="MEJORA_DE_HIPOTECA_Y_LIQUIDEZ",(F132*DATOS!$C$22)*16%,0))),"") ->  | P132: =IF(B132="","",IF(MOD(B132,2)=0,IF(OR(SIMULADOR!$E$15="FOVISSSTE",SIMULADOR!$E$17="APOYO INFONAVIT"),IF(H131<$E$14-G132,0,MIN(SIMULADOR!$E$39*0.1,(DATOS!$S$31))),0),0)) ->  | U132: =IF($K$9=DATOS!$A$23,1,0) -> 0 | V132: =IF($K$9=DATOS!$A$24,1,0) -> 0 | W132: =IF(SUM(U132:V132)=0,SIMULADOR!$M$19,X132*V132+Y132*U132) -> 0 | X132: 0 | Y132: 0
J133: NO APLICA | L133: =IF(C133="","",C133*IF(SIMULADOR!$I$17="INDIVIDUAL",DATOS!$A$41/1000,DATOS!$A$42/1000)) ->  | M133: =IFERROR(C133*SIMULADOR!$I$19/1000,"") ->  | N133: =IFERROR(IF(B133="","",IF(SIMULADOR!$E$15="LIQUIDEZ",F133*16%,IF(SIMULADOR!$E$15="MEJORA_DE_HIPOTECA_Y_LIQUIDEZ",(F133*DATOS!$C$22)*16%,0))),"") ->  | P133: =IF(B133="","",IF(MOD(B133,2)=0,IF(OR(SIMULADOR!$E$15="FOVISSSTE",SIMULADOR!$E$17="APOYO INFONAVIT"),IF(H132<$E$14-G133,0,MIN(SIMULADOR!$E$39*0.1,(DATOS!$S$31))),0),0)) ->  | U133: =IF($K$9=DATOS!$A$23,1,0) -> 0 | V133: =IF($K$9=DATOS!$A$24,1,0) -> 0 | W133: =IF(SUM(U133:V133)=0,SIMULADOR!$M$19,X133*V133+Y133*U133) -> 0 | X133: 0 | Y133: 0
J134: NO APLICA | L134: =IF(C134="","",C134*IF(SIMULADOR!$I$17="INDIVIDUAL",DATOS!$A$41/1000,DATOS!$A$42/1000)) ->  | M134: =IFERROR(C134*SIMULADOR!$I$19/1000,"") ->  | N134: =IFERROR(IF(B134="","",IF(SIMULADOR!$E$15="LIQUIDEZ",F134*16%,IF(SIMULADOR!$E$15="MEJORA_DE_HIPOTECA_Y_LIQUIDEZ",(F134*DATOS!$C$22)*16%,0))),"") ->  | P134: =IF(B134="","",IF(MOD(B134,2)=0,IF(OR(SIMULADOR!$E$15="FOVISSSTE",SIMULADOR!$E$17="APOYO INFONAVIT"),IF(H133<$E$14-G134,0,MIN(SIMULADOR!$E$39*0.1,(DATOS!$S$31))),0),0)) ->  | U134: =IF($K$9=DATOS!$A$23,1,0) -> 0 | V134: =IF($K$9=DATOS!$A$24,1,0) -> 0 | W134: =IF(SUM(U134:V134)=0,SIMULADOR!$M$19,X134*V134+Y134*U134) -> 0 | X134: 0 | Y134: 0
J135: NO APLICA | L135: =IF(C135="","",C135*IF(SIMULADOR!$I$17="INDIVIDUAL",DATOS!$A$41/1000,DATOS!$A$42/1000)) ->  | M135: =IFERROR(C135*SIMULADOR!$I$19/1000,"") ->  | N135: =IFERROR(IF(B135="","",IF(SIMULADOR!$E$15="LIQUIDEZ",F135*16%,IF(SIMULADOR!$E$15="MEJORA_DE_HIPOTECA_Y_LIQUIDEZ",(F135*DATOS!$C$22)*16%,0))),"") ->  | P135: =IF(B135="","",IF(MOD(B135,2)=0,IF(OR(SIMULADOR!$E$15="FOVISSSTE",SIMULADOR!$E$17="APOYO INFONAVIT"),IF(H134<$E$14-G135,0,MIN(SIMULADOR!$E$39*0.1,(DATOS!$S$31))),0),0)) ->  | U135: =IF($K$9=DATOS!$A$23,1,0) -> 0 | V135: =IF($K$9=DATOS!$A$24,1,0) -> 0 | W135: =IF(SUM(U135:V135)=0,SIMULADOR!$M$19,X135*V135+Y135*U135) -> 0 | X135: 0 | Y135: 0
J136: NO APLICA | L136: =IF(C136="","",C136*IF(SIMULADOR!$I$17="INDIVIDUAL",DATOS!$A$41/1000,DATOS!$A$42/1000)) ->  | M136: =IFERROR(C136*SIMULADOR!$I$19/1000,"") ->  | N136: =IFERROR(IF(B136="","",IF(SIMULADOR!$E$15="LIQUIDEZ",F136*16%,IF(SIMULADOR!$E$15="MEJORA_DE_HIPOTECA_Y_LIQUIDEZ",(F136*DATOS!$C$22)*16%,0))),"") ->  | P136: =IF(B136="","",IF(MOD(B136,2)=0,IF(OR(SIMULADOR!$E$15="FOVISSSTE",SIMULADOR!$E$17="APOYO INFONAVIT"),IF(H135<$E$14-G136,0,MIN(SIMULADOR!$E$39*0.1,(DATOS!$S$31))),0),0)) ->  | U136: =IF($K$9=DATOS!$A$23,1,0) -> 0 | V136: =IF($K$9=DATOS!$A$24,1,0) -> 0 | W136: =IF(SUM(U136:V136)=0,SIMULADOR!$M$19,X136*V136+Y136*U136) -> 0 | X136: 0 | Y136: 0
J137: NO APLICA | L137: =IF(C137="","",C137*IF(SIMULADOR!$I$17="INDIVIDUAL",DATOS!$A$41/1000,DATOS!$A$42/1000)) ->  | M137: =IFERROR(C137*SIMULADOR!$I$19/1000,"") ->  | N137: =IFERROR(IF(B137="","",IF(SIMULADOR!$E$15="LIQUIDEZ",F137*16%,IF(SIMULADOR!$E$15="MEJORA_DE_HIPOTECA_Y_LIQUIDEZ",(F137*DATOS!$C$22)*16%,0))),"") ->  | P137: =IF(B137="","",IF(MOD(B137,2)=0,IF(OR(SIMULADOR!$E$15="FOVISSSTE",SIMULADOR!$E$17="APOYO INFONAVIT"),IF(H136<$E$14-G137,0,MIN(SIMULADOR!$E$39*0.1,(DATOS!$S$31))),0),0)) ->  | U137: =IF($K$9=DATOS!$A$23,1,0) -> 0 | V137: =IF($K$9=DATOS!$A$24,1,0) -> 0 | W137: =IF(SUM(U137:V137)=0,SIMULADOR!$M$19,X137*V137+Y137*U137) -> 0 | X137: 0 | Y137: 0
J138: NO APLICA | L138: =IF(C138="","",C138*IF(SIMULADOR!$I$17="INDIVIDUAL",DATOS!$A$41/1000,DATOS!$A$42/1000)) ->  | M138: =IFERROR(C138*SIMULADOR!$I$19/1000,"") ->  | N138: =IFERROR(IF(B138="","",IF(SIMULADOR!$E$15="LIQUIDEZ",F138*16%,IF(SIMULADOR!$E$15="MEJORA_DE_HIPOTECA_Y_LIQUIDEZ",(F138*DATOS!$C$22)*16%,0))),"") ->  | P138: =IF(B138="","",IF(MOD(B138,2)=0,IF(OR(SIMULADOR!$E$15="FOVISSSTE",SIMULADOR!$E$17="APOYO INFONAVIT"),IF(H137<$E$14-G138,0,MIN(SIMULADOR!$E$39*0.1,(DATOS!$S$31))),0),0)) ->  | U138: =IF($K$9=DATOS!$A$23,1,0) -> 0 | V138: =IF($K$9=DATOS!$A$24,1,0) -> 0 | W138: =IF(SUM(U138:V138)=0,SIMULADOR!$M$19,X138*V138+Y138*U138) -> 0 | X138: 0 | Y138: 0
J139: NO APLICA | L139: =IF(C139="","",C139*IF(SIMULADOR!$I$17="INDIVIDUAL",DATOS!$A$41/1000,DATOS!$A$42/1000)) ->  | M139: =IFERROR(C139*SIMULADOR!$I$19/1000,"") ->  | N139: =IFERROR(IF(B139="","",IF(SIMULADOR!$E$15="LIQUIDEZ",F139*16%,IF(SIMULADOR!$E$15="MEJORA_DE_HIPOTECA_Y_LIQUIDEZ",(F139*DATOS!$C$22)*16%,0))),"") ->  | P139: =IF(B139="","",IF(MOD(B139,2)=0,IF(OR(SIMULADOR!$E$15="FOVISSSTE",SIMULADOR!$E$17="APOYO INFONAVIT"),IF(H138<$E$14-G139,0,MIN(SIMULADOR!$E$39*0.1,(DATOS!$S$31))),0),0)) ->  | U139: =IF($K$9=DATOS!$A$23,1,0) -> 0 | V139: =IF($K$9=DATOS!$A$24,1,0) -> 0 | W139: =IF(SUM(U139:V139)=0,SIMULADOR!$M$19,X139*V139+Y139*U139) -> 0 | X139: 0 | Y139: 0
J140: NO APLICA | L140: =IF(C140="","",C140*IF(SIMULADOR!$I$17="INDIVIDUAL",DATOS!$A$41/1000,DATOS!$A$42/1000)) ->  | M140: =IFERROR(C140*SIMULADOR!$I$19/1000,"") ->  | N140: =IFERROR(IF(B140="","",IF(SIMULADOR!$E$15="LIQUIDEZ",F140*16%,IF(SIMULADOR!$E$15="MEJORA_DE_HIPOTECA_Y_LIQUIDEZ",(F140*DATOS!$C$22)*16%,0))),"") ->  | P140: =IF(B140="","",IF(MOD(B140,2)=0,IF(OR(SIMULADOR!$E$15="FOVISSSTE",SIMULADOR!$E$17="APOYO INFONAVIT"),IF(H139<$E$14-G140,0,MIN(SIMULADOR!$E$39*0.1,(DATOS!$S$31))),0),0)) ->  | U140: =IF($K$9=DATOS!$A$23,1,0) -> 0 | V140: =IF($K$9=DATOS!$A$24,1,0) -> 0 | W140: =IF(SUM(U140:V140)=0,SIMULADOR!$M$19,X140*V140+Y140*U140) -> 0 | X140: 0 | Y140: 0
J141: NO APLICA | L141: =IF(C141="","",C141*IF(SIMULADOR!$I$17="INDIVIDUAL",DATOS!$A$41/1000,DATOS!$A$42/1000)) ->  | M141: =IFERROR(C141*SIMULADOR!$I$19/1000,"") ->  | N141: =IFERROR(IF(B141="","",IF(SIMULADOR!$E$15="LIQUIDEZ",F141*16%,IF(SIMULADOR!$E$15="MEJORA_DE_HIPOTECA_Y_LIQUIDEZ",(F141*DATOS!$C$22)*16%,0))),"") ->  | P141: =IF(B141="","",IF(MOD(B141,2)=0,IF(OR(SIMULADOR!$E$15="FOVISSSTE",SIMULADOR!$E$17="APOYO INFONAVIT"),IF(H140<$E$14-G141,0,MIN(SIMULADOR!$E$39*0.1,(DATOS!$S$31))),0),0)) ->  | U141: =IF($K$9=DATOS!$A$23,1,0) -> 0 | V141: =IF($K$9=DATOS!$A$24,1,0) -> 0 | W141: =IF(SUM(U141:V141)=0,SIMULADOR!$M$19,X141*V141+Y141*U141) -> 0 | X141: 0 | Y141: 0
H142: =IFERROR(C142-G142-P142,"") ->  | J142: =$K$9 -> NO APLICA | L142: =IF(C142="","",C142*IF(SIMULADOR!$I$17="INDIVIDUAL",DATOS!$A$41/1000,DATOS!$A$42/1000)) ->  | M142: =IFERROR(C142*SIMULADOR!$I$19/1000,"") ->  | N142: =IFERROR(IF(B142="","",IF(SIMULADOR!$E$15="LIQUIDEZ",F142*16%,IF(SIMULADOR!$E$15="MEJORA_DE_HIPOTECA_Y_LIQUIDEZ",(F142*DATOS!$C$22)*16%,0))),"") ->  | O142: =IFERROR(E142+K142+L142+M142+N142,"") ->  | P142: =IF(B142="","",IF(MOD(B142,2)=0,IF(OR(SIMULADOR!$E$15="FOVISSSTE",SIMULADOR!$E$17="APOYO INFONAVIT"),IF(H141<$E$14-G142,0,MIN(SIMULADOR!$E$39*0.1,(DATOS!$S$31))),0),0)) ->  | S142: =IFERROR(IF(B142="","",O142+P142),0) ->  | T142: =IFERROR(IF(C142="","",(O142-I142)),0) ->  | U142: =IF($K$9=DATOS!$A$23,1,0) -> 0 | V142: =IF($K$9=DATOS!$A$24,1,0) -> 0 | W142: =IF(SUM(U142:V142)=0,SIMULADOR!$M$19,X142*V142+Y142*U142) -> 0 | X142: =IFERROR(PMT($G$9/12,$D$14-B141,-C142),0) -> 0 | Y142: 0
B143: =IF(C143="","",IF(B142>=$D$14,"",B142+1)) ->  | E143: =IFERROR(IF(B143="","",(F143+G143)),0) ->  | F143: =IFERROR(C143*$G$9/12,"") ->  | G143: =IFERROR(IF(B143="","",IF(H142<W143-F143,H142,W143-F143)),0) ->  | J143: NO APLICA | L143: =IF(C143="","",C143*IF(SIMULADOR!$I$17="INDIVIDUAL",DATOS!$A$41/1000,DATOS!$A$42/1000)) ->  | M143: =IFERROR(C143*SIMULADOR!$I$19/1000,"") ->  | N143: =IFERROR(IF(B143="","",IF(SIMULADOR!$E$15="LIQUIDEZ",F143*16%,IF(SIMULADOR!$E$15="MEJORA_DE_HIPOTECA_Y_LIQUIDEZ",(F143*DATOS!$C$22)*16%,0))),"") ->  | P143: =IF(B143="","",IF(MOD(B143,2)=0,IF(OR(SIMULADOR!$E$15="FOVISSSTE",SIMULADOR!$E$17="APOYO INFONAVIT"),IF(H142<$E$14-G143,0,MIN(SIMULADOR!$E$39*0.1,(DATOS!$S$31))),0),0)) ->  | U143: =IF($K$9=DATOS!$A$23,1,0) -> 0 | V143: =IF($K$9=DATOS!$A$24,1,0) -> 0 | W143: =IF(SUM(U143:V143)=0,SIMULADOR!$M$19,X143*V143+Y143*U143) -> 0 | X143: 0 | Y143: 0
C144: =IFERROR(IF(H143<=0,"",H143-IF(J143="NO APLICA",0,I143)),"") ->  | D144: =IF(C144="","",D143-1) ->  | J144: NO APLICA | K144: =IF(B144="","",IF(C144>0,$K$14,0)) ->  | L144: =IF(C144="","",C144*IF(SIMULADOR!$I$17="INDIVIDUAL",DATOS!$A$41/1000,DATOS!$A$42/1000)) ->  | M144: =IFERROR(C144*SIMULADOR!$I$19/1000,"") ->  | N144: =IFERROR(IF(B144="","",IF(SIMULADOR!$E$15="LIQUIDEZ",F144*16%,IF(SIMULADOR!$E$15="MEJORA_DE_HIPOTECA_Y_LIQUIDEZ",(F144*DATOS!$C$22)*16%,0))),"") ->  | P144: =IF(B144="","",IF(MOD(B144,2)=0,IF(OR(SIMULADOR!$E$15="FOVISSSTE",SIMULADOR!$E$17="APOYO INFONAVIT"),IF(H143<$E$14-G144,0,MIN(SIMULADOR!$E$39*0.1,(DATOS!$S$31))),0),0)) ->  | U144: =IF($K$9=DATOS!$A$23,1,0) -> 0 | V144: =IF($K$9=DATOS!$A$24,1,0) -> 0 | W144: =IF(SUM(U144:V144)=0,SIMULADOR!$M$19,X144*V144+Y144*U144) -> 0 | X144: 0 | Y144: =W143 -> 0
J145: NO APLICA | L145: =IF(C145="","",C145*IF(SIMULADOR!$I$17="INDIVIDUAL",DATOS!$A$41/1000,DATOS!$A$42/1000)) ->  | M145: =IFERROR(C145*SIMULADOR!$I$19/1000,"") ->  | N145: =IFERROR(IF(B145="","",IF(SIMULADOR!$E$15="LIQUIDEZ",F145*16%,IF(SIMULADOR!$E$15="MEJORA_DE_HIPOTECA_Y_LIQUIDEZ",(F145*DATOS!$C$22)*16%,0))),"") ->  | P145: =IF(B145="","",IF(MOD(B145,2)=0,IF(OR(SIMULADOR!$E$15="FOVISSSTE",SIMULADOR!$E$17="APOYO INFONAVIT"),IF(H144<$E$14-G145,0,MIN(SIMULADOR!$E$39*0.1,(DATOS!$S$31))),0),0)) ->  | U145: =IF($K$9=DATOS!$A$23,1,0) -> 0 | V145: =IF($K$9=DATOS!$A$24,1,0) -> 0 | W145: =IF(SUM(U145:V145)=0,SIMULADOR!$M$19,X145*V145+Y145*U145) -> 0 | X145: 0 | Y145: 0
J146: NO APLICA | L146: =IF(C146="","",C146*IF(SIMULADOR!$I$17="INDIVIDUAL",DATOS!$A$41/1000,DATOS!$A$42/1000)) ->  | M146: =IFERROR(C146*SIMULADOR!$I$19/1000,"") ->  | N146: =IFERROR(IF(B146="","",IF(SIMULADOR!$E$15="LIQUIDEZ",F146*16%,IF(SIMULADOR!$E$15="MEJORA_DE_HIPOTECA_Y_LIQUIDEZ",(F146*DATOS!$C$22)*16%,0))),"") ->  | P146: =IF(B146="","",IF(MOD(B146,2)=0,IF(OR(SIMULADOR!$E$15="FOVISSSTE",SIMULADOR!$E$17="APOYO INFONAVIT"),IF(H145<$E$14-G146,0,MIN(SIMULADOR!$E$39*0.1,(DATOS!$S$31))),0),0)) ->  | U146: =IF($K$9=DATOS!$A$23,1,0) -> 0 | V146: =IF($K$9=DATOS!$A$24,1,0) -> 0 | W146: =IF(SUM(U146:V146)=0,SIMULADOR!$M$19,X146*V146+Y146*U146) -> 0 | X146: 0 | Y146: 0
J147: NO APLICA | L147: =IF(C147="","",C147*IF(SIMULADOR!$I$17="INDIVIDUAL",DATOS!$A$41/1000,DATOS!$A$42/1000)) ->  | M147: =IFERROR(C147*SIMULADOR!$I$19/1000,"") ->  | N147: =IFERROR(IF(B147="","",IF(SIMULADOR!$E$15="LIQUIDEZ",F147*16%,IF(SIMULADOR!$E$15="MEJORA_DE_HIPOTECA_Y_LIQUIDEZ",(F147*DATOS!$C$22)*16%,0))),"") ->  | P147: =IF(B147="","",IF(MOD(B147,2)=0,IF(OR(SIMULADOR!$E$15="FOVISSSTE",SIMULADOR!$E$17="APOYO INFONAVIT"),IF(H146<$E$14-G147,0,MIN(SIMULADOR!$E$39*0.1,(DATOS!$S$31))),0),0)) ->  | U147: =IF($K$9=DATOS!$A$23,1,0) -> 0 | V147: =IF($K$9=DATOS!$A$24,1,0) -> 0 | W147: =IF(SUM(U147:V147)=0,SIMULADOR!$M$19,X147*V147+Y147*U147) -> 0 | X147: 0 | Y147: 0
J148: NO APLICA | L148: =IF(C148="","",C148*IF(SIMULADOR!$I$17="INDIVIDUAL",DATOS!$A$41/1000,DATOS!$A$42/1000)) ->  | M148: =IFERROR(C148*SIMULADOR!$I$19/1000,"") ->  | N148: =IFERROR(IF(B148="","",IF(SIMULADOR!$E$15="LIQUIDEZ",F148*16%,IF(SIMULADOR!$E$15="MEJORA_DE_HIPOTECA_Y_LIQUIDEZ",(F148*DATOS!$C$22)*16%,0))),"") ->  | P148: =IF(B148="","",IF(MOD(B148,2)=0,IF(OR(SIMULADOR!$E$15="FOVISSSTE",SIMULADOR!$E$17="APOYO INFONAVIT"),IF(H147<$E$14-G148,0,MIN(SIMULADOR!$E$39*0.1,(DATOS!$S$31))),0),0)) ->  | U148: =IF($K$9=DATOS!$A$23,1,0) -> 0 | V148: =IF($K$9=DATOS!$A$24,1,0) -> 0 | W148: =IF(SUM(U148:V148)=0,SIMULADOR!$M$19,X148*V148+Y148*U148) -> 0 | X148: 0 | Y148: 0
J149: NO APLICA | L149: =IF(C149="","",C149*IF(SIMULADOR!$I$17="INDIVIDUAL",DATOS!$A$41/1000,DATOS!$A$42/1000)) ->  | M149: =IFERROR(C149*SIMULADOR!$I$19/1000,"") ->  | N149: =IFERROR(IF(B149="","",IF(SIMULADOR!$E$15="LIQUIDEZ",F149*16%,IF(SIMULADOR!$E$15="MEJORA_DE_HIPOTECA_Y_LIQUIDEZ",(F149*DATOS!$C$22)*16%,0))),"") ->  | P149: =IF(B149="","",IF(MOD(B149,2)=0,IF(OR(SIMULADOR!$E$15="FOVISSSTE",SIMULADOR!$E$17="APOYO INFONAVIT"),IF(H148<$E$14-G149,0,MIN(SIMULADOR!$E$39*0.1,(DATOS!$S$31))),0),0)) ->  | U149: =IF($K$9=DATOS!$A$23,1,0) -> 0 | V149: =IF($K$9=DATOS!$A$24,1,0) -> 0 | W149: =IF(SUM(U149:V149)=0,SIMULADOR!$M$19,X149*V149+Y149*U149) -> 0 | X149: 0 | Y149: 0
J150: NO APLICA | L150: =IF(C150="","",C150*IF(SIMULADOR!$I$17="INDIVIDUAL",DATOS!$A$41/1000,DATOS!$A$42/1000)) ->  | M150: =IFERROR(C150*SIMULADOR!$I$19/1000,"") ->  | N150: =IFERROR(IF(B150="","",IF(SIMULADOR!$E$15="LIQUIDEZ",F150*16%,IF(SIMULADOR!$E$15="MEJORA_DE_HIPOTECA_Y_LIQUIDEZ",(F150*DATOS!$C$22)*16%,0))),"") ->  | P150: =IF(B150="","",IF(MOD(B150,2)=0,IF(OR(SIMULADOR!$E$15="FOVISSSTE",SIMULADOR!$E$17="APOYO INFONAVIT"),IF(H149<$E$14-G150,0,MIN(SIMULADOR!$E$39*0.1,(DATOS!$S$31))),0),0)) ->  | U150: =IF($K$9=DATOS!$A$23,1,0) -> 0 | V150: =IF($K$9=DATOS!$A$24,1,0) -> 0 | W150: =IF(SUM(U150:V150)=0,SIMULADOR!$M$19,X150*V150+Y150*U150) -> 0 | X150: 0 | Y150: 0
J151: NO APLICA | L151: =IF(C151="","",C151*IF(SIMULADOR!$I$17="INDIVIDUAL",DATOS!$A$41/1000,DATOS!$A$42/1000)) ->  | M151: =IFERROR(C151*SIMULADOR!$I$19/1000,"") ->  | N151: =IFERROR(IF(B151="","",IF(SIMULADOR!$E$15="LIQUIDEZ",F151*16%,IF(SIMULADOR!$E$15="MEJORA_DE_HIPOTECA_Y_LIQUIDEZ",(F151*DATOS!$C$22)*16%,0))),"") ->  | P151: =IF(B151="","",IF(MOD(B151,2)=0,IF(OR(SIMULADOR!$E$15="FOVISSSTE",SIMULADOR!$E$17="APOYO INFONAVIT"),IF(H150<$E$14-G151,0,MIN(SIMULADOR!$E$39*0.1,(DATOS!$S$31))),0),0)) ->  | U151: =IF($K$9=DATOS!$A$23,1,0) -> 0 | V151: =IF($K$9=DATOS!$A$24,1,0) -> 0 | W151: =IF(SUM(U151:V151)=0,SIMULADOR!$M$19,X151*V151+Y151*U151) -> 0 | X151: 0 | Y151: 0
J152: NO APLICA | L152: =IF(C152="","",C152*IF(SIMULADOR!$I$17="INDIVIDUAL",DATOS!$A$41/1000,DATOS!$A$42/1000)) ->  | M152: =IFERROR(C152*SIMULADOR!$I$19/1000,"") ->  | N152: =IFERROR(IF(B152="","",IF(SIMULADOR!$E$15="LIQUIDEZ",F152*16%,IF(SIMULADOR!$E$15="MEJORA_DE_HIPOTECA_Y_LIQUIDEZ",(F152*DATOS!$C$22)*16%,0))),"") ->  | P152: =IF(B152="","",IF(MOD(B152,2)=0,IF(OR(SIMULADOR!$E$15="FOVISSSTE",SIMULADOR!$E$17="APOYO INFONAVIT"),IF(H151<$E$14-G152,0,MIN(SIMULADOR!$E$39*0.1,(DATOS!$S$31))),0),0)) ->  | U152: =IF($K$9=DATOS!$A$23,1,0) -> 0 | V152: =IF($K$9=DATOS!$A$24,1,0) -> 0 | W152: =IF(SUM(U152:V152)=0,SIMULADOR!$M$19,X152*V152+Y152*U152) -> 0 | X152: 0 | Y152: 0
J153: NO APLICA | L153: =IF(C153="","",C153*IF(SIMULADOR!$I$17="INDIVIDUAL",DATOS!$A$41/1000,DATOS!$A$42/1000)) ->  | M153: =IFERROR(C153*SIMULADOR!$I$19/1000,"") ->  | N153: =IFERROR(IF(B153="","",IF(SIMULADOR!$E$15="LIQUIDEZ",F153*16%,IF(SIMULADOR!$E$15="MEJORA_DE_HIPOTECA_Y_LIQUIDEZ",(F153*DATOS!$C$22)*16%,0))),"") ->  | P153: =IF(B153="","",IF(MOD(B153,2)=0,IF(OR(SIMULADOR!$E$15="FOVISSSTE",SIMULADOR!$E$17="APOYO INFONAVIT"),IF(H152<$E$14-G153,0,MIN(SIMULADOR!$E$39*0.1,(DATOS!$S$31))),0),0)) ->  | U153: =IF($K$9=DATOS!$A$23,1,0) -> 0 | V153: =IF($K$9=DATOS!$A$24,1,0) -> 0 | W153: =IF(SUM(U153:V153)=0,SIMULADOR!$M$19,X153*V153+Y153*U153) -> 0 | X153: 0 | Y153: 0
J154: NO APLICA | L154: =IF(C154="","",C154*IF(SIMULADOR!$I$17="INDIVIDUAL",DATOS!$A$41/1000,DATOS!$A$42/1000)) ->  | M154: =IFERROR(C154*SIMULADOR!$I$19/1000,"") ->  | N154: =IFERROR(IF(B154="","",IF(SIMULADOR!$E$15="LIQUIDEZ",F154*16%,IF(SIMULADOR!$E$15="MEJORA_DE_HIPOTECA_Y_LIQUIDEZ",(F154*DATOS!$C$22)*16%,0))),"") ->  | P154: =IF(B154="","",IF(MOD(B154,2)=0,IF(OR(SIMULADOR!$E$15="FOVISSSTE",SIMULADOR!$E$17="APOYO INFONAVIT"),IF(H153<$E$14-G154,0,MIN(SIMULADOR!$E$39*0.1,(DATOS!$S$31))),0),0)) ->  | U154: =IF($K$9=DATOS!$A$23,1,0) -> 0 | V154: =IF($K$9=DATOS!$A$24,1,0) -> 0 | W154: =IF(SUM(U154:V154)=0,SIMULADOR!$M$19,X154*V154+Y154*U154) -> 0 | X154: 0 | Y154: 0
J155: NO APLICA | L155: =IF(C155="","",C155*IF(SIMULADOR!$I$17="INDIVIDUAL",DATOS!$A$41/1000,DATOS!$A$42/1000)) ->  | M155: =IFERROR(C155*SIMULADOR!$I$19/1000,"") ->  | N155: =IFERROR(IF(B155="","",IF(SIMULADOR!$E$15="LIQUIDEZ",F155*16%,IF(SIMULADOR!$E$15="MEJORA_DE_HIPOTECA_Y_LIQUIDEZ",(F155*DATOS!$C$22)*16%,0))),"") ->  | P155: =IF(B155="","",IF(MOD(B155,2)=0,IF(OR(SIMULADOR!$E$15="FOVISSSTE",SIMULADOR!$E$17="APOYO INFONAVIT"),IF(H154<$E$14-G155,0,MIN(SIMULADOR!$E$39*0.1,(DATOS!$S$31))),0),0)) ->  | U155: =IF($K$9=DATOS!$A$23,1,0) -> 0 | V155: =IF($K$9=DATOS!$A$24,1,0) -> 0 | W155: =IF(SUM(U155:V155)=0,SIMULADOR!$M$19,X155*V155+Y155*U155) -> 0 | X155: 0 | Y155: 0
J156: NO APLICA | L156: =IF(C156="","",C156*IF(SIMULADOR!$I$17="INDIVIDUAL",DATOS!$A$41/1000,DATOS!$A$42/1000)) ->  | M156: =IFERROR(C156*SIMULADOR!$I$19/1000,"") ->  | N156: =IFERROR(IF(B156="","",IF(SIMULADOR!$E$15="LIQUIDEZ",F156*16%,IF(SIMULADOR!$E$15="MEJORA_DE_HIPOTECA_Y_LIQUIDEZ",(F156*DATOS!$C$22)*16%,0))),"") ->  | P156: =IF(B156="","",IF(MOD(B156,2)=0,IF(OR(SIMULADOR!$E$15="FOVISSSTE",SIMULADOR!$E$17="APOYO INFONAVIT"),IF(H155<$E$14-G156,0,MIN(SIMULADOR!$E$39*0.1,(DATOS!$S$31))),0),0)) ->  | U156: =IF($K$9=DATOS!$A$23,1,0) -> 0 | V156: =IF($K$9=DATOS!$A$24,1,0) -> 0 | W156: =IF(SUM(U156:V156)=0,SIMULADOR!$M$19,X156*V156+Y156*U156) -> 0 | X156: 0 | Y156: 0
J157: NO APLICA | L157: =IF(C157="","",C157*IF(SIMULADOR!$I$17="INDIVIDUAL",DATOS!$A$41/1000,DATOS!$A$42/1000)) ->  | M157: =IFERROR(C157*SIMULADOR!$I$19/1000,"") ->  | N157: =IFERROR(IF(B157="","",IF(SIMULADOR!$E$15="LIQUIDEZ",F157*16%,IF(SIMULADOR!$E$15="MEJORA_DE_HIPOTECA_Y_LIQUIDEZ",(F157*DATOS!$C$22)*16%,0))),"") ->  | P157: =IF(B157="","",IF(MOD(B157,2)=0,IF(OR(SIMULADOR!$E$15="FOVISSSTE",SIMULADOR!$E$17="APOYO INFONAVIT"),IF(H156<$E$14-G157,0,MIN(SIMULADOR!$E$39*0.1,(DATOS!$S$31))),0),0)) ->  | U157: =IF($K$9=DATOS!$A$23,1,0) -> 0 | V157: =IF($K$9=DATOS!$A$24,1,0) -> 0 | W157: =IF(SUM(U157:V157)=0,SIMULADOR!$M$19,X157*V157+Y157*U157) -> 0 | X157: 0 | Y157: 0
J158: NO APLICA | L158: =IF(C158="","",C158*IF(SIMULADOR!$I$17="INDIVIDUAL",DATOS!$A$41/1000,DATOS!$A$42/1000)) ->  | M158: =IFERROR(C158*SIMULADOR!$I$19/1000,"") ->  | N158: =IFERROR(IF(B158="","",IF(SIMULADOR!$E$15="LIQUIDEZ",F158*16%,IF(SIMULADOR!$E$15="MEJORA_DE_HIPOTECA_Y_LIQUIDEZ",(F158*DATOS!$C$22)*16%,0))),"") ->  | P158: =IF(B158="","",IF(MOD(B158,2)=0,IF(OR(SIMULADOR!$E$15="FOVISSSTE",SIMULADOR!$E$17="APOYO INFONAVIT"),IF(H157<$E$14-G158,0,MIN(SIMULADOR!$E$39*0.1,(DATOS!$S$31))),0),0)) ->  | U158: =IF($K$9=DATOS!$A$23,1,0) -> 0 | V158: =IF($K$9=DATOS!$A$24,1,0) -> 0 | W158: =IF(SUM(U158:V158)=0,SIMULADOR!$M$19,X158*V158+Y158*U158) -> 0 | X158: 0 | Y158: 0
J159: NO APLICA | L159: =IF(C159="","",C159*IF(SIMULADOR!$I$17="INDIVIDUAL",DATOS!$A$41/1000,DATOS!$A$42/1000)) ->  | M159: =IFERROR(C159*SIMULADOR!$I$19/1000,"") ->  | N159: =IFERROR(IF(B159="","",IF(SIMULADOR!$E$15="LIQUIDEZ",F159*16%,IF(SIMULADOR!$E$15="MEJORA_DE_HIPOTECA_Y_LIQUIDEZ",(F159*DATOS!$C$22)*16%,0))),"") ->  | P159: =IF(B159="","",IF(MOD(B159,2)=0,IF(OR(SIMULADOR!$E$15="FOVISSSTE",SIMULADOR!$E$17="APOYO INFONAVIT"),IF(H158<$E$14-G159,0,MIN(SIMULADOR!$E$39*0.1,(DATOS!$S$31))),0),0)) ->  | U159: =IF($K$9=DATOS!$A$23,1,0) -> 0 | V159: =IF($K$9=DATOS!$A$24,1,0) -> 0 | W159: =IF(SUM(U159:V159)=0,SIMULADOR!$M$19,X159*V159+Y159*U159) -> 0 | X159: 0 | Y159: 0
J160: NO APLICA | L160: =IF(C160="","",C160*IF(SIMULADOR!$I$17="INDIVIDUAL",DATOS!$A$41/1000,DATOS!$A$42/1000)) ->  | M160: =IFERROR(C160*SIMULADOR!$I$19/1000,"") ->  | N160: =IFERROR(IF(B160="","",IF(SIMULADOR!$E$15="LIQUIDEZ",F160*16%,IF(SIMULADOR!$E$15="MEJORA_DE_HIPOTECA_Y_LIQUIDEZ",(F160*DATOS!$C$22)*16%,0))),"") ->  | P160: =IF(B160="","",IF(MOD(B160,2)=0,IF(OR(SIMULADOR!$E$15="FOVISSSTE",SIMULADOR!$E$17="APOYO INFONAVIT"),IF(H159<$E$14-G160,0,MIN(SIMULADOR!$E$39*0.1,(DATOS!$S$31))),0),0)) ->  | U160: =IF($K$9=DATOS!$A$23,1,0) -> 0 | V160: =IF($K$9=DATOS!$A$24,1,0) -> 0 | W160: =IF(SUM(U160:V160)=0,SIMULADOR!$M$19,X160*V160+Y160*U160) -> 0 | X160: 0 | Y160: 0
J161: NO APLICA | L161: =IF(C161="","",C161*IF(SIMULADOR!$I$17="INDIVIDUAL",DATOS!$A$41/1000,DATOS!$A$42/1000)) ->  | M161: =IFERROR(C161*SIMULADOR!$I$19/1000,"") ->  | N161: =IFERROR(IF(B161="","",IF(SIMULADOR!$E$15="LIQUIDEZ",F161*16%,IF(SIMULADOR!$E$15="MEJORA_DE_HIPOTECA_Y_LIQUIDEZ",(F161*DATOS!$C$22)*16%,0))),"") ->  | P161: =IF(B161="","",IF(MOD(B161,2)=0,IF(OR(SIMULADOR!$E$15="FOVISSSTE",SIMULADOR!$E$17="APOYO INFONAVIT"),IF(H160<$E$14-G161,0,MIN(SIMULADOR!$E$39*0.1,(DATOS!$S$31))),0),0)) ->  | U161: =IF($K$9=DATOS!$A$23,1,0) -> 0 | V161: =IF($K$9=DATOS!$A$24,1,0) -> 0 | W161: =IF(SUM(U161:V161)=0,SIMULADOR!$M$19,X161*V161+Y161*U161) -> 0 | X161: 0 | Y161: 0
J162: NO APLICA | L162: =IF(C162="","",C162*IF(SIMULADOR!$I$17="INDIVIDUAL",DATOS!$A$41/1000,DATOS!$A$42/1000)) ->  | M162: =IFERROR(C162*SIMULADOR!$I$19/1000,"") ->  | N162: =IFERROR(IF(B162="","",IF(SIMULADOR!$E$15="LIQUIDEZ",F162*16%,IF(SIMULADOR!$E$15="MEJORA_DE_HIPOTECA_Y_LIQUIDEZ",(F162*DATOS!$C$22)*16%,0))),"") ->  | P162: =IF(B162="","",IF(MOD(B162,2)=0,IF(OR(SIMULADOR!$E$15="FOVISSSTE",SIMULADOR!$E$17="APOYO INFONAVIT"),IF(H161<$E$14-G162,0,MIN(SIMULADOR!$E$39*0.1,(DATOS!$S$31))),0),0)) ->  | U162: =IF($K$9=DATOS!$A$23,1,0) -> 0 | V162: =IF($K$9=DATOS!$A$24,1,0) -> 0 | W162: =IF(SUM(U162:V162)=0,SIMULADOR!$M$19,X162*V162+Y162*U162) -> 0 | X162: 0 | Y162: 0
J163: NO APLICA | L163: =IF(C163="","",C163*IF(SIMULADOR!$I$17="INDIVIDUAL",DATOS!$A$41/1000,DATOS!$A$42/1000)) ->  | M163: =IFERROR(C163*SIMULADOR!$I$19/1000,"") ->  | N163: =IFERROR(IF(B163="","",IF(SIMULADOR!$E$15="LIQUIDEZ",F163*16%,IF(SIMULADOR!$E$15="MEJORA_DE_HIPOTECA_Y_LIQUIDEZ",(F163*DATOS!$C$22)*16%,0))),"") ->  | P163: =IF(B163="","",IF(MOD(B163,2)=0,IF(OR(SIMULADOR!$E$15="FOVISSSTE",SIMULADOR!$E$17="APOYO INFONAVIT"),IF(H162<$E$14-G163,0,MIN(SIMULADOR!$E$39*0.1,(DATOS!$S$31))),0),0)) ->  | U163: =IF($K$9=DATOS!$A$23,1,0) -> 0 | V163: =IF($K$9=DATOS!$A$24,1,0) -> 0 | W163: =IF(SUM(U163:V163)=0,SIMULADOR!$M$19,X163*V163+Y163*U163) -> 0 | X163: 0 | Y163: 0
J164: NO APLICA | L164: =IF(C164="","",C164*IF(SIMULADOR!$I$17="INDIVIDUAL",DATOS!$A$41/1000,DATOS!$A$42/1000)) ->  | M164: =IFERROR(C164*SIMULADOR!$I$19/1000,"") ->  | N164: =IFERROR(IF(B164="","",IF(SIMULADOR!$E$15="LIQUIDEZ",F164*16%,IF(SIMULADOR!$E$15="MEJORA_DE_HIPOTECA_Y_LIQUIDEZ",(F164*DATOS!$C$22)*16%,0))),"") ->  | P164: =IF(B164="","",IF(MOD(B164,2)=0,IF(OR(SIMULADOR!$E$15="FOVISSSTE",SIMULADOR!$E$17="APOYO INFONAVIT"),IF(H163<$E$14-G164,0,MIN(SIMULADOR!$E$39*0.1,(DATOS!$S$31))),0),0)) ->  | U164: =IF($K$9=DATOS!$A$23,1,0) -> 0 | V164: =IF($K$9=DATOS!$A$24,1,0) -> 0 | W164: =IF(SUM(U164:V164)=0,SIMULADOR!$M$19,X164*V164+Y164*U164) -> 0 | X164: 0 | Y164: 0
J165: NO APLICA | L165: =IF(C165="","",C165*IF(SIMULADOR!$I$17="INDIVIDUAL",DATOS!$A$41/1000,DATOS!$A$42/1000)) ->  | M165: =IFERROR(C165*SIMULADOR!$I$19/1000,"") ->  | N165: =IFERROR(IF(B165="","",IF(SIMULADOR!$E$15="LIQUIDEZ",F165*16%,IF(SIMULADOR!$E$15="MEJORA_DE_HIPOTECA_Y_LIQUIDEZ",(F165*DATOS!$C$22)*16%,0))),"") ->  | P165: =IF(B165="","",IF(MOD(B165,2)=0,IF(OR(SIMULADOR!$E$15="FOVISSSTE",SIMULADOR!$E$17="APOYO INFONAVIT"),IF(H164<$E$14-G165,0,MIN(SIMULADOR!$E$39*0.1,(DATOS!$S$31))),0),0)) ->  | U165: =IF($K$9=DATOS!$A$23,1,0) -> 0 | V165: =IF($K$9=DATOS!$A$24,1,0) -> 0 | W165: =IF(SUM(U165:V165)=0,SIMULADOR!$M$19,X165*V165+Y165*U165) -> 0 | X165: 0 | Y165: 0
J166: NO APLICA | L166: =IF(C166="","",C166*IF(SIMULADOR!$I$17="INDIVIDUAL",DATOS!$A$41/1000,DATOS!$A$42/1000)) ->  | M166: =IFERROR(C166*SIMULADOR!$I$19/1000,"") ->  | N166: =IFERROR(IF(B166="","",IF(SIMULADOR!$E$15="LIQUIDEZ",F166*16%,IF(SIMULADOR!$E$15="MEJORA_DE_HIPOTECA_Y_LIQUIDEZ",(F166*DATOS!$C$22)*16%,0))),"") ->  | P166: =IF(B166="","",IF(MOD(B166,2)=0,IF(OR(SIMULADOR!$E$15="FOVISSSTE",SIMULADOR!$E$17="APOYO INFONAVIT"),IF(H165<$E$14-G166,0,MIN(SIMULADOR!$E$39*0.1,(DATOS!$S$31))),0),0)) ->  | U166: =IF($K$9=DATOS!$A$23,1,0) -> 0 | V166: =IF($K$9=DATOS!$A$24,1,0) -> 0 | W166: =IF(SUM(U166:V166)=0,SIMULADOR!$M$19,X166*V166+Y166*U166) -> 0 | X166: 0 | Y166: 0
J167: NO APLICA | L167: =IF(C167="","",C167*IF(SIMULADOR!$I$17="INDIVIDUAL",DATOS!$A$41/1000,DATOS!$A$42/1000)) ->  | M167: =IFERROR(C167*SIMULADOR!$I$19/1000,"") ->  | N167: =IFERROR(IF(B167="","",IF(SIMULADOR!$E$15="LIQUIDEZ",F167*16%,IF(SIMULADOR!$E$15="MEJORA_DE_HIPOTECA_Y_LIQUIDEZ",(F167*DATOS!$C$22)*16%,0))),"") ->  | P167: =IF(B167="","",IF(MOD(B167,2)=0,IF(OR(SIMULADOR!$E$15="FOVISSSTE",SIMULADOR!$E$17="APOYO INFONAVIT"),IF(H166<$E$14-G167,0,MIN(SIMULADOR!$E$39*0.1,(DATOS!$S$31))),0),0)) ->  | U167: =IF($K$9=DATOS!$A$23,1,0) -> 0 | V167: =IF($K$9=DATOS!$A$24,1,0) -> 0 | W167: =IF(SUM(U167:V167)=0,SIMULADOR!$M$19,X167*V167+Y167*U167) -> 0 | X167: 0 | Y167: 0
J168: NO APLICA | L168: =IF(C168="","",C168*IF(SIMULADOR!$I$17="INDIVIDUAL",DATOS!$A$41/1000,DATOS!$A$42/1000)) ->  | M168: =IFERROR(C168*SIMULADOR!$I$19/1000,"") ->  | N168: =IFERROR(IF(B168="","",IF(SIMULADOR!$E$15="LIQUIDEZ",F168*16%,IF(SIMULADOR!$E$15="MEJORA_DE_HIPOTECA_Y_LIQUIDEZ",(F168*DATOS!$C$22)*16%,0))),"") ->  | P168: =IF(B168="","",IF(MOD(B168,2)=0,IF(OR(SIMULADOR!$E$15="FOVISSSTE",SIMULADOR!$E$17="APOYO INFONAVIT"),IF(H167<$E$14-G168,0,MIN(SIMULADOR!$E$39*0.1,(DATOS!$S$31))),0),0)) ->  | U168: =IF($K$9=DATOS!$A$23,1,0) -> 0 | V168: =IF($K$9=DATOS!$A$24,1,0) -> 0 | W168: =IF(SUM(U168:V168)=0,SIMULADOR!$M$19,X168*V168+Y168*U168) -> 0 | X168: 0 | Y168: 0
J169: NO APLICA | L169: =IF(C169="","",C169*IF(SIMULADOR!$I$17="INDIVIDUAL",DATOS!$A$41/1000,DATOS!$A$42/1000)) ->  | M169: =IFERROR(C169*SIMULADOR!$I$19/1000,"") ->  | N169: =IFERROR(IF(B169="","",IF(SIMULADOR!$E$15="LIQUIDEZ",F169*16%,IF(SIMULADOR!$E$15="MEJORA_DE_HIPOTECA_Y_LIQUIDEZ",(F169*DATOS!$C$22)*16%,0))),"") ->  | P169: =IF(B169="","",IF(MOD(B169,2)=0,IF(OR(SIMULADOR!$E$15="FOVISSSTE",SIMULADOR!$E$17="APOYO INFONAVIT"),IF(H168<$E$14-G169,0,MIN(SIMULADOR!$E$39*0.1,(DATOS!$S$31))),0),0)) ->  | U169: =IF($K$9=DATOS!$A$23,1,0) -> 0 | V169: =IF($K$9=DATOS!$A$24,1,0) -> 0 | W169: =IF(SUM(U169:V169)=0,SIMULADOR!$M$19,X169*V169+Y169*U169) -> 0 | X169: 0 | Y169: 0
J170: NO APLICA | L170: =IF(C170="","",C170*IF(SIMULADOR!$I$17="INDIVIDUAL",DATOS!$A$41/1000,DATOS!$A$42/1000)) ->  | M170: =IFERROR(C170*SIMULADOR!$I$19/1000,"") ->  | N170: =IFERROR(IF(B170="","",IF(SIMULADOR!$E$15="LIQUIDEZ",F170*16%,IF(SIMULADOR!$E$15="MEJORA_DE_HIPOTECA_Y_LIQUIDEZ",(F170*DATOS!$C$22)*16%,0))),"") ->  | P170: =IF(B170="","",IF(MOD(B170,2)=0,IF(OR(SIMULADOR!$E$15="FOVISSSTE",SIMULADOR!$E$17="APOYO INFONAVIT"),IF(H169<$E$14-G170,0,MIN(SIMULADOR!$E$39*0.1,(DATOS!$S$31))),0),0)) ->  | U170: =IF($K$9=DATOS!$A$23,1,0) -> 0 | V170: =IF($K$9=DATOS!$A$24,1,0) -> 0 | W170: =IF(SUM(U170:V170)=0,SIMULADOR!$M$19,X170*V170+Y170*U170) -> 0 | X170: 0 | Y170: 0
J171: NO APLICA | L171: =IF(C171="","",C171*IF(SIMULADOR!$I$17="INDIVIDUAL",DATOS!$A$41/1000,DATOS!$A$42/1000)) ->  | M171: =IFERROR(C171*SIMULADOR!$I$19/1000,"") ->  | N171: =IFERROR(IF(B171="","",IF(SIMULADOR!$E$15="LIQUIDEZ",F171*16%,IF(SIMULADOR!$E$15="MEJORA_DE_HIPOTECA_Y_LIQUIDEZ",(F171*DATOS!$C$22)*16%,0))),"") ->  | P171: =IF(B171="","",IF(MOD(B171,2)=0,IF(OR(SIMULADOR!$E$15="FOVISSSTE",SIMULADOR!$E$17="APOYO INFONAVIT"),IF(H170<$E$14-G171,0,MIN(SIMULADOR!$E$39*0.1,(DATOS!$S$31))),0),0)) ->  | U171: =IF($K$9=DATOS!$A$23,1,0) -> 0 | V171: =IF($K$9=DATOS!$A$24,1,0) -> 0 | W171: =IF(SUM(U171:V171)=0,SIMULADOR!$M$19,X171*V171+Y171*U171) -> 0 | X171: 0 | Y171: 0
J172: NO APLICA | L172: =IF(C172="","",C172*IF(SIMULADOR!$I$17="INDIVIDUAL",DATOS!$A$41/1000,DATOS!$A$42/1000)) ->  | M172: =IFERROR(C172*SIMULADOR!$I$19/1000,"") ->  | N172: =IFERROR(IF(B172="","",IF(SIMULADOR!$E$15="LIQUIDEZ",F172*16%,IF(SIMULADOR!$E$15="MEJORA_DE_HIPOTECA_Y_LIQUIDEZ",(F172*DATOS!$C$22)*16%,0))),"") ->  | P172: =IF(B172="","",IF(MOD(B172,2)=0,IF(OR(SIMULADOR!$E$15="FOVISSSTE",SIMULADOR!$E$17="APOYO INFONAVIT"),IF(H171<$E$14-G172,0,MIN(SIMULADOR!$E$39*0.1,(DATOS!$S$31))),0),0)) ->  | U172: =IF($K$9=DATOS!$A$23,1,0) -> 0 | V172: =IF($K$9=DATOS!$A$24,1,0) -> 0 | W172: =IF(SUM(U172:V172)=0,SIMULADOR!$M$19,X172*V172+Y172*U172) -> 0 | X172: 0 | Y172: 0
J173: NO APLICA | L173: =IF(C173="","",C173*IF(SIMULADOR!$I$17="INDIVIDUAL",DATOS!$A$41/1000,DATOS!$A$42/1000)) ->  | M173: =IFERROR(C173*SIMULADOR!$I$19/1000,"") ->  | N173: =IFERROR(IF(B173="","",IF(SIMULADOR!$E$15="LIQUIDEZ",F173*16%,IF(SIMULADOR!$E$15="MEJORA_DE_HIPOTECA_Y_LIQUIDEZ",(F173*DATOS!$C$22)*16%,0))),"") ->  | P173: =IF(B173="","",IF(MOD(B173,2)=0,IF(OR(SIMULADOR!$E$15="FOVISSSTE",SIMULADOR!$E$17="APOYO INFONAVIT"),IF(H172<$E$14-G173,0,MIN(SIMULADOR!$E$39*0.1,(DATOS!$S$31))),0),0)) ->  | U173: =IF($K$9=DATOS!$A$23,1,0) -> 0 | V173: =IF($K$9=DATOS!$A$24,1,0) -> 0 | W173: =IF(SUM(U173:V173)=0,SIMULADOR!$M$19,X173*V173+Y173*U173) -> 0 | X173: 0 | Y173: 0
J174: NO APLICA | L174: =IF(C174="","",C174*IF(SIMULADOR!$I$17="INDIVIDUAL",DATOS!$A$41/1000,DATOS!$A$42/1000)) ->  | M174: =IFERROR(C174*SIMULADOR!$I$19/1000,"") ->  | N174: =IFERROR(IF(B174="","",IF(SIMULADOR!$E$15="LIQUIDEZ",F174*16%,IF(SIMULADOR!$E$15="MEJORA_DE_HIPOTECA_Y_LIQUIDEZ",(F174*DATOS!$C$22)*16%,0))),"") ->  | P174: =IF(B174="","",IF(MOD(B174,2)=0,IF(OR(SIMULADOR!$E$15="FOVISSSTE",SIMULADOR!$E$17="APOYO INFONAVIT"),IF(H173<$E$14-G174,0,MIN(SIMULADOR!$E$39*0.1,(DATOS!$S$31))),0),0)) ->  | U174: =IF($K$9=DATOS!$A$23,1,0) -> 0 | V174: =IF($K$9=DATOS!$A$24,1,0) -> 0 | W174: =IF(SUM(U174:V174)=0,SIMULADOR!$M$19,X174*V174+Y174*U174) -> 0 | X174: 0 | Y174: 0
J175: NO APLICA | L175: =IF(C175="","",C175*IF(SIMULADOR!$I$17="INDIVIDUAL",DATOS!$A$41/1000,DATOS!$A$42/1000)) ->  | M175: =IFERROR(C175*SIMULADOR!$I$19/1000,"") ->  | N175: =IFERROR(IF(B175="","",IF(SIMULADOR!$E$15="LIQUIDEZ",F175*16%,IF(SIMULADOR!$E$15="MEJORA_DE_HIPOTECA_Y_LIQUIDEZ",(F175*DATOS!$C$22)*16%,0))),"") ->  | P175: =IF(B175="","",IF(MOD(B175,2)=0,IF(OR(SIMULADOR!$E$15="FOVISSSTE",SIMULADOR!$E$17="APOYO INFONAVIT"),IF(H174<$E$14-G175,0,MIN(SIMULADOR!$E$39*0.1,(DATOS!$S$31))),0),0)) ->  | U175: =IF($K$9=DATOS!$A$23,1,0) -> 0 | V175: =IF($K$9=DATOS!$A$24,1,0) -> 0 | W175: =IF(SUM(U175:V175)=0,SIMULADOR!$M$19,X175*V175+Y175*U175) -> 0 | X175: 0 | Y175: 0
J176: NO APLICA | L176: =IF(C176="","",C176*IF(SIMULADOR!$I$17="INDIVIDUAL",DATOS!$A$41/1000,DATOS!$A$42/1000)) ->  | M176: =IFERROR(C176*SIMULADOR!$I$19/1000,"") ->  | N176: =IFERROR(IF(B176="","",IF(SIMULADOR!$E$15="LIQUIDEZ",F176*16%,IF(SIMULADOR!$E$15="MEJORA_DE_HIPOTECA_Y_LIQUIDEZ",(F176*DATOS!$C$22)*16%,0))),"") ->  | P176: =IF(B176="","",IF(MOD(B176,2)=0,IF(OR(SIMULADOR!$E$15="FOVISSSTE",SIMULADOR!$E$17="APOYO INFONAVIT"),IF(H175<$E$14-G176,0,MIN(SIMULADOR!$E$39*0.1,(DATOS!$S$31))),0),0)) ->  | U176: =IF($K$9=DATOS!$A$23,1,0) -> 0 | V176: =IF($K$9=DATOS!$A$24,1,0) -> 0 | W176: =IF(SUM(U176:V176)=0,SIMULADOR!$M$19,X176*V176+Y176*U176) -> 0 | X176: 0 | Y176: 0
J177: NO APLICA | L177: =IF(C177="","",C177*IF(SIMULADOR!$I$17="INDIVIDUAL",DATOS!$A$41/1000,DATOS!$A$42/1000)) ->  | M177: =IFERROR(C177*SIMULADOR!$I$19/1000,"") ->  | N177: =IFERROR(IF(B177="","",IF(SIMULADOR!$E$15="LIQUIDEZ",F177*16%,IF(SIMULADOR!$E$15="MEJORA_DE_HIPOTECA_Y_LIQUIDEZ",(F177*DATOS!$C$22)*16%,0))),"") ->  | P177: =IF(B177="","",IF(MOD(B177,2)=0,IF(OR(SIMULADOR!$E$15="FOVISSSTE",SIMULADOR!$E$17="APOYO INFONAVIT"),IF(H176<$E$14-G177,0,MIN(SIMULADOR!$E$39*0.1,(DATOS!$S$31))),0),0)) ->  | U177: =IF($K$9=DATOS!$A$23,1,0) -> 0 | V177: =IF($K$9=DATOS!$A$24,1,0) -> 0 | W177: =IF(SUM(U177:V177)=0,SIMULADOR!$M$19,X177*V177+Y177*U177) -> 0 | X177: 0 | Y177: 0
J178: NO APLICA | L178: =IF(C178="","",C178*IF(SIMULADOR!$I$17="INDIVIDUAL",DATOS!$A$41/1000,DATOS!$A$42/1000)) ->  | M178: =IFERROR(C178*SIMULADOR!$I$19/1000,"") ->  | N178: =IFERROR(IF(B178="","",IF(SIMULADOR!$E$15="LIQUIDEZ",F178*16%,IF(SIMULADOR!$E$15="MEJORA_DE_HIPOTECA_Y_LIQUIDEZ",(F178*DATOS!$C$22)*16%,0))),"") ->  | P178: =IF(B178="","",IF(MOD(B178,2)=0,IF(OR(SIMULADOR!$E$15="FOVISSSTE",SIMULADOR!$E$17="APOYO INFONAVIT"),IF(H177<$E$14-G178,0,MIN(SIMULADOR!$E$39*0.1,(DATOS!$S$31))),0),0)) ->  | U178: =IF($K$9=DATOS!$A$23,1,0) -> 0 | V178: =IF($K$9=DATOS!$A$24,1,0) -> 0 | W178: =IF(SUM(U178:V178)=0,SIMULADOR!$M$19,X178*V178+Y178*U178) -> 0 | X178: 0 | Y178: 0
J179: NO APLICA | L179: =IF(C179="","",C179*IF(SIMULADOR!$I$17="INDIVIDUAL",DATOS!$A$41/1000,DATOS!$A$42/1000)) ->  | M179: =IFERROR(C179*SIMULADOR!$I$19/1000,"") ->  | N179: =IFERROR(IF(B179="","",IF(SIMULADOR!$E$15="LIQUIDEZ",F179*16%,IF(SIMULADOR!$E$15="MEJORA_DE_HIPOTECA_Y_LIQUIDEZ",(F179*DATOS!$C$22)*16%,0))),"") ->  | P179: =IF(B179="","",IF(MOD(B179,2)=0,IF(OR(SIMULADOR!$E$15="FOVISSSTE",SIMULADOR!$E$17="APOYO INFONAVIT"),IF(H178<$E$14-G179,0,MIN(SIMULADOR!$E$39*0.1,(DATOS!$S$31))),0),0)) ->  | U179: =IF($K$9=DATOS!$A$23,1,0) -> 0 | V179: =IF($K$9=DATOS!$A$24,1,0) -> 0 | W179: =IF(SUM(U179:V179)=0,SIMULADOR!$M$19,X179*V179+Y179*U179) -> 0 | X179: 0 | Y179: 0
J180: NO APLICA | L180: =IF(C180="","",C180*IF(SIMULADOR!$I$17="INDIVIDUAL",DATOS!$A$41/1000,DATOS!$A$42/1000)) ->  | M180: =IFERROR(C180*SIMULADOR!$I$19/1000,"") ->  | N180: =IFERROR(IF(B180="","",IF(SIMULADOR!$E$15="LIQUIDEZ",F180*16%,IF(SIMULADOR!$E$15="MEJORA_DE_HIPOTECA_Y_LIQUIDEZ",(F180*DATOS!$C$22)*16%,0))),"") ->  | P180: =IF(B180="","",IF(MOD(B180,2)=0,IF(OR(SIMULADOR!$E$15="FOVISSSTE",SIMULADOR!$E$17="APOYO INFONAVIT"),IF(H179<$E$14-G180,0,MIN(SIMULADOR!$E$39*0.1,(DATOS!$S$31))),0),0)) ->  | U180: =IF($K$9=DATOS!$A$23,1,0) -> 0 | V180: =IF($K$9=DATOS!$A$24,1,0) -> 0 | W180: =IF(SUM(U180:V180)=0,SIMULADOR!$M$19,X180*V180+Y180*U180) -> 0 | X180: 0 | Y180: 0
J181: NO APLICA | L181: =IF(C181="","",C181*IF(SIMULADOR!$I$17="INDIVIDUAL",DATOS!$A$41/1000,DATOS!$A$42/1000)) ->  | M181: =IFERROR(C181*SIMULADOR!$I$19/1000,"") ->  | N181: =IFERROR(IF(B181="","",IF(SIMULADOR!$E$15="LIQUIDEZ",F181*16%,IF(SIMULADOR!$E$15="MEJORA_DE_HIPOTECA_Y_LIQUIDEZ",(F181*DATOS!$C$22)*16%,0))),"") ->  | P181: =IF(B181="","",IF(MOD(B181,2)=0,IF(OR(SIMULADOR!$E$15="FOVISSSTE",SIMULADOR!$E$17="APOYO INFONAVIT"),IF(H180<$E$14-G181,0,MIN(SIMULADOR!$E$39*0.1,(DATOS!$S$31))),0),0)) ->  | U181: =IF($K$9=DATOS!$A$23,1,0) -> 0 | V181: =IF($K$9=DATOS!$A$24,1,0) -> 0 | W181: =IF(SUM(U181:V181)=0,SIMULADOR!$M$19,X181*V181+Y181*U181) -> 0 | X181: 0 | Y181: 0
J182: NO APLICA | L182: =IF(C182="","",C182*IF(SIMULADOR!$I$17="INDIVIDUAL",DATOS!$A$41/1000,DATOS!$A$42/1000)) ->  | M182: =IFERROR(C182*SIMULADOR!$I$19/1000,"") ->  | N182: =IFERROR(IF(B182="","",IF(SIMULADOR!$E$15="LIQUIDEZ",F182*16%,IF(SIMULADOR!$E$15="MEJORA_DE_HIPOTECA_Y_LIQUIDEZ",(F182*DATOS!$C$22)*16%,0))),"") ->  | P182: =IF(B182="","",IF(MOD(B182,2)=0,IF(OR(SIMULADOR!$E$15="FOVISSSTE",SIMULADOR!$E$17="APOYO INFONAVIT"),IF(H181<$E$14-G182,0,MIN(SIMULADOR!$E$39*0.1,(DATOS!$S$31))),0),0)) ->  | U182: =IF($K$9=DATOS!$A$23,1,0) -> 0 | V182: =IF($K$9=DATOS!$A$24,1,0) -> 0 | W182: =IF(SUM(U182:V182)=0,SIMULADOR!$M$19,X182*V182+Y182*U182) -> 0 | X182: 0 | Y182: 0
J183: NO APLICA | L183: =IF(C183="","",C183*IF(SIMULADOR!$I$17="INDIVIDUAL",DATOS!$A$41/1000,DATOS!$A$42/1000)) ->  | M183: =IFERROR(C183*SIMULADOR!$I$19/1000,"") ->  | N183: =IFERROR(IF(B183="","",IF(SIMULADOR!$E$15="LIQUIDEZ",F183*16%,IF(SIMULADOR!$E$15="MEJORA_DE_HIPOTECA_Y_LIQUIDEZ",(F183*DATOS!$C$22)*16%,0))),"") ->  | P183: =IF(B183="","",IF(MOD(B183,2)=0,IF(OR(SIMULADOR!$E$15="FOVISSSTE",SIMULADOR!$E$17="APOYO INFONAVIT"),IF(H182<$E$14-G183,0,MIN(SIMULADOR!$E$39*0.1,(DATOS!$S$31))),0),0)) ->  | U183: =IF($K$9=DATOS!$A$23,1,0) -> 0 | V183: =IF($K$9=DATOS!$A$24,1,0) -> 0 | W183: =IF(SUM(U183:V183)=0,SIMULADOR!$M$19,X183*V183+Y183*U183) -> 0 | X183: 0 | Y183: 0
J184: NO APLICA | L184: =IF(C184="","",C184*IF(SIMULADOR!$I$17="INDIVIDUAL",DATOS!$A$41/1000,DATOS!$A$42/1000)) ->  | M184: =IFERROR(C184*SIMULADOR!$I$19/1000,"") ->  | N184: =IFERROR(IF(B184="","",IF(SIMULADOR!$E$15="LIQUIDEZ",F184*16%,IF(SIMULADOR!$E$15="MEJORA_DE_HIPOTECA_Y_LIQUIDEZ",(F184*DATOS!$C$22)*16%,0))),"") ->  | P184: =IF(B184="","",IF(MOD(B184,2)=0,IF(OR(SIMULADOR!$E$15="FOVISSSTE",SIMULADOR!$E$17="APOYO INFONAVIT"),IF(H183<$E$14-G184,0,MIN(SIMULADOR!$E$39*0.1,(DATOS!$S$31))),0),0)) ->  | U184: =IF($K$9=DATOS!$A$23,1,0) -> 0 | V184: =IF($K$9=DATOS!$A$24,1,0) -> 0 | W184: =IF(SUM(U184:V184)=0,SIMULADOR!$M$19,X184*V184+Y184*U184) -> 0 | X184: 0 | Y184: 0
J185: NO APLICA | L185: =IF(C185="","",C185*IF(SIMULADOR!$I$17="INDIVIDUAL",DATOS!$A$41/1000,DATOS!$A$42/1000)) ->  | M185: =IFERROR(C185*SIMULADOR!$I$19/1000,"") ->  | N185: =IFERROR(IF(B185="","",IF(SIMULADOR!$E$15="LIQUIDEZ",F185*16%,IF(SIMULADOR!$E$15="MEJORA_DE_HIPOTECA_Y_LIQUIDEZ",(F185*DATOS!$C$22)*16%,0))),"") ->  | P185: =IF(B185="","",IF(MOD(B185,2)=0,IF(OR(SIMULADOR!$E$15="FOVISSSTE",SIMULADOR!$E$17="APOYO INFONAVIT"),IF(H184<$E$14-G185,0,MIN(SIMULADOR!$E$39*0.1,(DATOS!$S$31))),0),0)) ->  | U185: =IF($K$9=DATOS!$A$23,1,0) -> 0 | V185: =IF($K$9=DATOS!$A$24,1,0) -> 0 | W185: =IF(SUM(U185:V185)=0,SIMULADOR!$M$19,X185*V185+Y185*U185) -> 0 | X185: 0 | Y185: 0
J186: NO APLICA | L186: =IF(C186="","",C186*IF(SIMULADOR!$I$17="INDIVIDUAL",DATOS!$A$41/1000,DATOS!$A$42/1000)) ->  | M186: =IFERROR(C186*SIMULADOR!$I$19/1000,"") ->  | N186: =IFERROR(IF(B186="","",IF(SIMULADOR!$E$15="LIQUIDEZ",F186*16%,IF(SIMULADOR!$E$15="MEJORA_DE_HIPOTECA_Y_LIQUIDEZ",(F186*DATOS!$C$22)*16%,0))),"") ->  | P186: =IF(B186="","",IF(MOD(B186,2)=0,IF(OR(SIMULADOR!$E$15="FOVISSSTE",SIMULADOR!$E$17="APOYO INFONAVIT"),IF(H185<$E$14-G186,0,MIN(SIMULADOR!$E$39*0.1,(DATOS!$S$31))),0),0)) ->  | U186: =IF($K$9=DATOS!$A$23,1,0) -> 0 | V186: =IF($K$9=DATOS!$A$24,1,0) -> 0 | W186: =IF(SUM(U186:V186)=0,SIMULADOR!$M$19,X186*V186+Y186*U186) -> 0 | X186: 0 | Y186: 0
J187: NO APLICA | L187: =IF(C187="","",C187*IF(SIMULADOR!$I$17="INDIVIDUAL",DATOS!$A$41/1000,DATOS!$A$42/1000)) ->  | M187: =IFERROR(C187*SIMULADOR!$I$19/1000,"") ->  | N187: =IFERROR(IF(B187="","",IF(SIMULADOR!$E$15="LIQUIDEZ",F187*16%,IF(SIMULADOR!$E$15="MEJORA_DE_HIPOTECA_Y_LIQUIDEZ",(F187*DATOS!$C$22)*16%,0))),"") ->  | P187: =IF(B187="","",IF(MOD(B187,2)=0,IF(OR(SIMULADOR!$E$15="FOVISSSTE",SIMULADOR!$E$17="APOYO INFONAVIT"),IF(H186<$E$14-G187,0,MIN(SIMULADOR!$E$39*0.1,(DATOS!$S$31))),0),0)) ->  | U187: =IF($K$9=DATOS!$A$23,1,0) -> 0 | V187: =IF($K$9=DATOS!$A$24,1,0) -> 0 | W187: =IF(SUM(U187:V187)=0,SIMULADOR!$M$19,X187*V187+Y187*U187) -> 0 | X187: 0 | Y187: 0
J188: NO APLICA | L188: =IF(C188="","",C188*IF(SIMULADOR!$I$17="INDIVIDUAL",DATOS!$A$41/1000,DATOS!$A$42/1000)) ->  | M188: =IFERROR(C188*SIMULADOR!$I$19/1000,"") ->  | N188: =IFERROR(IF(B188="","",IF(SIMULADOR!$E$15="LIQUIDEZ",F188*16%,IF(SIMULADOR!$E$15="MEJORA_DE_HIPOTECA_Y_LIQUIDEZ",(F188*DATOS!$C$22)*16%,0))),"") ->  | P188: =IF(B188="","",IF(MOD(B188,2)=0,IF(OR(SIMULADOR!$E$15="FOVISSSTE",SIMULADOR!$E$17="APOYO INFONAVIT"),IF(H187<$E$14-G188,0,MIN(SIMULADOR!$E$39*0.1,(DATOS!$S$31))),0),0)) ->  | U188: =IF($K$9=DATOS!$A$23,1,0) -> 0 | V188: =IF($K$9=DATOS!$A$24,1,0) -> 0 | W188: =IF(SUM(U188:V188)=0,SIMULADOR!$M$19,X188*V188+Y188*U188) -> 0 | X188: 0 | Y188: 0
J189: NO APLICA | L189: =IF(C189="","",C189*IF(SIMULADOR!$I$17="INDIVIDUAL",DATOS!$A$41/1000,DATOS!$A$42/1000)) ->  | M189: =IFERROR(C189*SIMULADOR!$I$19/1000,"") ->  | N189: =IFERROR(IF(B189="","",IF(SIMULADOR!$E$15="LIQUIDEZ",F189*16%,IF(SIMULADOR!$E$15="MEJORA_DE_HIPOTECA_Y_LIQUIDEZ",(F189*DATOS!$C$22)*16%,0))),"") ->  | P189: =IF(B189="","",IF(MOD(B189,2)=0,IF(OR(SIMULADOR!$E$15="FOVISSSTE",SIMULADOR!$E$17="APOYO INFONAVIT"),IF(H188<$E$14-G189,0,MIN(SIMULADOR!$E$39*0.1,(DATOS!$S$31))),0),0)) ->  | U189: =IF($K$9=DATOS!$A$23,1,0) -> 0 | V189: =IF($K$9=DATOS!$A$24,1,0) -> 0 | W189: =IF(SUM(U189:V189)=0,SIMULADOR!$M$19,X189*V189+Y189*U189) -> 0 | X189: 0 | Y189: 0
J190: NO APLICA | L190: =IF(C190="","",C190*IF(SIMULADOR!$I$17="INDIVIDUAL",DATOS!$A$41/1000,DATOS!$A$42/1000)) ->  | M190: =IFERROR(C190*SIMULADOR!$I$19/1000,"") ->  | N190: =IFERROR(IF(B190="","",IF(SIMULADOR!$E$15="LIQUIDEZ",F190*16%,IF(SIMULADOR!$E$15="MEJORA_DE_HIPOTECA_Y_LIQUIDEZ",(F190*DATOS!$C$22)*16%,0))),"") ->  | P190: =IF(B190="","",IF(MOD(B190,2)=0,IF(OR(SIMULADOR!$E$15="FOVISSSTE",SIMULADOR!$E$17="APOYO INFONAVIT"),IF(H189<$E$14-G190,0,MIN(SIMULADOR!$E$39*0.1,(DATOS!$S$31))),0),0)) ->  | U190: =IF($K$9=DATOS!$A$23,1,0) -> 0 | V190: =IF($K$9=DATOS!$A$24,1,0) -> 0 | W190: =IF(SUM(U190:V190)=0,SIMULADOR!$M$19,X190*V190+Y190*U190) -> 0 | X190: 0 | Y190: 0
J191: NO APLICA | L191: =IF(C191="","",C191*IF(SIMULADOR!$I$17="INDIVIDUAL",DATOS!$A$41/1000,DATOS!$A$42/1000)) ->  | M191: =IFERROR(C191*SIMULADOR!$I$19/1000,"") ->  | N191: =IFERROR(IF(B191="","",IF(SIMULADOR!$E$15="LIQUIDEZ",F191*16%,IF(SIMULADOR!$E$15="MEJORA_DE_HIPOTECA_Y_LIQUIDEZ",(F191*DATOS!$C$22)*16%,0))),"") ->  | P191: =IF(B191="","",IF(MOD(B191,2)=0,IF(OR(SIMULADOR!$E$15="FOVISSSTE",SIMULADOR!$E$17="APOYO INFONAVIT"),IF(H190<$E$14-G191,0,MIN(SIMULADOR!$E$39*0.1,(DATOS!$S$31))),0),0)) ->  | U191: =IF($K$9=DATOS!$A$23,1,0) -> 0 | V191: =IF($K$9=DATOS!$A$24,1,0) -> 0 | W191: =IF(SUM(U191:V191)=0,SIMULADOR!$M$19,X191*V191+Y191*U191) -> 0 | X191: 0 | Y191: 0
J192: NO APLICA | L192: =IF(C192="","",C192*IF(SIMULADOR!$I$17="INDIVIDUAL",DATOS!$A$41/1000,DATOS!$A$42/1000)) ->  | M192: =IFERROR(C192*SIMULADOR!$I$19/1000,"") ->  | N192: =IFERROR(IF(B192="","",IF(SIMULADOR!$E$15="LIQUIDEZ",F192*16%,IF(SIMULADOR!$E$15="MEJORA_DE_HIPOTECA_Y_LIQUIDEZ",(F192*DATOS!$C$22)*16%,0))),"") ->  | P192: =IF(B192="","",IF(MOD(B192,2)=0,IF(OR(SIMULADOR!$E$15="FOVISSSTE",SIMULADOR!$E$17="APOYO INFONAVIT"),IF(H191<$E$14-G192,0,MIN(SIMULADOR!$E$39*0.1,(DATOS!$S$31))),0),0)) ->  | U192: =IF($K$9=DATOS!$A$23,1,0) -> 0 | V192: =IF($K$9=DATOS!$A$24,1,0) -> 0 | W192: =IF(SUM(U192:V192)=0,SIMULADOR!$M$19,X192*V192+Y192*U192) -> 0 | X192: 0 | Y192: 0
J193: NO APLICA | L193: =IF(C193="","",C193*IF(SIMULADOR!$I$17="INDIVIDUAL",DATOS!$A$41/1000,DATOS!$A$42/1000)) ->  | M193: =IFERROR(C193*SIMULADOR!$I$19/1000,"") ->  | N193: =IFERROR(IF(B193="","",IF(SIMULADOR!$E$15="LIQUIDEZ",F193*16%,IF(SIMULADOR!$E$15="MEJORA_DE_HIPOTECA_Y_LIQUIDEZ",(F193*DATOS!$C$22)*16%,0))),"") ->  | P193: =IF(B193="","",IF(MOD(B193,2)=0,IF(OR(SIMULADOR!$E$15="FOVISSSTE",SIMULADOR!$E$17="APOYO INFONAVIT"),IF(H192<$E$14-G193,0,MIN(SIMULADOR!$E$39*0.1,(DATOS!$S$31))),0),0)) ->  | U193: =IF($K$9=DATOS!$A$23,1,0) -> 0 | V193: =IF($K$9=DATOS!$A$24,1,0) -> 0 | W193: =IF(SUM(U193:V193)=0,SIMULADOR!$M$19,X193*V193+Y193*U193) -> 0 | X193: 0 | Y193: 0
J194: NO APLICA | L194: =IF(C194="","",C194*IF(SIMULADOR!$I$17="INDIVIDUAL",DATOS!$A$41/1000,DATOS!$A$42/1000)) ->  | M194: =IFERROR(C194*SIMULADOR!$I$19/1000,"") ->  | N194: =IFERROR(IF(B194="","",IF(SIMULADOR!$E$15="LIQUIDEZ",F194*16%,IF(SIMULADOR!$E$15="MEJORA_DE_HIPOTECA_Y_LIQUIDEZ",(F194*DATOS!$C$22)*16%,0))),"") ->  | P194: =IF(B194="","",IF(MOD(B194,2)=0,IF(OR(SIMULADOR!$E$15="FOVISSSTE",SIMULADOR!$E$17="APOYO INFONAVIT"),IF(H193<$E$14-G194,0,MIN(SIMULADOR!$E$39*0.1,(DATOS!$S$31))),0),0)) ->  | U194: =IF($K$9=DATOS!$A$23,1,0) -> 0 | V194: =IF($K$9=DATOS!$A$24,1,0) -> 0 | W194: =IF(SUM(U194:V194)=0,SIMULADOR!$M$19,X194*V194+Y194*U194) -> 0 | X194: 0 | Y194: 0
J195: NO APLICA | L195: =IF(C195="","",C195*IF(SIMULADOR!$I$17="INDIVIDUAL",DATOS!$A$41/1000,DATOS!$A$42/1000)) ->  | M195: =IFERROR(C195*SIMULADOR!$I$19/1000,"") ->  | N195: =IFERROR(IF(B195="","",IF(SIMULADOR!$E$15="LIQUIDEZ",F195*16%,IF(SIMULADOR!$E$15="MEJORA_DE_HIPOTECA_Y_LIQUIDEZ",(F195*DATOS!$C$22)*16%,0))),"") ->  | P195: =IF(B195="","",IF(MOD(B195,2)=0,IF(OR(SIMULADOR!$E$15="FOVISSSTE",SIMULADOR!$E$17="APOYO INFONAVIT"),IF(H194<$E$14-G195,0,MIN(SIMULADOR!$E$39*0.1,(DATOS!$S$31))),0),0)) ->  | U195: =IF($K$9=DATOS!$A$23,1,0) -> 0 | V195: =IF($K$9=DATOS!$A$24,1,0) -> 0 | W195: =IF(SUM(U195:V195)=0,SIMULADOR!$M$19,X195*V195+Y195*U195) -> 0 | X195: 0 | Y195: 0
J196: NO APLICA | L196: =IF(C196="","",C196*IF(SIMULADOR!$I$17="INDIVIDUAL",DATOS!$A$41/1000,DATOS!$A$42/1000)) ->  | M196: =IFERROR(C196*SIMULADOR!$I$19/1000,"") ->  | N196: =IFERROR(IF(B196="","",IF(SIMULADOR!$E$15="LIQUIDEZ",F196*16%,IF(SIMULADOR!$E$15="MEJORA_DE_HIPOTECA_Y_LIQUIDEZ",(F196*DATOS!$C$22)*16%,0))),"") ->  | P196: =IF(B196="","",IF(MOD(B196,2)=0,IF(OR(SIMULADOR!$E$15="FOVISSSTE",SIMULADOR!$E$17="APOYO INFONAVIT"),IF(H195<$E$14-G196,0,MIN(SIMULADOR!$E$39*0.1,(DATOS!$S$31))),0),0)) ->  | U196: =IF($K$9=DATOS!$A$23,1,0) -> 0 | V196: =IF($K$9=DATOS!$A$24,1,0) -> 0 | W196: =IF(SUM(U196:V196)=0,SIMULADOR!$M$19,X196*V196+Y196*U196) -> 0 | X196: 0 | Y196: 0
J197: NO APLICA | L197: =IF(C197="","",C197*IF(SIMULADOR!$I$17="INDIVIDUAL",DATOS!$A$41/1000,DATOS!$A$42/1000)) ->  | M197: =IFERROR(C197*SIMULADOR!$I$19/1000,"") ->  | N197: =IFERROR(IF(B197="","",IF(SIMULADOR!$E$15="LIQUIDEZ",F197*16%,IF(SIMULADOR!$E$15="MEJORA_DE_HIPOTECA_Y_LIQUIDEZ",(F197*DATOS!$C$22)*16%,0))),"") ->  | P197: =IF(B197="","",IF(MOD(B197,2)=0,IF(OR(SIMULADOR!$E$15="FOVISSSTE",SIMULADOR!$E$17="APOYO INFONAVIT"),IF(H196<$E$14-G197,0,MIN(SIMULADOR!$E$39*0.1,(DATOS!$S$31))),0),0)) ->  | U197: =IF($K$9=DATOS!$A$23,1,0) -> 0 | V197: =IF($K$9=DATOS!$A$24,1,0) -> 0 | W197: =IF(SUM(U197:V197)=0,SIMULADOR!$M$19,X197*V197+Y197*U197) -> 0 | X197: 0 | Y197: 0
J198: NO APLICA | L198: =IF(C198="","",C198*IF(SIMULADOR!$I$17="INDIVIDUAL",DATOS!$A$41/1000,DATOS!$A$42/1000)) ->  | M198: =IFERROR(C198*SIMULADOR!$I$19/1000,"") ->  | N198: =IFERROR(IF(B198="","",IF(SIMULADOR!$E$15="LIQUIDEZ",F198*16%,IF(SIMULADOR!$E$15="MEJORA_DE_HIPOTECA_Y_LIQUIDEZ",(F198*DATOS!$C$22)*16%,0))),"") ->  | P198: =IF(B198="","",IF(MOD(B198,2)=0,IF(OR(SIMULADOR!$E$15="FOVISSSTE",SIMULADOR!$E$17="APOYO INFONAVIT"),IF(H197<$E$14-G198,0,MIN(SIMULADOR!$E$39*0.1,(DATOS!$S$31))),0),0)) ->  | U198: =IF($K$9=DATOS!$A$23,1,0) -> 0 | V198: =IF($K$9=DATOS!$A$24,1,0) -> 0 | W198: =IF(SUM(U198:V198)=0,SIMULADOR!$M$19,X198*V198+Y198*U198) -> 0 | X198: 0 | Y198: 0
J199: NO APLICA | L199: =IF(C199="","",C199*IF(SIMULADOR!$I$17="INDIVIDUAL",DATOS!$A$41/1000,DATOS!$A$42/1000)) ->  | M199: =IFERROR(C199*SIMULADOR!$I$19/1000,"") ->  | N199: =IFERROR(IF(B199="","",IF(SIMULADOR!$E$15="LIQUIDEZ",F199*16%,IF(SIMULADOR!$E$15="MEJORA_DE_HIPOTECA_Y_LIQUIDEZ",(F199*DATOS!$C$22)*16%,0))),"") ->  | P199: =IF(B199="","",IF(MOD(B199,2)=0,IF(OR(SIMULADOR!$E$15="FOVISSSTE",SIMULADOR!$E$17="APOYO INFONAVIT"),IF(H198<$E$14-G199,0,MIN(SIMULADOR!$E$39*0.1,(DATOS!$S$31))),0),0)) ->  | U199: =IF($K$9=DATOS!$A$23,1,0) -> 0 | V199: =IF($K$9=DATOS!$A$24,1,0) -> 0 | W199: =IF(SUM(U199:V199)=0,SIMULADOR!$M$19,X199*V199+Y199*U199) -> 0 | X199: 0 | Y199: 0
J200: NO APLICA | L200: =IF(C200="","",C200*IF(SIMULADOR!$I$17="INDIVIDUAL",DATOS!$A$41/1000,DATOS!$A$42/1000)) ->  | M200: =IFERROR(C200*SIMULADOR!$I$19/1000,"") ->  | N200: =IFERROR(IF(B200="","",IF(SIMULADOR!$E$15="LIQUIDEZ",F200*16%,IF(SIMULADOR!$E$15="MEJORA_DE_HIPOTECA_Y_LIQUIDEZ",(F200*DATOS!$C$22)*16%,0))),"") ->  | P200: =IF(B200="","",IF(MOD(B200,2)=0,IF(OR(SIMULADOR!$E$15="FOVISSSTE",SIMULADOR!$E$17="APOYO INFONAVIT"),IF(H199<$E$14-G200,0,MIN(SIMULADOR!$E$39*0.1,(DATOS!$S$31))),0),0)) ->  | U200: =IF($K$9=DATOS!$A$23,1,0) -> 0 | V200: =IF($K$9=DATOS!$A$24,1,0) -> 0 | W200: =IF(SUM(U200:V200)=0,SIMULADOR!$M$19,X200*V200+Y200*U200) -> 0 | X200: 0 | Y200: 0
J201: NO APLICA | L201: =IF(C201="","",C201*IF(SIMULADOR!$I$17="INDIVIDUAL",DATOS!$A$41/1000,DATOS!$A$42/1000)) ->  | M201: =IFERROR(C201*SIMULADOR!$I$19/1000,"") ->  | N201: =IFERROR(IF(B201="","",IF(SIMULADOR!$E$15="LIQUIDEZ",F201*16%,IF(SIMULADOR!$E$15="MEJORA_DE_HIPOTECA_Y_LIQUIDEZ",(F201*DATOS!$C$22)*16%,0))),"") ->  | P201: =IF(B201="","",IF(MOD(B201,2)=0,IF(OR(SIMULADOR!$E$15="FOVISSSTE",SIMULADOR!$E$17="APOYO INFONAVIT"),IF(H200<$E$14-G201,0,MIN(SIMULADOR!$E$39*0.1,(DATOS!$S$31))),0),0)) ->  | U201: =IF($K$9=DATOS!$A$23,1,0) -> 0 | V201: =IF($K$9=DATOS!$A$24,1,0) -> 0 | W201: =IF(SUM(U201:V201)=0,SIMULADOR!$M$19,X201*V201+Y201*U201) -> 0 | X201: 0 | Y201: 0
J202: NO APLICA | L202: =IF(C202="","",C202*IF(SIMULADOR!$I$17="INDIVIDUAL",DATOS!$A$41/1000,DATOS!$A$42/1000)) ->  | M202: =IFERROR(C202*SIMULADOR!$I$19/1000,"") ->  | N202: =IFERROR(IF(B202="","",IF(SIMULADOR!$E$15="LIQUIDEZ",F202*16%,IF(SIMULADOR!$E$15="MEJORA_DE_HIPOTECA_Y_LIQUIDEZ",(F202*DATOS!$C$22)*16%,0))),"") ->  | P202: =IF(B202="","",IF(MOD(B202,2)=0,IF(OR(SIMULADOR!$E$15="FOVISSSTE",SIMULADOR!$E$17="APOYO INFONAVIT"),IF(H201<$E$14-G202,0,MIN(SIMULADOR!$E$39*0.1,(DATOS!$S$31))),0),0)) ->  | U202: =IF($K$9=DATOS!$A$23,1,0) -> 0 | V202: =IF($K$9=DATOS!$A$24,1,0) -> 0 | W202: =IF(SUM(U202:V202)=0,SIMULADOR!$M$19,X202*V202+Y202*U202) -> 0 | X202: 0 | Y202: 0
J203: NO APLICA | L203: =IF(C203="","",C203*IF(SIMULADOR!$I$17="INDIVIDUAL",DATOS!$A$41/1000,DATOS!$A$42/1000)) ->  | M203: =IFERROR(C203*SIMULADOR!$I$19/1000,"") ->  | N203: =IFERROR(IF(B203="","",IF(SIMULADOR!$E$15="LIQUIDEZ",F203*16%,IF(SIMULADOR!$E$15="MEJORA_DE_HIPOTECA_Y_LIQUIDEZ",(F203*DATOS!$C$22)*16%,0))),"") ->  | P203: =IF(B203="","",IF(MOD(B203,2)=0,IF(OR(SIMULADOR!$E$15="FOVISSSTE",SIMULADOR!$E$17="APOYO INFONAVIT"),IF(H202<$E$14-G203,0,MIN(SIMULADOR!$E$39*0.1,(DATOS!$S$31))),0),0)) ->  | U203: =IF($K$9=DATOS!$A$23,1,0) -> 0 | V203: =IF($K$9=DATOS!$A$24,1,0) -> 0 | W203: =IF(SUM(U203:V203)=0,SIMULADOR!$M$19,X203*V203+Y203*U203) -> 0 | X203: 0 | Y203: 0
J204: NO APLICA | L204: =IF(C204="","",C204*IF(SIMULADOR!$I$17="INDIVIDUAL",DATOS!$A$41/1000,DATOS!$A$42/1000)) ->  | M204: =IFERROR(C204*SIMULADOR!$I$19/1000,"") ->  | N204: =IFERROR(IF(B204="","",IF(SIMULADOR!$E$15="LIQUIDEZ",F204*16%,IF(SIMULADOR!$E$15="MEJORA_DE_HIPOTECA_Y_LIQUIDEZ",(F204*DATOS!$C$22)*16%,0))),"") ->  | P204: =IF(B204="","",IF(MOD(B204,2)=0,IF(OR(SIMULADOR!$E$15="FOVISSSTE",SIMULADOR!$E$17="APOYO INFONAVIT"),IF(H203<$E$14-G204,0,MIN(SIMULADOR!$E$39*0.1,(DATOS!$S$31))),0),0)) ->  | U204: =IF($K$9=DATOS!$A$23,1,0) -> 0 | V204: =IF($K$9=DATOS!$A$24,1,0) -> 0 | W204: =IF(SUM(U204:V204)=0,SIMULADOR!$M$19,X204*V204+Y204*U204) -> 0 | X204: 0 | Y204: 0
J205: NO APLICA | L205: =IF(C205="","",C205*IF(SIMULADOR!$I$17="INDIVIDUAL",DATOS!$A$41/1000,DATOS!$A$42/1000)) ->  | M205: =IFERROR(C205*SIMULADOR!$I$19/1000,"") ->  | N205: =IFERROR(IF(B205="","",IF(SIMULADOR!$E$15="LIQUIDEZ",F205*16%,IF(SIMULADOR!$E$15="MEJORA_DE_HIPOTECA_Y_LIQUIDEZ",(F205*DATOS!$C$22)*16%,0))),"") ->  | P205: =IF(B205="","",IF(MOD(B205,2)=0,IF(OR(SIMULADOR!$E$15="FOVISSSTE",SIMULADOR!$E$17="APOYO INFONAVIT"),IF(H204<$E$14-G205,0,MIN(SIMULADOR!$E$39*0.1,(DATOS!$S$31))),0),0)) ->  | U205: =IF($K$9=DATOS!$A$23,1,0) -> 0 | V205: =IF($K$9=DATOS!$A$24,1,0) -> 0 | W205: =IF(SUM(U205:V205)=0,SIMULADOR!$M$19,X205*V205+Y205*U205) -> 0 | X205: 0 | Y205: 0
H206: =IFERROR(C206-G206-P206,"") ->  | J206: =$K$9 -> NO APLICA | L206: =IF(C206="","",C206*IF(SIMULADOR!$I$17="INDIVIDUAL",DATOS!$A$41/1000,DATOS!$A$42/1000)) ->  | M206: =IFERROR(C206*SIMULADOR!$I$19/1000,"") ->  | N206: =IFERROR(IF(B206="","",IF(SIMULADOR!$E$15="LIQUIDEZ",F206*16%,IF(SIMULADOR!$E$15="MEJORA_DE_HIPOTECA_Y_LIQUIDEZ",(F206*DATOS!$C$22)*16%,0))),"") ->  | O206: =IFERROR(E206+K206+L206+M206+N206,"") ->  | P206: =IF(B206="","",IF(MOD(B206,2)=0,IF(OR(SIMULADOR!$E$15="FOVISSSTE",SIMULADOR!$E$17="APOYO INFONAVIT"),IF(H205<$E$14-G206,0,MIN(SIMULADOR!$E$39*0.1,(DATOS!$S$31))),0),0)) ->  | S206: =IFERROR(IF(B206="","",O206+P206),0) ->  | T206: =IFERROR(IF(C206="","",(O206-I206)),0) ->  | U206: =IF($K$9=DATOS!$A$23,1,0) -> 0 | V206: =IF($K$9=DATOS!$A$24,1,0) -> 0 | W206: =IF(SUM(U206:V206)=0,SIMULADOR!$M$19,X206*V206+Y206*U206) -> 0 | X206: =IFERROR(PMT($G$9/12,$D$14-B205,-C206),0) -> 0 | Y206: 0
B207: =IF(C207="","",IF(B206>=$D$14,"",B206+1)) ->  | E207: =IFERROR(IF(B207="","",(F207+G207)),0) ->  | F207: =IFERROR(C207*$G$9/12,"") ->  | G207: =IFERROR(IF(B207="","",IF(H206<W207-F207,H206,W207-F207)),0) ->  | J207: NO APLICA | L207: =IF(C207="","",C207*IF(SIMULADOR!$I$17="INDIVIDUAL",DATOS!$A$41/1000,DATOS!$A$42/1000)) ->  | M207: =IFERROR(C207*SIMULADOR!$I$19/1000,"") ->  | N207: =IFERROR(IF(B207="","",IF(SIMULADOR!$E$15="LIQUIDEZ",F207*16%,IF(SIMULADOR!$E$15="MEJORA_DE_HIPOTECA_Y_LIQUIDEZ",(F207*DATOS!$C$22)*16%,0))),"") ->  | P207: =IF(B207="","",IF(MOD(B207,2)=0,IF(OR(SIMULADOR!$E$15="FOVISSSTE",SIMULADOR!$E$17="APOYO INFONAVIT"),IF(H206<$E$14-G207,0,MIN(SIMULADOR!$E$39*0.1,(DATOS!$S$31))),0),0)) ->  | U207: =IF($K$9=DATOS!$A$23,1,0) -> 0 | V207: =IF($K$9=DATOS!$A$24,1,0) -> 0 | W207: =IF(SUM(U207:V207)=0,SIMULADOR!$M$19,X207*V207+Y207*U207) -> 0 | X207: 0 | Y207: 0
... 107 more rows

Sheet DATOS (hidden)
A1: VARIABLES | C1: PROGRAMA | E1: PLAZO | I1: ENGANCHE | M1: PROGRAMA | N1: TASAS | O1: ENGANCHE | P1: PLAZO | R1: AVALUO
A2: CANAL CRÉDITO | C2: ADQUISICIÓN_DE_VIVIENDA | E2: ADQUISICIÓN_DE_VIVIENDA | G2: NOTARIO | I2: ADQUISICIÓN_DE_VIVIENDA | M2: ADQUISICIÓN_DE_VIVIENDA | N2: ADQUISICIÓN_DE_VIVIENDA | R2: VALOR INMUEBLE | T2: COSTO AVALUO | X2: 10 | Y2: 0.0915
A3: SUCURSAL | C3: TRADICIONAL | E3: =IF(SIMULADOR!E17="TRADICIONAL","","05") -> 05 | G3: 0.02 | I3: 5%-19% | J3: =IF(SIMULADOR!E17="TRADICIONAL",5%,3%) -> 0.03 | K3: 0.19 | M3: ADQUISICIÓN_DE_VIVIENDA051 | N3: =IF(OR(SIMULADOR!E14="APOYO INFONAVIT",SIMULADOR!E14="COFINAVIT"),10.77%,10.67%) -> 0.1067 | O3: 10%-19% | P3: 5 | R3: MINIMO | S3: MAXIMO | T3: COSTO | U3: IVA | V3: TOTAL | X3: 15 | Y3: 0.0915
A4: DESARROLLADOR PUENTE | C4: APOYO INFONAVIT | E4: 10 | G4: 0.03 | I4: 20%-29% | J4: 0.2 | K4: 0.29 | M4: ADQUISICIÓN_DE_VIVIENDA052 | N4: 0.1049 | O4: 20%-29% | P4: 5 | R4: 0.01 | S4: 1000000 | T4: 2500 | U4: =+T4*16% -> 400 | V4: =T4+U4 -> 2900 | X4: 20 | Y4: 0.0915
A5: DESARROLLADOR PREMIUM | C5: COFINAVIT | E5: 15 | G5: 0.04 | I5: 30%-100% | J5: 0.3 | K5: 1 | M5: ADQUISICIÓN_DE_VIVIENDA053 | N5: 0.094 | O5: 30%-100% | P5: 5 | R5: 1000000.01 | S5: 1500000 | T5: 3500 | U5: =+T5*16% -> 560 | V5: =T5+U5 -> 4060
A6: BROKER | E6: 20 | G6: 0.05 | M6: ADQUISICIÓN_DE_VIVIENDA101 | N6: =IF(OR(SIMULADOR!E17="APOYO INFONAVIT",SIMULADOR!E17="COFINAVIT"),10.77%,10.67%) -> 0.1067 | O6: 10%-19% | P6: 10 | R6: 1500000.01 | S6: 2000000 | T6: 4225 | U6: 676 | V6: 4901
A7: BANCA PRIVADA | C7: HIPOTECA_DE_INVERSIÓN | E7: =IF(SIMULADOR!E17="TRADICIONAL","",25) -> 25 | G7: 0.06 | I7: HIPOTECA_DE_INVERSIÓN | M7: ADQUISICIÓN_DE_VIVIENDA102 | N7: 0.1049 | O7: 20%-29% | P7: 10 | R7: 2000000.01 | S7: 2500000 | T7: 5300 | U7: 848 | V7: 6148
A8: OPCION DE CRÉDITO | C8: TRADICIONAL | E8: HIPOTECA_DE_INVERSIÓN | G8: 0.07 | I8: 30%-100% | J8: 0.3 | K8: 1 | M8: ADQUISICIÓN_DE_VIVIENDA103 | N8: 0.094 | O8: 30%-100% | P8: 10 | R8: 2500000.01 | S8: 3000000 | T8: 6400 | U8: 1024 | V8: 7424
A9: ADQUISICIÓN_DE_VIVIENDA | C9: APOYO INFONAVIT | E9: 10 | G9: 0.08 | M9: ADQUISICIÓN_DE_VIVIENDA151 | N9: 0.1097 | O9: 10%-14% | P9: 15 | R9: 3000000.01 | S9: 3500000 | T9: 6700 | U9: 1072 | V9: 7772
A10: =IF(OR(SIMULADOR!E13="DESARROLLADOR PREMIUM",SIMULADOR!E13="DESARROLLADOR PUENTE"),"","HIPOTECA_VERDE") -> HIPOTECA_VERDE | C10: COFINAVIT | E10: 15 | G10: 0.09 | I10: LIQUIDEZ | M10: ADQUISICIÓN_DE_VIVIENDA152 | N10: 0.1079 | O10: 15%-19% | P10: 15 | R10: 3500000.01 | S10: 4000000 | T10: 7725 | U10: 1236 | V10: 8961
A11: =IF(OR(SIMULADOR!E13="DESARROLLADOR PUENTE",SIMULADOR!E13="DESARROLLADOR PREMIUM"),"","HIPOTECA_DE_INVERSIÓN") -> HIPOTECA_DE_INVERSIÓN | E11: 20 | G11: 0.1 | I11: 25%-100% | J11: 0.25 | K11: 1 | M11: ADQUISICIÓN_DE_VIVIENDA153 | N11: 0.1 | O11: 20%-24% | P11: 15 | R11: 4000000.01 | S11: 4500000 | T11: 8750 | U11: 1400 | V11: 10150
A12: =IF(OR(SIMULADOR!E13="DESARROLLADOR PUENTE",SIMULADOR!E13="DESARROLLADOR PREMIUM"),"","LIQUIDEZ") -> LIQUIDEZ | C12: LIQUIDEZ | E12: LIQUIDEZ | M12: ADQUISICIÓN_DE_VIVIENDA201 | N12: 0.11 | O12: 10%-14% | P12: 20 | R12: 4500000.01 | S12: 5000000 | T12: 9775 | U12: 1564 | V12: 11339
A13: =IF(OR(SIMULADOR!E13="DESARROLLADOR PUENTE",SIMULADOR!E13="DESARROLLADOR PREMIUM"),"","MEJORA_DE_HIPOTECA") -> MEJORA_DE_HIPOTECA | C13: TRADICIONAL | E13: 10 | I13: MEJORA_DE_HIPOTECA | M13: ADQUISICIÓN_DE_VIVIENDA202 | N13: 0.1089 | O13: 15%-19% | P13: 20 | R13: 5000000.01 | S13: 5500000 | T13: 10825 | U13: 1732 | V13: 12557
A14: =IF(OR(SIMULADOR!E13="DESARROLLADOR PUENTE",SIMULADOR!E13="DESARROLLADOR PREMIUM"),"","MEJORA_DE_HIPOTECA_Y_LIQUIDEZ") -> MEJORA_DE_HIPOTECA_Y_LIQUIDEZ | E14: 15 | I14: 10%-19% | J14: =IF(OR(SIMULADOR!E30="APOYO INFONAVIT",SIMULADOR!E30="COFINAVIT"),5%,10%) -> 0.1 | K14: 0.19 | M14: ADQUISICIÓN_DE_VIVIENDA203 | N14: 0.1048 | O14: 20%-24% | P14: 20 | R14: 5500000.01 | S14: 6000000 | T14: 11875 | U14: 1900 | V14: 13775
C15: MEJORA_DE_HIPOTECA | E15: MEJORA_DE_HIPOTECA | I15: 20%-29% | J15: 0.2 | K15: 0.29 | M15: ADQUISICIÓN_DE_VIVIENDA251 | N15: 0.11 | O15: 10%-14% | P15: 25 | R15: 6000000.01 | S15: 6500000 | T15: 13000 | U15: 2080 | V15: 15080
C16: TRADICIONAL | E16: 10 | I16: 30%-100% | J16: 0.3 | K16: 1 | M16: ADQUISICIÓN_DE_VIVIENDA252 | N16: 0.1089 | O16: 15%-19% | P16: 25 | R16: 6500000.01 | S16: 7000000 | T16: 14100 | U16: 2256 | V16: 16356
A17: COTIZACION | E17: 15 | M17: ADQUISICIÓN_DE_VIVIENDA253 | N17: 0.1048 | O17: 20%-24% | P17: 25 | R17: 7000000.01 | S17: 7500000 | T17: 15200 | U17: 2432 | V17: 17632
A18: VALOR VIVIENDA | C18: MEJORA_DE_HIPOTECA_Y_LIQUIDEZ | E18: 20 | I18: MEJORA_DE_HIPOTECA_Y_LIQUIDEZ | M18: HIPOTECA_DE_INVERSIÓN | N18: HIPOTECA_DE_INVERSIÓN | R18: 7500000.01 | S18: 8000000 | T18: 15840 | U18: 2534.4 | V18: 18374.4
A19: =IF(SIMULADOR!E15="MEJORA_DE_HIPOTECA","","INGRESOS") -> INGRESOS | C19: TRADICIONAL | I19: 15%-49% | J19: 0.15 | K19: 0.49 | M19: HIPOTECA_DE_INVERSIÓN101 | N19: 0.0981 | O19: >35% | P19: 10 | R19: 8000000.01 | S19: 8500000 | T19: 16500 | U19: 2640 | V19: 19140
A20: =IF(SIMULADOR!E15="MEJORA_DE_HIPOTECA","","MONTO CRÉDITO") -> MONTO CRÉDITO | E20: MEJORA_DE_HIPOTECA_Y_LIQUIDEZ | I20: 50%-100% | J20: 0.5 | K20: 1 | M20: HIPOTECA_DE_INVERSIÓN151 | N20: 0.0989 | O20: >35% | P20: 15 | R20: 8500000.01 | S20: 9000000 | T20: 17250 | U20: 2760 | V20: 20010
A21: PREPAGO | C21: PARTE DE LIQUIDEZ | E21: 10 | M21: HIPOTECA_DE_INVERSIÓN201 | N21: 0.0999 | O21: >35% | P21: 20 | R21: 9000000.01 | S21: 9500000 | T21: 18000 | U21: 2880 | V21: 20880
A22: NO APLICA | C22: =IFERROR(SIMULADOR!E45/SIMULADOR!M13,0) -> 0 | E22: 15 | I22: HIPOTECA_VERDE | M22: LIQUIDEZ | N22: LIQUIDEZ | R22: 9500000.01 | S22: 10000000 | T22: 18600 | U22: 2976 | V22: 21576
A23: REDUCCIÓN PLAZO | I23: 10%-19% | J23: =IF(OR(SIMULADOR!E41="APOYO INFONAVIT",SIMULADOR!E41="COFINAVIT"),5%,10%) -> 0.1 | K23: 0.19 | M23: LIQUIDEZ101 | N23: 0.11 | O23: >25% | P23: 10 | R23: 10000000.01 | S23: 12000000 | T23: 21000 | U23: =+T23*16% -> 3360 | V23: =T23+U23 -> 24360
A24: =IF(SIMULADOR!E15="FOVISSSTE","","REDUCCIÓN CAPITAL") -> REDUCCIÓN CAPITAL | C24: HIPOTECA_VERDE | E24: HIPOTECA_VERDE | I24: 20%-29% | J24: 0.2 | K24: 0.29 | M24: LIQUIDEZ151 | N24: 0.11 | O24: >25% | P24: 15 | R24: 12000000.01 | S24: 14000000 | T24: 22400 | U24: 3584 | V24: 25984
C25: TRADICIONAL | E25: 10 | I25: 30%-100% | J25: 0.3 | K25: 1 | M25: MEJORA_DE_HIPOTECA | N25: MEJORA_DE_HIPOTECA | R25: 14000000.01 | S25: 16000000 | T25: 25600 | U25: 4096 | V25: 29696
A26: COMISIÓN POR APERTURA | C26: APOYO INFONAVIT | E26: 15 | M26: MEJORA_DE_HIPOTECA101 | N26: 0.1 | O26: 10%-14% | P26: 10 | R26: 16000000.01 | S26: 18000000 | T26: 28800 | U26: 4608 | V26: 33408
A27: 0 | C27: COFINAVIT | E27: 20 | M27: MEJORA_DE_HIPOTECA102 | N27: 0.1 | O27: 15%-19% | P27: 10 | R27: 18000000.01 | S27: 20000000 | T27: 31000 | U27: 4960 | V27: 35960
A28: 0.005 | M28: MEJORA_DE_HIPOTECA103 | N28: 0.094 | O28: 20%-24% | P28: 10 | R28: 20000000.01 | S28: EN ADELANTE | T28: SOLICITAR COTIZACIÓN | W28: =IF(SIMULADOR!E27="VALOR VIVIENDA",SIMULADOR!E29,SIMULADOR!I23) -> 0
A29: 0.01 | C29: FOVISSSTE | E29: FOVISSSTE | M29: MEJORA_DE_HIPOTECA151 | N29: 0.1 | O29: 10%-14% | P29: 15 | W29: =IF(AND(W28>=DATOS!R4,W28<=DATOS!S4),DATOS!V4,IF(AND(W28>=DATOS!R5,W28<=DATOS!S5),DATOS!V5,IF(AND(W28>=DATOS!R6,W28<=DATOS!S6),DATOS!V6,IF(AND(W28>=DATOS!R7,W28<=DATOS!S7),DATOS!V7,IF(AND(W28>=DATOS!R8,W28<=DATOS!S8),DATOS!V8,IF(AND(W28>=DATOS!R9,W28<=DATOS!S9),DATOS!V9,IF(AND(W28>=DATOS!R10,W28<=DATOS!S10),DATOS!V10,IF(AND(W28>=DATOS!R10,W28<=DATOS!S10),DATOS!V10,IF(AND(W28>=DATOS!R11,W28<=DATOS!S11),DATOS!V11,IF(AND(W28>=DATOS!R12,W28<=DATOS!S12),DATOS!V12,IF(AND(W28>=DATOS!R13,W28<=DATOS!S13),DATOS!V13,IF(AND(W28>=DATOS!R14,W28<=DATOS!S14),DATOS!V14,IF(AND(W28>=DATOS!R15,W28<=DATOS!S15),DATOS!V15,IF(AND(W28>=DATOS!R16,W28<=DATOS!S16),DATOS!V16,IF(AND(W28>=DATOS!R17,W28<=DATOS!S17),DATOS!V17,IF(AND(W28>=DATOS!R18,W28<=DATOS!S18),DATOS!V18,IF(AND(W28>=DATOS!R19,W28<=DATOS!S19),DATOS!V19,IF(AND(W28>=DATOS!R20,W28<=DATOS!S20),DATOS!V20,IF(AND(W28>=DATOS!R21,W28<=DATOS!S21),DATOS!V21,IF(AND(W28>=DATOS!R22,W28<=DATOS!S22),DATOS!V22,IF(AND(W28>=DATOS!R23,W28<=DATOS!S23),DATOS!V23,IF(AND(W28>=DATOS!R24,W28<=DATOS!S24),DATOS!V24,IF(AND(W28>=DATOS!R25,W28<=DATOS!S25),DATOS!V25,IF(AND(W28>=DATOS!R26,W28<=DATOS!S26),DATOS!V26,IF(AND(W28>=DATOS!R27,W28<=DATOS!S27),DATOS!V27,"SOLICITAR COTIZACIÓN "))))))))))))))))))))))))) -> SOLICITAR COTIZACIÓN
C30: TRADICIONAL | E30: 05 | M30: MEJORA_DE_HIPOTECA152 | N30: 0.1 | O30: 15%-19% | P30: 15
E31: 10 | M31: MEJORA_DE_HIPOTECA153 | N31: 0.1 | O31: 20%-24% | P31: 15 | R31: UMA 2025 | S31: =(R35*S33)*10% -> 8598.64 | T31: 8598.65
C32: ADQUISICIÓN_SIN_COMISIONES | E32: 15 | M32: MEJORA_DE_HIPOTECA201 | N32: 0.1 | O32: 10%-14% | P32: 20 | R32: DIARIO | S32: VECES
C33: TRADICIONAL | E33: 20 | M33: MEJORA_DE_HIPOTECA202 | N33: 0.1 | O33: 15%-19% | P33: 20 | R33: 113.14 | S33: 25
A34: PROMOCIONES | C34: APOYO INFONAVIT | E34: 25 | M34: MEJORA_DE_HIPOTECA203 | N34: 0.1 | O34: 20%-24% | P34: 20 | R34: MENSUAL
A35: =IF(SIMULADOR!C23="","","HIPOTECA MUNDIALISTA") ->  | C35: COFINAVIT | M35: MEJORA_DE_HIPOTECA_Y_LIQUIDEZ | N35: MEJORA_DE_HIPOTECA_Y_LIQUIDEZ | R35: =+R33*30.4 -> 3439.456
A36: =IF(AND(SIMULADOR!E13="SUCURSAL",SIMULADOR!E15="ADQUISICIÓN_DE_VIVIENDA"),"CONVENIO ZONA PENINSULAR","") ->  | M36: MEJORA_DE_HIPOTECA_Y_LIQUIDEZ101 | N36: 0.105 | O36: 30%-49% | P36: 10
M37: MEJORA_DE_HIPOTECA_Y_LIQUIDEZ102 | N37: 0.105 | O37: 50%-100% | P37: 10
M38: MEJORA_DE_HIPOTECA_Y_LIQUIDEZ151 | N38: 0.105 | O38: 30%-49% | P38: 15
M39: MEJORA_DE_HIPOTECA_Y_LIQUIDEZ152 | N39: 0.105 | O39: 50%-100% | P39: 15
A40: SEGURO DE VIDA | M40: HIPOTECA_VERDE | N40: HIP_VERDE
A41: 0.49 | M41: HIPOTECA_VERDE101 | N41: 0.097 | O41: 10%-14% | P41: 10
A42: 0.593 | M42: HIPOTECA_VERDE102 | N42: 0.097 | O42: 15%-19% | P42: 10
M43: HIPOTECA_VERDE103 | N43: 0.094 | O43: 20%-24% | P43: 10
M44: HIPOTECA_VERDE151 | N44: 0.097 | O44: 10%-14% | P44: 15
A45: =IF(AND(SIMULADOR!E15="LIQUIDEZ",SIMULADOR!E27="VALOR VIVIENDA",OR(SIMULADOR!E29<1500000,SIMULADOR!M13>6000000)),"",IF(AND(SIMULADOR!E15="LIQUIDEZ",OR(SIMULADOR!E29<600000,SIMULADOR!E29>6000000)),"","")) ->  | M45: HIPOTECA_VERDE152 | N45: 0.097 | O45: 15%-19% | P45: 15
M46: HIPOTECA_VERDE153 | N46: 0.094 | O46: 20%-24% | P46: 15
A47: =IF(AND(OR(SIMULADOR!E15=A10,SIMULADOR!E15=A15,SIMULADOR!E15=A13),SIMULADOR!E21<10%),"ERROR",IF(AND(SIMULADOR!E15=A9,SIMULADOR!E17=C3,SIMULADOR!E21<10%),"ERROR",IF(AND(SIMULADOR!E15=A9,OR(SIMULADOR!E17=C4,SIMULADOR!E17=C5),OR(SIMULADOR!E13=A3,SIMULADOR!E13=A6),SIMULADOR!E21<3%),"ERROR",IF(AND(SIMULADOR!E15=A9,OR(SIMULADOR!E17=C4,SIMULADOR!E17=C5),OR(SIMULADOR!E13=A4,SIMULADOR!E13=A5,SIMULADOR!E13=A7),SIMULADOR!E21<10%),"ERROR",IF(AND(OR(SIMULADOR!E15=A14),SIMULADOR!E21<15%),"ERROR",IF(AND(OR(SIMULADOR!E15=A11),SIMULADOR!E21<35%),"ERROR",IF(AND(SIMULADOR!E15=A12,SIMULADOR!E21<25%),"ERROR",""))))))) -> ERROR | M47: HIPOTECA_VERDE201 | N47: 0.097 | O47: 10%-14% | P47: 20
M48: HIPOTECA_VERDE202 | N48: 0.097 | O48: 15%-19% | P48: 20
M49: HIPOTECA_VERDE203 | N49: 0.094 | O49: 20%-24% | P49: 20
A51: PROGRAMA | C51: AÑOS | E51: ENGANCHE | G51: INT | H51: 1 | I51: =IF($A$52="MEJORA_DE_HIPOTECA_Y_LIQUIDEZ",I19,IF($A$52="HIPOTECA_DE_INVERSIÓN",I8,IF($A$52="LIQUIDEZ",I11,IF($A$52="FOVISSSTE",I28,I3)))) -> 5%-19% | J51: =IF($A$52="MEJORA_DE_HIPOTECA_Y_LIQUIDEZ",J19,IF($A$52="HIPOTECA_DE_INVERSIÓN",J8,IF($A$52="LIQUIDEZ",J11,IF($A$52="FOVISSSTE",J28,J3)))) -> 0.03 | K51: =IF($A$52="MEJORA_DE_HIPOTECA_Y_LIQUIDEZ",K19,IF(OR($A$52="HIPOTECA_DE_INVERSIÓN",$A$52="LIQUIDEZ"),K8,IF($A$52="FOVISSSTE",K28,K3))) -> 0.19
A52: =+SIMULADOR!E15 -> 0 | C52: =+SIMULADOR!E19 -> 0 | E52: =IF(A52="LIQUIDEZ",1-SIMULADOR!E21,ROUND(IF(A52="MEJORA_DE_HIPOTECA",1-SIMULADOR!E33,SIMULADOR!E21),2)) -> 0 | G52: =+IF(AND($E$52>=J51,E52<=K51),H51,IF(AND($E$52>=J52,$E$52<=K52),H52,IF(AND($E$52>=J53,$E$52<=K53),H53,0))) -> 0 | H52: 2 | I52: =IF($A$52="MEJORA_DE_HIPOTECA_Y_LIQUIDEZ",I20,IF(OR($A$52="HIPOTECA_DE_INVERSIÓN",$A$52="LIQUIDEZ"),"",IF($A$52="FOVISSSTE",I29,I4))) -> 20%-29% | J52: =IF($A$52="MEJORA_DE_HIPOTECA_Y_LIQUIDEZ",J20,IF(OR($A$52="HIPOTECA_DE_INVERSIÓN",$A$52="LIQUIDEZ"),"",IF($A$52="FOVISSSTE",J29,J4))) -> 0.2 | K52: =IF($A$52="MEJORA_DE_HIPOTECA_Y_LIQUIDEZ",K20,IF(OR($A$52="HIPOTECA_DE_INVERSIÓN",$A$52="LIQUIDEZ"),"",IF($A$52="FOVISSSTE",K29,K4))) -> 0.29
A53: =IF(A54="HIP_VERDE",CONCATENATE(A54&C52&G52),IF(A54="ADQUISICIÓN SIN COMISIONES",CONCATENATE("SIN_COMISIONES"&C52&G52),CONCATENATE(A52&C52&G52))) -> 000 | C53: TASA | E53: INTERVALO | H53: 3 | I53: =IF(OR($A$52="ADQUISICIÓN_DE_VIVIENDA",$A$52="MEJORA_DE_HIPOTECA",$A$52="HIP_VERDE",$A$52="FOVISSSTE",$A$52="ADQUISICIÓN_SIN_COMISIONES",$A$52="HIPOTECA_VERDE"),I5,"") ->  | J53: =IF(OR($A$52="ADQUISICIÓN_DE_VIVIENDA",$A$52="MEJORA_DE_HIPOTECA",$A$52="HIP_VERDE",$A$52="FOVISSSTE",$A$52="ADQUISICIÓN_SIN_COMISIONES",$A$52="HIPOTECA_VERDE"),J5,"") ->  | K53: =IF(OR($A$52="ADQUISICIÓN_DE_VIVIENDA",$A$52="MEJORA_DE_HIPOTECA",$A$52="HIP_VERDE",$A$52="FOVISSSTE",$A$52="ADQUISICIÓN_SIN_COMISIONES",$A$52="HIPOTECA_VERDE"),K5,"") -> 
A54: =SIMULADOR!E23 -> 0 | C54: =IF(A54=A35,9.6%,IF(A54="CONVENIO ZONA PENINSULAR",9.7%,IF(AND(SIMULADOR!E13="DESARROLLADOR PUENTE",SIMULADOR!$E$15="ADQUISICIÓN_DE_VIVIENDA"),DATOS!Y2,IF(SIMULADOR!E13="DESARROLLADOR PREMIUM",9.99%,IF(AND(SIMULADOR!E13="BANCA PRIVADA",OR(A52="ADQUISICIÓN_DE_VIVIENDA",A52="HIPOTECA_DE_INVERSIÓN")),DATOS!Y2,IF(AND(VLOOKUP(A53,M:N,2,0)>10.3%,OR(A55="APOYO INFONAVIT",A55="COFINAVIT")),10.3%,VLOOKUP(A53,M:N,2,0))))))) ->  | E54: =+VLOOKUP(G52,H51:I53,2,0) -> 
A55: =+SIMULADOR!E17 -> 0
A59: =IFERROR(IF(SIMULADOR!E27="INGRESOS",SIMULADOR!M13/(1-SIMULADOR!E21),IF(SIMULADOR!E27="MONTO CRÉDITO",SIMULADOR!E29+SIMULADOR!E35,SIMULADOR!E29)),0) -> 0
A61: =IF(SIMULADOR!E27="INGRESOS",IF(SIMULADOR!E43>(A59*SIMULADOR!E21),A59*SIMULADOR!E21,SIMULADOR!E43),IF(SIMULADOR!E43>SIMULADOR!E35,SIMULADOR!E35,SIMULADOR!E43)) -> 0
A63: =IF(SIMULADOR!E27="INGRESOS",SIMULADOR!M13/(1-SIMULADOR!E21),IF(SIMULADOR!E27="MONTO CRÉDITO",SIMULADOR!E29+SIMULADOR!E35,SIMULADOR!E29))+(SIMULADOR!E43-A61) -> 0
A65: =SIMULADOR!E43-DATOS!A61 -> 0
A67: =SIMULADOR!E43/SIMULADOR!E29 -> 
A96: SI(Y(SIMULADOR!E15="ADQUISICIÓN_DE_VIVIENDA",SIMULADOR!E17="TRADICIONAL",SIMULADOR!E21<10%),"ERROR",SI(Y(SIMULADOR!E15="ADQUISICIÓN_DE_VIVIENDA",O(SIMULADOR!E17="APOYO INFONAVIT",SIMULADOR!E17="COFINAVIT"),SIMULADOR!E21<5%),"ERROR",SI(Y(O(SIMULADOR!E15=DATOS!A11,SIMULADOR!E15=DATOS!A13),SIMULADOR!E21<30%),"ERROR",SI(Y(SIMULADOR!E15=DATOS!A12,SIMULADOR!E21>50%),"ERROR",""))))
